Workbook

Sheet League News
B2: Team Standings | I2: Scoring This Week | M2: Team Fees | P2: Box Scores Week 14
A3: Prince of Wales Conference
B4: W | C4: L | D4: T | E4: Pts | F4: CP | H4: BPF | I4: BPA | J4: Streak | L4: Moves | M4: Paid | N4: Owed | P4: Just Chillin | Q4: 28 | R4: 16 | S4: 18 | T4: 62
A5: Highlanders | B5: =Highlanders!B57 -> 9 | C5: =Highlanders!C57 -> 5 | D5: =Highlanders!D57 -> 0 | E5: =Highlanders!E57 -> 18 | F5: =Highlanders!F57 -> 906 | H5: =Highlanders!G57 -> 796 | I5: =Highlanders!H57 -> 748 | J5: =Highlanders!I57 -> Lost 2 | L5: 5 | M5: 100 | N5: 17 | P5: Shawnee Tribe | Q5: 25 | R5: 11 | S5: 15 | T5: 51
A6: Just Chillin | B6: ='Just Chillin'!B57 -> 8 | C6: ='Just Chillin'!C57 -> 6 | D6: ='Just Chillin'!D57 -> 0 | E6: ='Just Chillin'!E57 -> 16 | F6: ='Just Chillin'!F57 -> 959 | H6: ='Just Chillin'!G57 -> 849 | I6: ='Just Chillin'!H57 -> 722 | J6: ='Just Chillin'!I57 -> Won 3 | L6: 12 | M6: 100 | N6: 11
A7: Riketorians | B7: =Riketorians!B57 -> 6 | C7: =Riketorians!C57 -> 7 | D7: =Riketorians!D57 -> 1 | E7: =Riketorians!E57 -> 13 | F7: =Riketorians!F57 -> 807 | H7: =Riketorians!G57 -> 726 | I7: =Riketorians!H57 -> 755 | J7: =Riketorians!I57 -> Won 2 | L7: 20 | M7: 100 | N7: 0 | P7: Damn Yankees | Q7: 33 | R7: 12 | S7: 13 | T7: 58
A8: Shawnee Tribe | B8: ='Shawnee Tribe'!B57 -> 5 | C8: ='Shawnee Tribe'!C57 -> 8 | D8: ='Shawnee Tribe'!D57 -> 1 | E8: ='Shawnee Tribe'!E57 -> 11 | F8: ='Shawnee Tribe'!F57 -> 766 | H8: ='Shawnee Tribe'!G57 -> 704 | I8: ='Shawnee Tribe'!H57 -> 778 | J8: ='Shawnee Tribe'!I57 -> Lost 2 | L8: 15 | M8: 0 | N8: 124 | P8: District 5 | Q8: 36 | R8: 7 | S8: 16 | T8: 59
A9: Damn Yankees | B9: ='Damn Yankees'!B57 -> 3 | C9: ='Damn Yankees'!C57 -> 10 | D9: ='Damn Yankees'!D57 -> 1 | E9: ='Damn Yankees'!E57 -> 7 | F9: ='Damn Yankees'!F57 -> 786 | H9: ='Damn Yankees'!G57 -> 700 | I9: ='Damn Yankees'!H57 -> 777 | J9: ='Damn Yankees'!I57 -> Lost 5 | L9: 4 | M9: 140 | N9: 7
P10: Riketorians | Q10: 39 | R10: 12 | S10: 13 | T10: 64
A11: Campbell Conference | P11: Highlanders | Q11: 38 | R11: 14 | S11: 5 | T11: 57
B12: W | C12: L | D12: T | E12: Pts | F12: CP | H12: BPF | I12: BPA | J12: Streak | L12: Moves | M12: Paid | N12: Owed
A13: Grumpy Old Men | B13: ='Grumpy Old Men'!B57 -> 10 | C13: ='Grumpy Old Men'!C57 -> 4 | D13: ='Grumpy Old Men'!D57 -> 0 | E13: ='Grumpy Old Men'!E57 -> 20 | F13: ='Grumpy Old Men'!F57 -> 903 | H13: ='Grumpy Old Men'!G57 -> 809 | I13: ='Grumpy Old Men'!H57 -> 766 | J13: ='Grumpy Old Men'!I57 -> Won 4 | L13: 18 | M13: 0 | N13: 105 | P13: Arcane Sanctuary | Q13: 19 | R13: 9 | S13: 2 | T13: 30
A14: District 5 | B14: ='District 5'!B57 -> 9 | C14: ='District 5'!C57 -> 5 | D14: ='District 5'!D57 -> 0 | E14: ='District 5'!E57 -> 18 | F14: ='District 5'!F57 -> 885 | H14: ='District 5'!G57 -> 787 | I14: ='District 5'!H57 -> 776 | J14: ='District 5'!I57 -> Won 1 | L14: 17 | M14: 100 | N14: 4 | P14: Grumpy Old Men | Q14: 43 | R14: 9 | S14: 7 | T14: 59
A15: Ravens | B15: =Ravens!B57 -> 8 | C15: =Ravens!C57 -> 6 | D15: =Ravens!D57 -> 0 | E15: =Ravens!E57 -> 16 | F15: =Ravens!F57 -> 919 | H15: =Ravens!G57 -> 809 | I15: =Ravens!H57 -> 811 | J15: =Ravens!I57 -> Lost 1 | L15: 5 | M15: 120 | N15: 0
A16: Slappers | B16: =Slappers!B57 -> 7 | C16: =Slappers!C57 -> 5 | D16: =Slappers!D57 -> 2 | E16: =Slappers!E57 -> 16 | F16: =Slappers!F57 -> 900 | H16: =Slappers!G57 -> 819 | I16: =Slappers!H57 -> 768 | J16: =Slappers!I57 -> Won 2 | L16: 5 | M16: 100 | N16: 11 | P16: Slappers | Q16: 34 | R16: 11 | S16: 15 | T16: 60
A17: Arcane Sanctuary | B17: ='Arcane Sanctuary'!B57 -> 2 | C17: ='Arcane Sanctuary'!C57 -> 11 | D17: ='Arcane Sanctuary'!D57 -> 1 | E17: ='Arcane Sanctuary'!E57 -> 5 | F17: ='Arcane Sanctuary'!F57 -> 680 | H17: ='Arcane Sanctuary'!G57 -> 656 | I17: ='Arcane Sanctuary'!H57 -> 753 | J17: ='Arcane Sanctuary'!I57 -> Lost 4 | L17: 12 | M17: 100 | N17: 0 | P17: Ravens | Q17: 31 | R17: 11 | S17: 15 | T17: 57
K19: Totals | M19: =SUM(M5:M17) -> 860 | N19: =SUM(N5:N17) -> 279 | P19: League Fees | Q19: 100
P20: Total Prizes | Q20: =M19+N19-Q19 -> 1039
A21: Offensive Leaders | G21: Defensive Leaders | O21: Goaltender Leaders
A22: ='Total Calc'!A2 -> Leon Draisaitl | C22: ='Total Calc'!B2 -> (HGL) | E22: ='Total Calc'!C2 -> 92 | G22: ='Total Calc'!E2 -> Cale Makar | J22: ='Total Calc'!F2 -> (GOM) | L22: ='Total Calc'!G2 -> 63 | O22: ='Total Calc'!I2 -> Connor Hellebuyck | Q22: ='Total Calc'!J2 -> (JCH) | S22: ='Total Calc'!K2 -> 170
A23: ='Total Calc'!A3 -> Mikko Rantanen | C23: ='Total Calc'!B3 -> (JCH) | E23: ='Total Calc'!C3 -> 78 | G23: ='Total Calc'!E3 -> Zach Werenski | J23: ='Total Calc'!F3 -> (JCH) | L23: ='Total Calc'!G3 -> 60 | O23: ='Total Calc'!I3 -> Filip Gustavsson | Q23: ='Total Calc'!J3 -> (HGL) | S23: ='Total Calc'!K3 -> 138
A24: ='Total Calc'!A4 -> Nathan MacKinnon | C24: ='Total Calc'!B4 -> (ARS) | E24: ='Total Calc'!C4 -> 78 | G24: ='Total Calc'!E4 -> Quinn Hughes | J24: ='Total Calc'!F4 -> (RAV) | L24: ='Total Calc'!G4 -> 50 | O24: ='Total Calc'!I4 -> Jacob Markstrom | Q24: ='Total Calc'!J4 -> (DI5) | S24: ='Total Calc'!K4 -> 135
A25: ='Total Calc'!A5 -> Kyle Connor | C25: ='Total Calc'!B5 -> (DI5) | E25: ='Total Calc'!C5 -> 77 | G25: ='Total Calc'!E5 -> Josh Morrissey | J25: ='Total Calc'!F5 -> (HGL) | L25: ='Total Calc'!G5 -> 40 | O25: ='Total Calc'!I5 -> Jake Oettinger | Q25: ='Total Calc'!J5 -> (RAV) | S25: ='Total Calc'!K5 -> 125
A26: ='Total Calc'!A6 -> Mitch Marner | C26: ='Total Calc'!B6 -> (GOM) | E26: ='Total Calc'!C6 -> 75 | G26: ='Total Calc'!E6 -> Jakob Chychrun | J26: ='Total Calc'!F6 -> (RAV) | L26: ='Total Calc'!G6 -> 40 | O26: ='Total Calc'!I6 -> Andrei Vasilevskiy | Q26: ='Total Calc'!J6 -> (RIK) | S26: ='Total Calc'!K6 -> 125
A28: This Weeks Offensive Leaders | G28: This Weeks Defensive Leaders | O28: This Weeks Goaltending Leader
A29: ='Weekly Calc'!A2 -> Nick Suzuki | C29: ='Weekly Calc'!B2 -> (HGL) | E29: ='Weekly Calc'!C2 -> 12 | G29: ='Weekly Calc'!E2 -> Adam Fox | J29: ='Weekly Calc'!F2 -> (HGL) | L29: ='Weekly Calc'!G2 -> 6 | O29: ='Weekly Calc'!I2 -> Connor Hellebuyck | Q29: ='Weekly Calc'!J2 -> (JCH) | S29: ='Weekly Calc'!K2 -> 18
A30: ='Weekly Calc'!A3 -> David Pastrnak | C30: ='Weekly Calc'!B3 -> (SLP) | E30: ='Weekly Calc'!C3 -> 9 | G30: ='Weekly Calc'!E3 -> Lane Hutson | J30: ='Weekly Calc'!F3 -> (SHW) | L30: ='Weekly Calc'!G3 -> 5 | O30: ='Weekly Calc'!I3 -> Ilya Sorokin | Q30: ='Weekly Calc'!J3 -> (DI5) | S30: ='Weekly Calc'!K3 -> 16
A31: ='Weekly Calc'!A4 -> Vincent Trocheck | C31: ='Weekly Calc'!B4 -> (GOM) | E31: ='Weekly Calc'!C4 -> 8 | G31: ='Weekly Calc'!E4 -> Zach Werenski | J31: ='Weekly Calc'!F4 -> (JCH) | L31: ='Weekly Calc'!G4 -> 5 | O31: ='Weekly Calc'!I4 -> Dustin Wolf | Q31: ='Weekly Calc'!J4 -> (SLP) | S31: ='Weekly Calc'!K4 -> 15
A32: ='Weekly Calc'!A5 -> Patrick Kane | C32: ='Weekly Calc'!B5 -> (HGL) | E32: ='Weekly Calc'!C5 -> 8 | G32: ='Weekly Calc'!E5 -> Quinn Hughes | J32: ='Weekly Calc'!F5 -> (RAV) | L32: ='Weekly Calc'!G5 -> 5 | O32: ='Weekly Calc'!I5 -> Logan Thompson | Q32: ='Weekly Calc'!J5 -> (RAV) | S32: ='Weekly Calc'!K5 -> 15
A33: ='Weekly Calc'!A6 -> Bo Horvat | C33: ='Weekly Calc'!B6 -> (GOM) | E33: ='Weekly Calc'!C6 -> 8 | G33: ='Weekly Calc'!E6 -> Devon Toews | J33: ='Weekly Calc'!F6 -> (GOM) | L33: ='Weekly Calc'!G6 -> 5 | O33: ='Weekly Calc'!I6 -> Igor Shesterkin | Q33: ='Weekly Calc'!J6 -> (SHW) | S33: ='Weekly Calc'!K6 -> 15
A35: Transactions
A36: Damn Yankees: Release Fiala sign Jonathan Huberdeau
A37: Slappers: IR Guenther sign Dmitri Voronkov
A38: Ravens: IR Monahan sign Anders Lee
A39: Highlanders: Release Palmieri activate Petterson
A40: Slappers: Release Ekblad sign Ivan Provorov

Sheet More Stats
B1: Team Offense | F1: Team Defense | J1: Team Goalie
A2: Slappers | C2: =Slappers!R34 -> 536 | E2: Grumpy Old Men | G2: ='Grumpy Old Men'!R35 -> 196 | I2: Just Chillin | K2: ='Just Chillin'!R38 -> 258
A3: Just Chillin | C3: ='Just Chillin'!R34 -> 517 | E3: Slappers | G3: =Slappers!R35 -> 188 | I3: District 5 | K3: ='District 5'!R38 -> 223
A4: Ravens | C4: =Ravens!R34 -> 515 | E4: Highlanders | G4: =Highlanders!R35 -> 187 | I4: Ravens | K4: =Ravens!R38 -> 222
A5: Highlanders | C5: =Highlanders!R34 -> 513 | E5: Just Chillin | G5: ='Just Chillin'!R35 -> 184 | I5: Highlanders | K5: =Highlanders!R38 -> 206
A6: Grumpy Old Men | C6: ='Grumpy Old Men'!R34 -> 512 | E6: Ravens | G6: =Ravens!R35 -> 182 | I6: Riketorians | K6: =Riketorians!R38 -> 205
A7: District 5 | C7: ='District 5'!R34 -> 501 | E7: Shawnee Tribe | G7: ='Shawnee Tribe'!R35 -> 168 | I7: Grumpy Old Men | K7: ='Grumpy Old Men'!R38 -> 195
A8: Riketorians | C8: =Riketorians!R34 -> 484 | E8: Damn Yankees | G8: ='Damn Yankees'!R35 -> 162 | I8: Slappers | K8: =Slappers!R38 -> 176
A9: Damn Yankees | C9: ='Damn Yankees'!R34 -> 459 | E9: District 5 | G9: ='District 5'!R35 -> 161 | I9: Shawnee Tribe | K9: ='Shawnee Tribe'!R38 -> 175
A10: Arcane Sanctuary | C10: ='Arcane Sanctuary'!R34 -> 455 | E10: Arcane Sanctuary | G10: ='Arcane Sanctuary'!R35 -> 138 | I10: Damn Yankees | K10: ='Damn Yankees'!R38 -> 165
A11: Shawnee Tribe | C11: ='Shawnee Tribe'!R34 -> 423 | E11: Riketorians | G11: =Riketorians!R35 -> 118 | I11: Arcane Sanctuary | K11: ='Arcane Sanctuary'!R38 -> 87
B13: Offensive Goals | F13: Defensive Goals | J13: Team Goals
A14: Ravens | C14: =Ravens!K34 -> 186 | E14: Slappers | G14: =Slappers!K35 -> 38 | I14: Ravens | K14: =Ravens!K36 -> 222
A15: Just Chillin | C15: ='Just Chillin'!K34 -> 181 | E15: Ravens | G15: =Ravens!K35 -> 36 | I15: Just Chillin | K15: ='Just Chillin'!K36 -> 215
A16: Highlanders | C16: =Highlanders!K34 -> 156 | E16: Grumpy Old Men | G16: ='Grumpy Old Men'!K35 -> 35 | I16: Slappers | K16: =Slappers!K36 -> 192
A17: District 5 | C17: ='District 5'!K34 -> 156 | E17: Damn Yankees | G17: ='Damn Yankees'!K35 -> 35 | I17: Grumpy Old Men | K17: ='Grumpy Old Men'!K36 -> 189
A18: Slappers | C18: =Slappers!K34 -> 154 | E18: Just Chillin | G18: ='Just Chillin'!K35 -> 34 | I18: District 5 | K18: ='District 5'!K36 -> 188
A19: Grumpy Old Men | C19: ='Grumpy Old Men'!K34 -> 154 | E19: Shawnee Tribe | G19: ='Shawnee Tribe'!K35 -> 33 | I19: Damn Yankees | K19: ='Damn Yankees'!K36 -> 188
A20: Arcane Sanctuary | C20: ='Arcane Sanctuary'!K34 -> 153 | E20: District 5 | G20: ='District 5'!K35 -> 32 | I20: Highlanders | K20: =Highlanders!K36 -> 182
A21: Damn Yankees | C21: ='Damn Yankees'!K34 -> 153 | E21: Arcane Sanctuary | G21: ='Arcane Sanctuary'!K35 -> 28 | I21: Arcane Sanctuary | K21: ='Arcane Sanctuary'!K36 -> 181
A22: Riketorians | C22: =Riketorians!K34 -> 142 | E22: Highlanders | G22: =Highlanders!K35 -> 26 | I22: Shawnee Tribe | K22: ='Shawnee Tribe'!K36 -> 166
A23: Shawnee Tribe | C23: ='Shawnee Tribe'!K34 -> 133 | E23: Riketorians | G23: =Riketorians!K35 -> 18 | I23: Riketorians | K23: =Riketorians!K36 -> 160
B25: Offensive Assists | F25: Defensive Assists | J25: Team Assists
A26: Slappers | C26: =Slappers!L34 -> 265 | E26: Highlanders | G26: =Highlanders!L35 -> 149 | I26: Slappers | K26: =Slappers!L36 -> 386
A27: Riketorians | C27: =Riketorians!L34 -> 240 | E27: Grumpy Old Men | G27: ='Grumpy Old Men'!L35 -> 129 | I27: Highlanders | K27: =Highlanders!L36 -> 365
A28: District 5 | C28: ='District 5'!L34 -> 238 | E28: Shawnee Tribe | G28: ='Shawnee Tribe'!L35 -> 127 | I28: Grumpy Old Men | K28: ='Grumpy Old Men'!L36 -> 360
A29: Damn Yankees | C29: ='Damn Yankees'!L34 -> 231 | E29: Ravens | G29: =Ravens!L35 -> 122 | I29: District 5 | K29: ='District 5'!L36 -> 345
A30: Grumpy Old Men | C30: ='Grumpy Old Men'!L34 -> 231 | E30: Just Chillin | G30: ='Just Chillin'!L35 -> 122 | I30: Just Chillin | K30: ='Just Chillin'!L36 -> 342
A31: Just Chillin | C31: ='Just Chillin'!L34 -> 220 | E31: Slappers | G31: =Slappers!L35 -> 121 | I31: Damn Yankees | K31: ='Damn Yankees'!L36 -> 340
A32: Highlanders | C32: =Highlanders!L34 -> 216 | E32: Damn Yankees | G32: ='Damn Yankees'!L35 -> 109 | I32: Ravens | K32: =Ravens!L36 -> 329
A33: Ravens | C33: =Ravens!L34 -> 207 | E33: District 5 | G33: ='District 5'!L35 -> 107 | I33: Riketorians | K33: =Riketorians!L36 -> 327
A34: Shawnee Tribe | C34: ='Shawnee Tribe'!L34 -> 199 | E34: Arcane Sanctuary | G34: ='Arcane Sanctuary'!L35 -> 95 | I34: Shawnee Tribe | K34: ='Shawnee Tribe'!L36 -> 326
A35: Arcane Sanctuary | C35: ='Arcane Sanctuary'!L34 -> 185 | E35: Riketorians | G35: =Riketorians!L35 -> 87 | I35: Arcane Sanctuary | K35: ='Arcane Sanctuary'!L36 -> 280
B37: Offensive PP Goals | F37: Defensive PP Goals | J37: Team PP Goals
A38: Just Chillin | C38: ='Just Chillin'!M34 -> 57 | E38: Slappers | G38: =Slappers!M35 -> 13 | I38: Just Chillin | K38: ='Just Chillin'!M36 -> 67
A39: Ravens | C39: =Ravens!M34 -> 55 | E39: Grumpy Old Men | G39: ='Grumpy Old Men'!M35 -> 11 | I39: Ravens | K39: =Ravens!M36 -> 65
A40: Highlanders | C40: =Highlanders!M34 -> 54 | E40: Just Chillin | G40: ='Just Chillin'!M35 -> 10 | I40: Grumpy Old Men | K40: ='Grumpy Old Men'!M36 -> 62
A41: Grumpy Old Men | C41: ='Grumpy Old Men'!M34 -> 51 | E41: Ravens | G41: =Ravens!M35 -> 10 | I41: Slappers | K41: =Slappers!M36 -> 57
A42: Slappers | C42: =Slappers!M34 -> 44 | E42: District 5 | G42: ='District 5'!M35 -> 9 | I42: Highlanders | K42: =Highlanders!M36 -> 56
A43: District 5 | C43: ='District 5'!M34 -> 42 | E43: Damn Yankees | G43: ='Damn Yankees'!M35 -> 5 | I43: District 5 | K43: ='District 5'!M36 -> 51
A44: Riketorians | C44: =Riketorians!M34 -> 42 | E44: Riketorians | G44: =Riketorians!M35 -> 5 | I44: Riketorians | K44: =Riketorians!M36 -> 47
A45: Shawnee Tribe | C45: ='Shawnee Tribe'!M34 -> 37 | E45: Shawnee Tribe | G45: ='Shawnee Tribe'!M35 -> 3 | I45: Shawnee Tribe | K45: ='Shawnee Tribe'!M36 -> 40
A46: Arcane Sanctuary | C46: ='Arcane Sanctuary'!M34 -> 34 | E46: Highlanders | G46: =Highlanders!M35 -> 2 | I46: Arcane Sanctuary | K46: ='Arcane Sanctuary'!M36 -> 35
A47: Damn Yankees | C47: ='Damn Yankees'!M34 -> 27 | E47: Arcane Sanctuary | G47: ='Arcane Sanctuary'!M35 -> 1 | I47: Damn Yankees | K47: ='Damn Yankees'!M36 -> 32
B49: Boxscore Points For | F49: Boxscore Points Against | J49: Boxscore Points Differential
A50: Just Chillin | C50: ='Just Chillin'!G57 -> 849 | E50: Just Chillin | G50: ='Just Chillin'!H57 -> 722 | I50: Just Chillin | K50: ='Just Chillin'!G57-'Just Chillin'!H57 -> 127
A51: Slappers | C51: =Slappers!G57 -> 819 | E51: Highlanders | G51: =Highlanders!H57 -> 748 | I51: Slappers | K51: =Slappers!G57-Slappers!H57 -> 51
A52: Ravens | C52: =Ravens!G57 -> 809 | E52: Arcane Sanctuary | G52: ='Arcane Sanctuary'!H57 -> 753 | I52: Highlanders | K52: =Highlanders!G57-Highlanders!H57 -> 48
A53: Grumpy Old Men | C53: ='Grumpy Old Men'!G57 -> 809 | E53: Riketorians | G53: =Riketorians!H57 -> 755 | I53: Grumpy Old Men | K53: ='Grumpy Old Men'!G57-'Grumpy Old Men'!H57 -> 43
A54: Highlanders | C54: =Highlanders!G57 -> 796 | E54: Grumpy Old Men | G54: ='Grumpy Old Men'!H57 -> 766 | I54: District 5 | K54: ='District 5'!G57-'District 5'!H57 -> 11
A55: District 5 | C55: ='District 5'!G57 -> 787 | E55: Slappers | G55: =Slappers!H57 -> 768 | I55: Ravens | K55: =Ravens!G57-Ravens!H57 -> -2
A56: Riketorians | C56: =Riketorians!G57 -> 726 | E56: District 5 | G56: ='District 5'!H57 -> 776 | I56: Riketorians | K56: =Riketorians!G57-Riketorians!H57 -> -29
A57: Shawnee Tribe | C57: ='Shawnee Tribe'!G57 -> 704 | E57: Damn Yankees | G57: ='Damn Yankees'!H57 -> 777 | I57: Shawnee Tribe | K57: ='Shawnee Tribe'!G57-'Shawnee Tribe'!H57 -> -74
A58: Damn Yankees | C58: ='Damn Yankees'!G57 -> 700 | E58: Shawnee Tribe | G58: ='Shawnee Tribe'!H57 -> 778 | I58: Damn Yankees | K58: ='Damn Yankees'!G57-'Damn Yankees'!H57 -> -77
A59: Arcane Sanctuary | C59: ='Arcane Sanctuary'!G57 -> 656 | E59: Ravens | G59: =Ravens!H57 -> 811 | I59: Arcane Sanctuary | K59: ='Arcane Sanctuary'!G57-'Arcane Sanctuary'!H57 -> -97

Sheet Riketorians
A1: Team: Riketorians | D1: General Manager: Jonathan Riker
D3: Scoring This Week | N3: Players Overall Scoring
A4: Forwards | B4: Gls | C4: Ast | D4: PP | E4: SH | F4: GW | G4: OT | H4: PSG | I4: PTS | K4: Gls | L4: Ast | M4: PP | N4: SH | O4: GW | P4: OT | Q4: PSG | R4: PTS
A5: Artemi Panarin | B5: 1 | C5: 5 | D5: 1 | E5: 0 | F5: 0 | G5: 0 | H5: 0 | I5: =(B5+C5+D5+(2*E5)+(2*F5)+G5+(4*H5)) -> 7 | K5: 17 | L5: 28 | M5: 6 | N5: 0 | O5: 1 | P5: 0 | Q5: 0 | R5: =(K5+L5+M5+(2*N5)+(2*O5)+P5+(4*Q5)) -> 53
A6: Sidney Crosby | B6: 1 | C6: 4 | D6: 1 | E6: 0 | F6: 0 | G6: 0 | H6: 0 | I6: =(B6+C6+D6+(2*E6)+(2*F6)+G6+(4*H6)) -> 6 | K6: 12 | L6: 35 | M6: 6 | N6: 0 | O6: 3 | P6: 2 | Q6: 0 | R6: =(K6+L6+M6+(2*N6)+(2*O6)+P6+(4*Q6)) -> 61
A7: Mats Zuccarello | B7: 1 | C7: 4 | D7: 0 | E7: 0 | F7: 0 | G7: 0 | H7: 0 | I7: =(B7+C7+D7+(2*E7)+(2*F7)+G7+(4*H7)) -> 5 | K7: 11 | L7: 19 | M7: 2 | N7: 0 | O7: 3 | P7: 0 | Q7: 0 | R7: =(K7+L7+M7+(2*N7)+(2*O7)+P7+(4*Q7)) -> 38
A8: Adrian Kempe | B8: 1 | C8: 1 | D8: 0 | E8: 0 | F8: 1 | G8: 1 | H8: 0 | I8: =(B8+C8+D8+(2*E8)+(2*F8)+G8+(4*H8)) -> 5 | K8: 20 | L8: 19 | M8: 2 | N8: 1 | O8: 2 | P8: 1 | Q8: 0 | R8: =(K8+L8+M8+(2*N8)+(2*O8)+P8+(4*Q8)) -> 48
A9: Connor McDavid | B9: 1 | C9: 3 | D9: 1 | E9: 0 | F9: 0 | G9: 0 | H9: 0 | I9: =(B9+C9+D9+(2*E9)+(2*F9)+G9+(4*H9)) -> 5 | K9: 16 | L9: 42 | M9: 6 | N9: 0 | O9: 2 | P9: 0 | Q9: 0 | R9: =(K9+L9+M9+(2*N9)+(2*O9)+P9+(4*Q9)) -> 68
A10: Brock Nelson | B10: 2 | C10: 2 | D10: 0 | E10: 0 | F10: 0 | G10: 0 | H10: 0 | I10: =(B10+C10+D10+(2*E10)+(2*F10)+G10+(4*H10)) -> 4 | K10: 12 | L10: 13 | M10: 1 | N10: 2 | O10: 2 | P10: 0 | Q10: 0 | R10: =(K10+L10+M10+(2*N10)+(2*O10)+P10+(4*Q10)) -> 34
A11: Connor Bedard | B11: 1 | C11: 3 | D11: 0 | E11: 0 | F11: 0 | G11: 0 | H11: 0 | I11: =(B11+C11+D11+(2*E11)+(2*F11)+G11+(4*H11)) -> 4 | K11: 11 | L11: 27 | M11: 4 | N11: 0 | O11: 3 | P11: 0 | Q11: 0 | R11: =(K11+L11+M11+(2*N11)+(2*O11)+P11+(4*Q11)) -> 48
A12: Alexis Lafrenière | B12: 2 | C12: 1 | D12: 0 | E12: 0 | F12: 0 | G12: 0 | H12: 0 | I12: =(B12+C12+D12+(2*E12)+(2*F12)+G12+(4*H12)) -> 3 | K12: 11 | L12: 13 | M12: 2 | N12: 0 | O12: 2 | P12: 0 | Q12: 0 | R12: =(K12+L12+M12+(2*N12)+(2*O12)+P12+(4*Q12)) -> 30
A13: Ryan Nugent-Hopkins | B13: 1 | C13: 1 | D13: 1 | E13: 0 | F13: 0 | G13: 0 | H13: 0 | I13: =(B13+C13+D13+(2*E13)+(2*F13)+G13+(4*H13)) -> 3 | K13: 11 | L13: 13 | M13: 5 | N13: 0 | O13: 3 | P13: 1 | Q13: 0 | R13: =(K13+L13+M13+(2*N13)+(2*O13)+P13+(4*Q13)) -> 36
A14: Claude Giroux | B14: 0 | C14: 3 | D14: 0 | E14: 0 | F14: 0 | G14: 0 | H14: 0 | I14: =(B14+C14+D14+(2*E14)+(2*F14)+G14+(4*H14)) -> 3 | K14: 9 | L14: 18 | M14: 2 | N14: 0 | O14: 1 | P14: 0 | Q14: 0 | R14: =(K14+L14+M14+(2*N14)+(2*O14)+P14+(4*Q14)) -> 31
A15: Ryan OReilly | B15: 0 | C15: 0 | D15: 0 | E15: 0 | F15: 0 | G15: 0 | H15: 0 | I15: =(B15+C15+D15+(2*E15)+(2*F15)+G15+(4*H15)) -> 0 | K15: 12 | L15: 13 | M15: 6 | N15: 0 | O15: 3 | P15: 0 | Q15: 0 | R15: =(K15+L15+M15+(2*N15)+(2*O15)+P15+(4*Q15)) -> 37
A18: Defense | B18: Gls | C18: Ast | D18: PP | E18: SH | F18: GW | G18: OT | H18: PSG | I18: PTS | K18: Gls | L18: Ast | M18: PP | N18: SH | O18: GW | P18: OT | Q18: PSG | R18: PTS
A19: Erik Karlsson | B19: 1 | C19: 4 | D19: 0 | E19: 0 | F19: 0 | G19: 0 | H19: 0 | I19: =(B19+C19+D19+(2*E19)+(2*F19)+G19+(4*H19)) -> 5 | K19: 4 | L19: 27 | M19: 1 | N19: 0 | O19: 0 | P19: 0 | Q19: 0 | R19: =(K19+L19+M19+(2*N19)+(2*O19)+P19+(4*Q19)) -> 32
A20: Alexander Romanov | B20: 0 | C20: 3 | D20: 0 | E20: 0 | F20: 0 | G20: 0 | H20: 0 | I20: =(B20+C20+D20+(2*E20)+(2*F20)+G20+(4*H20)) -> 3 | K20: 0 | L20: 9 | M20: 0 | N20: 0 | O20: 0 | P20: 0 | Q20: 0 | R20: =(K20+L20+M20+(2*N20)+(2*O20)+P20+(4*Q20)) -> 9
A21: Marcus Pettersson | B21: 0 | C21: 2 | D21: 0 | E21: 0 | F21: 0 | G21: 0 | H21: 0 | I21: =(B21+C21+D21+(2*E21)+(2*F21)+G21+(4*H21)) -> 2 | K21: 2 | L21: 13 | M21: 0 | N21: 0 | O21: 1 | P21: 0 | Q21: 0 | R21: =(K21+L21+M21+(2*N21)+(2*O21)+P21+(4*Q21)) -> 17
A22: Dylan DeMelo | B22: 0 | C22: 1 | D22: 0 | E22: 0 | F22: 0 | G22: 0 | H22: 0 | I22: =(B22+C22+D22+(2*E22)+(2*F22)+G22+(4*H22)) -> 1 | K22: 1 | L22: 7 | M22: 0 | N22: 0 | O22: 1 | P22: 0 | Q22: 0 | R22: =(K22+L22+M22+(2*N22)+(2*O22)+P22+(4*Q22)) -> 10
A23: Chris Tanev | B23: 0 | C23: 1 | D23: 0 | E23: 0 | F23: 0 | G23: 0 | H23: 0 | I23: =(B23+C23+D23+(2*E23)+(2*F23)+G23+(4*H23)) -> 1 | K23: 1 | L23: 12 | M23: 0 | N23: 0 | O23: 0 | P23: 0 | Q23: 0 | R23: =(K23+L23+M23+(2*N23)+(2*O23)+P23+(4*Q23)) -> 13
A24: Brady Skjei | B24: 0 | C24: 0 | D24: 0 | E24: 0 | F24: 0 | G24: 0 | H24: 0 | I24: =(B24+C24+D24+(2*E24)+(2*F24)+G24+(4*H24)) -> 0 | K24: 3 | L24: 10 | M24: 1 | N24: 0 | O24: 1 | P24: 0 | Q24: 0 | R24: =(K24+L24+M24+(2*N24)+(2*O24)+P24+(4*Q24)) -> 16
A25: Kris Letang | B25: 0 | C25: 0 | D25: 0 | E25: 0 | F25: 0 | G25: 0 | H25: 0 | I25: =(B25+C25+D25+(2*E25)+(2*F25)+G25+(4*H25)) -> 0 | K25: 7 | L25: 9 | M25: 3 | N25: 1 | O25: 0 | P25: 0 | Q25: 0 | R25: =(K25+L25+M25+(2*N25)+(2*O25)+P25+(4*Q25)) -> 21
A27: Goalie | B27: W | C27: OT | D27: SO | E27: Gls | F27: Ast | G27: GAA | H27: SP | I27: PTS | K27: W | L27: OT | M27: SO | N27: Gls | O27: Ast | P27: GAA | Q27: SP | R27: PTS
A28: Andrei Vasilevskiy | B28: 2 | C28: 1 | D28: 0 | E28: 0 | F28: 0 | G28: 1.97 | H28: 0.929 | I28: =((3*B28)+C28+(3*D28)+(10*E28)+(3*F28)+G29+H29) -> 13 | K28: 18 | L28: 2 | M28: 2 | N28: 0 | O28: 0 | P28: 2.33 | Q28: 0.915 | R28: =((3*K28)+L28+(3*M28)+(10*N28)+(3*O28)+P29+Q29) -> 125
B29: 6 | C29: 182.71 | D29: 79 | E29: 85 | G29: 3 | H29: 3 | I29: =((3*B28)+C28+(3*D28)+(10*E28)+(3*F28)+G29+H29) -> 13 | P29: 29 | Q29: 34 | R29: =((2*K28)+L28+(3*M28)+(10*N28)+(3*O28)+P29+Q29) -> 107
A30: Jordan Binnington | B30: 0 | C30: 0 | D30: 0 | E30: 0 | F30: 0 | G30: 3.71 | H30: 0.873 | I30: =((3*B30)+C30+(3*D30)+(10*E30)+(3*F30)+G31+H31) -> 0 | K30: 11 | L30: 3 | M30: 3 | N30: 0 | O30: 0 | P30: 2.85 | Q30: 0.897 | R30: =((3*K30)+L30+(3*M30)+(10*N30)+(3*O30)+P31+Q31) -> 80
B31: 7 | C31: 113.25 | D31: 48 | E31: 55 | G31: 0 | H31: 0 | I31: =((3*B30)+C30+(3*D30)+(10*E30)+(3*F30)+G31+H31) -> 0 | P31: 16 | Q31: 19 | R31: =((2*K30)+L30+(3*M30)+(10*N30)+(3*O30)+P31+Q31) -> 69
D32: All Playes Scoring This Week | N32: Cumulative Points
B33: Gls | C33: Ast | D33: PP | E33: SH | F33: GW | G33: OT | H33: PSG | K33: Gls | L33: Ast | M33: PP | N33: SH | O33: GW | P33: OT | Q33: PSG | R33: PTS
A34: Forwards | B34: =SUM(B5:B15) -> 11 | C34: =SUM(C5:C15) -> 27 | D34: 4 | E34: 0 | F34: 1 | G34: 1 | H34: 0 | K34: 142 | L34: 240 | M34: 42 | N34: 3 | O34: 25 | P34: 4 | Q34: 0 | R34: =(K34+L34+M34+(2*N34)+(2*O34)+P34+(4*Q34)) -> 484
A35: Defense | B35: =SUM(B19:B25) -> 1 | C35: =SUM(C19:C25) -> 11 | D35: 0 | E35: 0 | F35: 0 | G35: 0 | H35: 0 | K35: 18 | L35: 87 | M35: 5 | N35: 1 | O35: 3 | P35: 0 | Q35: 0 | R35: =(K35+L35+M35+(2*N35)+(2*O35)+P35+(4*Q35)) -> 118
A36: Total Scorers | B36: =SUM(B34:B35) -> 12 | C36: =SUM(C34:C35) -> 38 | D36: 4 | E36: 0 | F36: 1 | G36: 1 | H36: 0 | K36: =SUM(K34:K35) -> 160 | L36: 327 | M36: 47 | N36: 4 | O36: 28 | P36: 4 | Q36: 0 | R36: =(K36+L36+M36+(2*N36)+(2*O36)+P36+(4*Q36)) -> 602
B37: W | C37: OT | D37: SO | E37: Gls | F37: Ast | G37: GAA | H37: SP | K37: W | L37: OT | M37: SO | N37: Gls | O37: Ast | P37: GAA | Q37: SP | R37: PTS
A38: Goalie Totals | B38: =SUM(B28,B30) -> 2 | C38: =SUM(C28,C30) -> 1 | D38: =SUM(D28,D30) -> 0 | E38: =SUM(E28,E30) -> 0 | F38: =SUM(F28,F30) -> 0 | G38: =IF(C39=0,0,B39/(C39/60)) -> 2.635491283 | H38: =IF(E39=0,0,D39/E39) -> 0.9071428571 | K38: 29 | L38: 5 | M38: 5 | N38: 0 | O38: 0 | P38: =IF(L39=0,0,K39/(L39/60)) -> 2.582895131 | Q38: =IF(N39=0,0,M39/N39) -> 0.9066032124 | R38: =((3*K38)+L38+(3*M38)+(10*N38)+(3*O38)+P39+Q39) -> 205
B39: =SUM(B29,B31) -> 13 | C39: =SUM(C29,C31) -> 295.96 | D39: =SUM(D29,D31) -> 127 | E39: =SUM(E29,E31) -> 140 | K39: 158 | L39: 3670.3 | M39: 1524 | N39: 1681 | P39: 45 | Q39: 53
K40: GA | L40: Time | M40: Saves | N40: Shots
B42: Injured Reserve | M42: This Weeks Totals
A43: Player | B43: P | C43: GP | D43: IR Weeks | E43: Pts | L43: Forwards | N43: =SUM(I5:I12) -> 39
B44: F | L44: Defense | N44: =SUM(I19:I23) -> 12
B45: D | L45: Goalie | N45: =I28 -> 13
B46: G
B47: Flex | L47: Total Points | N47: =SUM(N43:N45) -> 64
A56: Team Record | B56: W | C56: L | D56: T | E56: Pts | F56: CP | G56: BPF | H56: BFA | I56: Streak
A57: Riketorians | B57: 6 | C57: 7 | D57: 1 | E57: =2*B57+D57 -> 13 | F57: =R36+R38 -> 807 | G57: =SUM(B61,B65,B69,B73,B77,F61,F65,F69,F73,F77,J61,J65,J69,J73,J77,N61,N65,N69,N73,N77,R61,R65) -> 726 | H57: =SUM(B62,B66,B70,B74,B78,F62,F66,F70,F74,F78,J62,J66,J70,J74,J78,N62,N66,N70,N74,N78,R62,R66) -> 755 | I57: Won 2
A60: Game 1 | B60: Score | D60: Game 6 | F60: Score | H60: Game 11 | J60: Score | L60: Game 16 | N60: Score | P60: Game 21 | R60: Score
A61: Riketorians | B61: 49 | D61: Riketorians | F61: 50 | H61: Riketorians | J61: 40 | L61: Riketorians | N61: 0 | P61: Riketorians | R61: 0
A62: Damn Yankees | B62: 38 | D62: Arcane Sanctuary | F62: 44 | H62: Grumpy Old Men | J62: 44 | L62: District 5 | N62: 0 | P62: Damn Yankees | R62: 0
A64: Game 2 | B64: Score | D64: Game 7 | F64: Score | H64: Game 12 | J64: Score | L64: Game 17 | N64: Score | P64: Game 22 | R64: Score
A65: Riketorians | B65: 60 | D65: Riketorians | F65: 46 | H65: Riketorians | J65: 44 | L65: Riketorians | N65: 0 | P65: Riketorians | R65: 0
A66: Grumpy Old Men | B66: 63 | D66: District 5 | F66: 52 | H66: Shawnee Tribe | J66: 44 | L66: Slappers | N66: 0 | P66: Highlanders | R66: 0
A68: Game 3 | B68: Score | D68: Game 8 | F68: Score | H68: Game 13 | J68: Score | L68: Game 18 | N68: Score
A69: Riketorians | B69: 46 | D69: Riketorians | F69: 63 | H69: Riketorians | J69: 74 | L69: Riketorians | N69: 0
A70: Shawnee Tribe | B70: 60 | D70: Just Chillin | F70: 61 | H70: Damn Yankees | J70: 71 | L70: Just Chillin | N70: 0
A72: Game 4 | B72: Score | D72: Game 9 | F72: Score | H72: Game 14 | J72: Score | L72: Game 19 | N72: Score
A73: Riketorians | B73: 53 | D73: Riketorians | F73: 47 | H73: Riketorians | J73: 64 | L73: Riketorians | N73: 0
A74: Just Chillin | B74: 52 | D74: Ravens | F74: 52 | H74: Highlanders | J74: 57 | L74: Arcane Sanctuary | N74: 0
A76: Game 5 | B76: Score | D76: Game 10 | F76: Score | H76: Game 15 | J76: Score | L76: Game 20 | N76: Score
A77: Riketorians | B77: 41 | D77: Riketorians | F77: 49 | H77: Riketorians | J77: 0 | L77: Riketorians | N77: 0
A78: Highlanders | B78: 60 | D78: Slappers | F78: 57 | H78: Shawnee Tribe | J78: 0 | L78: Ravens | N78: 0

Sheet Arcane Sanctuary
A1: Team: Arcane Sanctuary | D1: General Manager: Nick Meola
D3: Scoring This Week | N3: Players Overall Scoring
A4: Forwards | B4: Gls | C4: Ast | D4: PP | E4: SH | F4: GW | G4: OT | H4: PSG | I4: PTS | K4: Gls | L4: Ast | M4: PP | N4: SH | O4: GW | P4: OT | Q4: PSG | R4: PTS
A5: John Tavares | B5: 1 | C5: 2 | D5: 1 | E5: 0 | F5: 0 | G5: 0 | H5: 0 | I5: =(B5+C5+D5+(2*E5)+(2*F5)+G5+(4*H5)) -> 4 | K5: 20 | L5: 22 | M5: 7 | N5: 0 | O5: 6 | P5: 1 | Q5: 0 | R5: =(K5+L5+M5+(2*N5)+(2*O5)+P5+(4*Q5)) -> 62
A6: Alex Tuch | B6: 2 | C6: 1 | D6: 0 | E6: 0 | F6: 0 | G6: 0 | H6: 0 | I6: =(B6+C6+D6+(2*E6)+(2*F6)+G6+(4*H6)) -> 3 | K6: 14 | L6: 17 | M6: 0 | N6: 3 | O6: 1 | P6: 0 | Q6: 0 | R6: =(K6+L6+M6+(2*N6)+(2*O6)+P6+(4*Q6)) -> 39
A7: Nathan MacKinnon | B7: 1 | C7: 2 | D7: 0 | E7: 0 | F7: 0 | G7: 0 | H7: 0 | I7: =(B7+C7+D7+(2*E7)+(2*F7)+G7+(4*H7)) -> 3 | K7: 15 | L7: 53 | M7: 3 | N7: 0 | O7: 3 | P7: 1 | Q7: 0 | R7: =(K7+L7+M7+(2*N7)+(2*O7)+P7+(4*Q7)) -> 78
A8: Anthony Cirelli | B8: 1 | C8: 0 | D8: 0 | E8: 1 | F8: 0 | G8: 0 | H8: 0 | I8: =(B8+C8+D8+(2*E8)+(2*F8)+G8+(4*H8)) -> 3 | K8: 16 | L8: 18 | M8: 2 | N8: 3 | O8: 1 | P8: 0 | Q8: 0 | R8: =(K8+L8+M8+(2*N8)+(2*O8)+P8+(4*Q8)) -> 44
A9: Nazem Kadri | B9: 1 | C9: 1 | D9: 0 | E9: 0 | F9: 0 | G9: 0 | H9: 0 | I9: =(B9+C9+D9+(2*E9)+(2*F9)+G9+(4*H9)) -> 2 | K9: 15 | L9: 14 | M9: 2 | N9: 0 | O9: 2 | P9: 0 | Q9: 0 | R9: =(K9+L9+M9+(2*N9)+(2*O9)+P9+(4*Q9)) -> 35
A10: Brady Tkachuk | B10: 1 | C10: 0 | D10: 1 | E10: 0 | F10: 0 | G10: 0 | H10: 0 | I10: =(B10+C10+D10+(2*E10)+(2*F10)+G10+(4*H10)) -> 2 | K10: 18 | L10: 20 | M10: 9 | N10: 0 | O10: 4 | P10: 3 | Q10: 0 | R10: =(K10+L10+M10+(2*N10)+(2*O10)+P10+(4*Q10)) -> 58
A11: Paul Cotter | B11: 1 | C11: 0 | D11: 0 | E11: 0 | F11: 0 | G11: 0 | H11: 0 | I11: =(B11+C11+D11+(2*E11)+(2*F11)+G11+(4*H11)) -> 1 | K11: 10 | L11: 6 | M11: 0 | N11: 0 | O11: 2 | P11: 0 | Q11: 0 | R11: =(K11+L11+M11+(2*N11)+(2*O11)+P11+(4*Q11)) -> 20
A12: Brad Marchand | B12: 0 | C12: 1 | D12: 0 | E12: 0 | F12: 0 | G12: 0 | H12: 0 | I12: =(B12+C12+D12+(2*E12)+(2*F12)+G12+(4*H12)) -> 1 | K12: 15 | L12: 18 | M12: 2 | N12: 0 | O12: 4 | P12: 2 | Q12: 1 | R12: =(K12+L12+M12+(2*N12)+(2*O12)+P12+(4*Q12)) -> 49
A13: Timo Meier | B13: 0 | C13: 1 | D13: 0 | E13: 0 | F13: 0 | G13: 0 | H13: 0 | I13: =(B13+C13+D13+(2*E13)+(2*F13)+G13+(4*H13)) -> 1 | K13: 14 | L13: 15 | M13: 3 | N13: 0 | O13: 2 | P13: 0 | Q13: 0 | R13: =(K13+L13+M13+(2*N13)+(2*O13)+P13+(4*Q13)) -> 36
A14: Chris Kreider | B14: 0 | C14: 0 | D14: 0 | E14: 0 | F14: 0 | G14: 0 | H14: 0 | I14: =(B14+C14+D14+(2*E14)+(2*F14)+G14+(4*H14)) -> 0 | K14: 13 | L14: 2 | M14: 5 | N14: 2 | O14: 4 | P14: 0 | Q14: 0 | R14: =(K14+L14+M14+(2*N14)+(2*O14)+P14+(4*Q14)) -> 32
A15: Mason Marchment | B15: 0 | C15: 0 | D15: 0 | E15: 0 | F15: 0 | G15: 0 | H15: 0 | I15: =(B15+C15+D15+(2*E15)+(2*F15)+G15+(4*H15)) -> 0 | K15: 12 | L15: 15 | M15: 1 | N15: 0 | O15: 3 | P15: 0 | Q15: 0 | R15: =(K15+L15+M15+(2*N15)+(2*O15)+P15+(4*Q15)) -> 34
A18: Defense | B18: Gls | C18: Ast | D18: PP | E18: SH | F18: GW | G18: OT | H18: PSG | I18: PTS | K18: Gls | L18: Ast | M18: PP | N18: SH | O18: GW | P18: OT | Q18: PSG | R18: PTS
A19: Dmitry Orlov | B19: 0 | C19: 3 | D19: 0 | E19: 0 | F19: 0 | G19: 0 | H19: 0 | I19: =(B19+C19+D19+(2*E19)+(2*F19)+G19+(4*H19)) -> 3 | K19: 4 | L19: 16 | M19: 0 | N19: 0 | O19: 1 | P19: 0 | Q19: 0 | R19: =(K19+L19+M19+(2*N19)+(2*O19)+P19+(4*Q19)) -> 22
A20: Victor Hedman | B20: 1 | C20: 1 | D20: 0 | E20: 0 | F20: 0 | G20: 0 | H20: 0 | I20: =(B20+C20+D20+(2*E20)+(2*F20)+G20+(4*H20)) -> 2 | K20: 6 | L20: 25 | M20: 1 | N20: 0 | O20: 1 | P20: 0 | Q20: 0 | R20: =(K20+L20+M20+(2*N20)+(2*O20)+P20+(4*Q20)) -> 34
A21: Gustav Forsling | B21: 0 | C21: 2 | D21: 0 | E21: 0 | F21: 0 | G21: 0 | H21: 0 | I21: =(B21+C21+D21+(2*E21)+(2*F21)+G21+(4*H21)) -> 2 | K21: 6 | L21: 11 | M21: 0 | N21: 1 | O21: 1 | P21: 1 | Q21: 0 | R21: =(K21+L21+M21+(2*N21)+(2*O21)+P21+(4*Q21)) -> 22
A22: Adam Larsson | B22: 1 | C22: 0 | D22: 0 | E22: 0 | F22: 0 | G22: 0 | H22: 0 | I22: =(B22+C22+D22+(2*E22)+(2*F22)+G22+(4*H22)) -> 1 | K22: 2 | L22: 6 | M22: 0 | N22: 0 | O22: 0 | P22: 0 | Q22: 0 | R22: =(K22+L22+M22+(2*N22)+(2*O22)+P22+(4*Q22)) -> 8
A23: Noah Dobson | B23: 0 | C23: 1 | D23: 0 | E23: 0 | F23: 0 | G23: 0 | H23: 0 | I23: =(B23+C23+D23+(2*E23)+(2*F23)+G23+(4*H23)) -> 1 | K23: 5 | L23: 16 | M23: 0 | N23: 0 | O23: 0 | P23: 0 | Q23: 0 | R23: =(K23+L23+M23+(2*N23)+(2*O23)+P23+(4*Q23)) -> 21
A24: Darnell Nurse | B24: 0 | C24: 0 | D24: 0 | E24: 0 | F24: 0 | G24: 0 | H24: 0 | I24: =(B24+C24+D24+(2*E24)+(2*F24)+G24+(4*H24)) -> 0 | K24: 4 | L24: 13 | M24: 0 | N24: 1 | O24: 1 | P24: 1 | Q24: 0 | R24: =(K24+L24+M24+(2*N24)+(2*O24)+P24+(4*Q24)) -> 22
A25: Samuel Girard | B25: 0 | C25: 0 | D25: 0 | E25: 0 | F25: 0 | G25: 0 | H25: 0 | I25: =(B25+C25+D25+(2*E25)+(2*F25)+G25+(4*H25)) -> 0 | K25: 2 | L25: 16 | M25: 0 | N25: 0 | O25: 1 | P25: 1 | Q25: 0 | R25: =(K25+L25+M25+(2*N25)+(2*O25)+P25+(4*Q25)) -> 21
A27: Goalie | B27: W | C27: OT | D27: SO | E27: Gls | F27: Ast | G27: GAA | H27: SP | I27: PTS | K27: W | L27: OT | M27: SO | N27: Gls | O27: Ast | P27: GAA | Q27: SP | R27: PTS
A28: David Rittich | B28: 0 | C28: 0 | D28: 0 | E28: 0 | F28: 0 | G28: 2.02 | H28: 0.889 | I28: =((3*B28)+C28+(3*D28)+(10*E28)+(3*F28)+G29+H29) -> 2 | K28: 11 | L28: 0 | M28: 0 | N28: 0 | O28: 0 | P28: 2.52 | Q28: 0.887 | R28: =((3*K28)+L28+(3*M28)+(10*N28)+(3*O28)+P29+Q29) -> 65
B29: 2 | C29: 59.51 | D29: 16 | E29: 18 | G29: 2 | H29: 0 | I29: =((3*B28)+C28+(3*D28)+(10*E28)+(3*F28)+G29+H29) -> 2 | P29: 16 | Q29: 16 | R29: =((2*K28)+L28+(3*M28)+(10*N28)+(3*O28)+P29+Q29) -> 54
A30: Anthony Stolarz | B30: 0 | C30: 0 | D30: 0 | E30: 0 | F30: 0 | G30: 0 | H30: 0 | I30: =((3*B30)+C30+(3*D30)+(10*E30)+(3*F30)+G31+H31) -> 0 | K30: 9 | L30: 2 | M30: 1 | N30: 0 | O30: 0 | P30: 2.15 | Q30: 0.927 | R30: =((3*K30)+L30+(3*M30)+(10*N30)+(3*O30)+P31+Q31) -> 78
B31: 0 | C31: 0 | D31: 0 | E31: 0 | G31: 0 | H31: 0 | I31: =((3*B30)+C30+(3*D30)+(10*E30)+(3*F30)+G31+H31) -> 0 | P31: 18 | Q31: 28 | R31: =((2*K30)+L30+(3*M30)+(10*N30)+(3*O30)+P31+Q31) -> 69
D32: All Playes Scoring This Week | N32: Cumulative Points
B33: Gls | C33: Ast | D33: PP | E33: SH | F33: GW | G33: OT | H33: PSG | K33: Gls | L33: Ast | M33: PP | N33: SH | O33: GW | P33: OT | Q33: PSG | R33: PTS
A34: Forwards | B34: =SUM(B5:B15) -> 8 | C34: =SUM(C5:C15) -> 8 | D34: 2 | E34: 1 | F34: 0 | G34: 0 | H34: 0 | K34: 153 | L34: 185 | M34: 34 | N34: 8 | O34: 28 | P34: 7 | Q34: 1 | R34: =(K34+L34+M34+(2*N34)+(2*O34)+P34+(4*Q34)) -> 455
A35: Defense | B35: =SUM(B19:B25) -> 2 | C35: =SUM(C19:C25) -> 7 | D35: 0 | E35: 0 | F35: 0 | G35: 0 | H35: 0 | K35: 28 | L35: 95 | M35: 1 | N35: 2 | O35: 4 | P35: 2 | Q35: 0 | R35: =(K35+L35+M35+(2*N35)+(2*O35)+P35+(4*Q35)) -> 138
A36: Total Scorers | B36: =SUM(B34:B35) -> 10 | C36: =SUM(C34:C35) -> 15 | D36: 2 | E36: 1 | F36: 0 | G36: 0 | H36: 0 | K36: =SUM(K34:K35) -> 181 | L36: 280 | M36: 35 | N36: 10 | O36: 32 | P36: 9 | Q36: 1 | R36: =(K36+L36+M36+(2*N36)+(2*O36)+P36+(4*Q36)) -> 593
B37: W | C37: OT | D37: SO | E37: Gls | F37: Ast | G37: GAA | H37: SP | K37: W | L37: OT | M37: SO | N37: Gls | O37: Ast | P37: GAA | Q37: SP | R37: PTS
A38: Goalie Totals | B38: =SUM(B28,B30) -> 0 | C38: =SUM(C28,C30) -> 0 | D38: =SUM(D28,D30) -> 0 | E38: =SUM(E28,E30) -> 0 | F38: =SUM(F28,F30) -> 0 | G38: =IF(C39=0,0,B39/(C39/60)) -> 2.016467821 | H38: =IF(E39=0,0,D39/E39) -> 0.8888888889 | K38: 12 | L38: 4 | M38: 1 | N38: 0 | O38: 0 | P38: =IF(L39=0,0,K39/(L39/60)) -> 2.81227235 | Q38: =IF(N39=0,0,M39/N39) -> 0.9013079667 | R38: =((3*K38)+L38+(3*M38)+(10*N38)+(3*O38)+P39+Q39) -> 87
B39: =SUM(B29,B31) -> 2 | C39: =SUM(C29,C31) -> 59.51 | D39: =SUM(D29,D31) -> 16 | E39: =SUM(E29,E31) -> 18 | K39: 83 | L39: 1770.81 | M39: 758 | N39: 841 | P39: 20 | Q39: 24
K40: GA | L40: Time | M40: Saves | N40: Shots
B42: Injured Reserve | M42: This Weeks Totals
A43: Player | B43: P | C43: GP | D43: IR Weeks | E43: Pts | L43: Forwards | N43: =SUM(I5:I12) -> 19
B44: F | L44: Defense | N44: =SUM(I19:I23) -> 9
B45: D | L45: Goalie | N45: =I28 -> 2
B46: G
B47: Flex | L47: Total Points | N47: =SUM(N43:N45) -> 30
A56: Team Record | B56: W | C56: L | D56: T | E56: Pts | F56: CP | G56: BPF | H56: BFA | I56: Streak
A57: Arcane Sanctuary | B57: 2 | C57: 11 | D57: 1 | E57: =2*B57+D57 -> 5 | F57: =R36+R38 -> 680 | G57: =SUM(B61,B65,B69,B73,B77,F61,F65,F69,F73,F77,J61,J65,J69,J73,J77,N61,N65,N69,N73,N77,R61,R65) -> 656 | H57: =SUM(B62,B66,B70,B74,B78,F62,F66,F70,F74,F78,J62,J66,J70,J74,J78,N62,N66,N70,N74,N78,R62,R66) -> 753 | I57: Lost 4
A60: Game 1 | B60: Score | D60: Game 6 | F60: Score | H60: Game 11 | J60: Score | L60: Game 16 | N60: Score | P60: Game 21 | R60: Score
A61: Arcane Sanctuary | B61: 44 | D61: Arcane Sanctuary | F61: 44 | H61: Arcane Sanctuary | J61: 22 | L61: Arcane Sanctuary | N61: 0 | P61: Arcane Sanctuary | R61: 0
A62: Highlanders | B62: 25 | D62: Riketorians | F62: 50 | H62: Highlanders | J62: 27 | L62: Shawnee Tribe | N62: 0 | P62: Ravens | R62: 0
A64: Game 2 | B64: Score | D64: Game 7 | F64: Score | H64: Game 12 | J64: Score | L64: Game 17 | N64: Score | P64: Game 22 | R64: Score
A65: Arcane Sanctuary | B65: 55 | D65: Arcane Sanctuary | F65: 39 | H65: Arcane Sanctuary | J65: 32 | L65: Arcane Sanctuary | N65: 0 | P65: Arcane Sanctuary | R65: 0
A66: Ravens | B66: 65 | D66: Damn Yankees | F66: 48 | H66: Just Chillin | J66: 51 | L66: District 5 | N66: 0 | P66: Damn Yankees | R66: 0
A68: Game 3 | B68: Score | D68: Game 8 | F68: Score | H68: Game 13 | J68: Score | L68: Game 18 | N68: Score
A69: Arcane Sanctuary | B69: 53 | D69: Arcane Sanctuary | F69: 44 | H69: Arcane Sanctuary | J69: 50 | L69: Arcane Sanctuary | N69: 0
A70: District 5 | B70: 65 | D70: District 5 | F70: 45 | H70: Ravens | J70: 89 | L70: Grumpy Old Men | N70: 0
A72: Game 4 | B72: Score | D72: Game 9 | F72: Score | H72: Game 14 | J72: Score | L72: Game 19 | N72: Score
A73: Arcane Sanctuary | B73: 55 | D73: Arcane Sanctuary | F73: 53 | H73: Arcane Sanctuary | J73: 30 | L73: Arcane Sanctuary | N73: 0
A74: Grumpy Old Men | B74: 58 | D74: Slappers | F74: 58 | H74: Grumpy Old Men | J74: 59 | L74: Riketorians | N74: 0
A76: Game 5 | B76: Score | D76: Game 10 | F76: Score | H76: Game 15 | J76: Score | L76: Game 20 | N76: Score
A77: Arcane Sanctuary | B77: 73 | D77: Arcane Sanctuary | F77: 62 | H77: Arcane Sanctuary | J77: 0 | L77: Arcane Sanctuary | N77: 0
A78: Slappers | B78: 73 | D78: Shawnee Tribe | F78: 40 | H78: Slappers | J78: 0 | L78: Just Chillin | N78: 0

Sheet Highlanders
A1: Team: Highlanders | C1: General Manager: Anthony J. Porfido
D3: Scoring This Week | N3: Players Overall Scoring
A4: Forwards | B4: Gls | C4: Ast | D4: PP | E4: SH | F4: GW | G4: OT | H4: PSG | I4: PTS | K4: Gls | L4: Ast | M4: PP | N4: SH | O4: GW | P4: OT | Q4: PSG | R4: PTS
A5: Nick Suzuki | B5: 2 | C5: 3 | D5: 1 | E5: 0 | F5: 2 | G5: 2 | H5: 0 | I5: =(B5+C5+D5+(2*E5)+(2*F5)+G5+(4*H5)) -> 12 | K5: 13 | L5: 30 | M5: 2 | N5: 0 | O5: 5 | P5: 4 | Q5: 0 | R5: =(K5+L5+M5+(2*N5)+(2*O5)+P5+(4*Q5)) -> 59
A6: Patrick Kane | B6: 1 | C6: 3 | D6: 1 | E6: 0 | F6: 1 | G6: 1 | H6: 0 | I6: =(B6+C6+D6+(2*E6)+(2*F6)+G6+(4*H6)) -> 8 | K6: 9 | L6: 16 | M6: 5 | N6: 0 | O6: 4 | P6: 1 | Q6: 0 | R6: =(K6+L6+M6+(2*N6)+(2*O6)+P6+(4*Q6)) -> 39
A7: Mathew Barzal | B7: 1 | C7: 3 | D7: 0 | E7: 0 | F7: 1 | G7: 0 | H7: 0 | I7: =(B7+C7+D7+(2*E7)+(2*F7)+G7+(4*H7)) -> 6 | K7: 4 | L7: 9 | M7: 1 | N7: 0 | O7: 1 | P7: 0 | Q7: 0 | R7: =(K7+L7+M7+(2*N7)+(2*O7)+P7+(4*Q7)) -> 16
A8: Leon Draisaitl | B8: 2 | C8: 2 | D8: 0 | E8: 0 | F8: 0 | G8: 0 | H8: 0 | I8: =(B8+C8+D8+(2*E8)+(2*F8)+G8+(4*H8)) -> 4 | K8: 31 | L8: 32 | M8: 7 | N8: 0 | O8: 9 | P8: 4 | Q8: 0 | R8: =(K8+L8+M8+(2*N8)+(2*O8)+P8+(4*Q8)) -> 92
A9: Dylan Larkin | B9: 1 | C9: 1 | D9: 1 | E9: 0 | F9: 0 | G9: 0 | H9: 0 | I9: =(B9+C9+D9+(2*E9)+(2*F9)+G9+(4*H9)) -> 3 | K9: 17 | L9: 18 | M9: 9 | N9: 0 | O9: 2 | P9: 0 | Q9: 0 | R9: =(K9+L9+M9+(2*N9)+(2*O9)+P9+(4*Q9)) -> 48
A10: Dylan Strome | B10: 0 | C10: 2 | D10: 0 | E10: 0 | F10: 0 | G10: 0 | H10: 0 | I10: =(B10+C10+D10+(2*E10)+(2*F10)+G10+(4*H10)) -> 2 | K10: 12 | L10: 34 | M10: 3 | N10: 0 | O10: 1 | P10: 0 | Q10: 0 | R10: =(K10+L10+M10+(2*N10)+(2*O10)+P10+(4*Q10)) -> 51
A11: Aleksander Barkov | B11: 0 | C11: 2 | D11: 0 | E11: 0 | F11: 0 | G11: 0 | H11: 0 | I11: =(B11+C11+D11+(2*E11)+(2*F11)+G11+(4*H11)) -> 2 | K11: 11 | L11: 26 | M11: 5 | N11: 1 | O11: 1 | P11: 1 | Q11: 0 | R11: =(K11+L11+M11+(2*N11)+(2*O11)+P11+(4*Q11)) -> 47
A12: William Nylander | B12: 1 | C12: 0 | D12: 0 | E12: 0 | F12: 0 | G12: 0 | H12: 0 | I12: =(B12+C12+D12+(2*E12)+(2*F12)+G12+(4*H12)) -> 1 | K12: 24 | L12: 20 | M12: 7 | N12: 0 | O12: 5 | P12: 0 | Q12: 0 | R12: =(K12+L12+M12+(2*N12)+(2*O12)+P12+(4*Q12)) -> 61
A13: Josh Norris | B13: 0 | C13: 1 | D13: 0 | E13: 0 | F13: 0 | G13: 0 | H13: 0 | I13: =(B13+C13+D13+(2*E13)+(2*F13)+G13+(4*H13)) -> 1 | K13: 14 | L13: 9 | M13: 5 | N13: 1 | O13: 4 | P13: 1 | Q13: 0 | R13: =(K13+L13+M13+(2*N13)+(2*O13)+P13+(4*Q13)) -> 39
A14: Connor McMichael | B14: 0 | C14: 1 | D14: 0 | E14: 0 | F14: 0 | G14: 0 | H14: 0 | I14: =(B14+C14+D14+(2*E14)+(2*F14)+G14+(4*H14)) -> 1 | K14: 17 | L14: 15 | M14: 4 | N14: 0 | O14: 4 | P14: 0 | Q14: 0 | R14: =(K14+L14+M14+(2*N14)+(2*O14)+P14+(4*Q14)) -> 44
A15: Kyle Palmieri | B15: 0 | C15: 1 | D15: 0 | E15: 0 | F15: 0 | G15: 0 | H15: 0 | I15: =(B15+C15+D15+(2*E15)+(2*F15)+G15+(4*H15)) -> 1 | K15: 12 | L15: 15 | M15: 2 | N15: 0 | O15: 1 | P15: 0 | Q15: 0 | R15: =(K15+L15+M15+(2*N15)+(2*O15)+P15+(4*Q15)) -> 31
A18: Defense | B18: Gls | C18: Ast | D18: PP | E18: SH | F18: GW | G18: OT | H18: PSG | I18: PTS | K18: Gls | L18: Ast | M18: PP | N18: SH | O18: GW | P18: OT | Q18: PSG | R18: PTS
A19: Adam Fox | B19: 1 | C19: 4 | D19: 1 | E19: 0 | F19: 0 | G19: 0 | H19: 0 | I19: =(B19+C19+D19+(2*E19)+(2*F19)+G19+(4*H19)) -> 6 | K19: 2 | L19: 31 | M19: 1 | N19: 0 | O19: 1 | P19: 0 | Q19: 0 | R19: =(K19+L19+M19+(2*N19)+(2*O19)+P19+(4*Q19)) -> 36
A20: Josh Morrissey | B20: 1 | C20: 1 | D20: 0 | E20: 0 | F20: 0 | G20: 0 | H20: 0 | I20: =(B20+C20+D20+(2*E20)+(2*F20)+G20+(4*H20)) -> 2 | K20: 5 | L20: 34 | M20: 1 | N20: 0 | O20: 0 | P20: 0 | Q20: 0 | R20: =(K20+L20+M20+(2*N20)+(2*O20)+P20+(4*Q20)) -> 40
A21: Thomas Chabot | B21: 1 | C21: 1 | D21: 0 | E21: 0 | F21: 0 | G21: 0 | H21: 0 | I21: =(B21+C21+D21+(2*E21)+(2*F21)+G21+(4*H21)) -> 2 | K21: 3 | L21: 16 | M21: 0 | N21: 0 | O21: 0 | P21: 0 | Q21: 0 | R21: =(K21+L21+M21+(2*N21)+(2*O21)+P21+(4*Q21)) -> 19
A22: Shea Theodore | B22: 0 | C22: 2 | D22: 0 | E22: 0 | F22: 0 | G22: 0 | H22: 0 | I22: =(B22+C22+D22+(2*E22)+(2*F22)+G22+(4*H22)) -> 2 | K22: 4 | L22: 29 | M22: 0 | N22: 0 | O22: 1 | P22: 0 | Q22: 0 | R22: =(K22+L22+M22+(2*N22)+(2*O22)+P22+(4*Q22)) -> 35
A23: Jake Sanderson | B23: 0 | C23: 2 | D23: 0 | E23: 0 | F23: 0 | G23: 0 | H23: 0 | I23: =(B23+C23+D23+(2*E23)+(2*F23)+G23+(4*H23)) -> 2 | K23: 2 | L23: 21 | M23: 1 | N23: 0 | O23: 1 | P23: 1 | Q23: 0 | R23: =(K23+L23+M23+(2*N23)+(2*O23)+P23+(4*Q23)) -> 27
A24: Simon Edvinsson | B24: 0 | C24: 2 | D24: 0 | E24: 0 | F24: 0 | G24: 0 | H24: 0 | I24: =(B24+C24+D24+(2*E24)+(2*F24)+G24+(4*H24)) -> 2 | K24: 4 | L24: 12 | M24: 0 | N24: 0 | O24: 1 | P24: 1 | Q24: 0 | R24: =(K24+L24+M24+(2*N24)+(2*O24)+P24+(4*Q24)) -> 19
A25: Owen Power | B25: 0 | C25: 0 | D25: 0 | E25: 0 | F25: 0 | G25: 0 | H25: 0 | I25: =(B25+C25+D25+(2*E25)+(2*F25)+G25+(4*H25)) -> 0 | K25: 5 | L25: 17 | M25: 0 | N25: 0 | O25: 0 | P25: 0 | Q25: 0 | R25: =(K25+L25+M25+(2*N25)+(2*O25)+P25+(4*Q25)) -> 22
A27: Goalie | B27: W | C27: OT | D27: SO | E27: Gls | F27: Ast | G27: GAA | H27: SP | I27: PTS | K27: W | L27: OT | M27: SO | N27: Gls | O27: Ast | P27: GAA | Q27: SP | R27: PTS
A28: Stuart Skinner | B28: 1 | C28: 0 | D28: 0 | E28: 0 | F28: 0 | G28: 2.69 | H28: 0.904 | I28: =((3*B28)+C28+(3*D28)+(10*E28)+(3*F28)+G29+H29) -> 5 | K28: 16 | L28: 3 | M28: 1 | N28: 0 | O28: 0 | P28: 2.77 | Q28: 0.898 | R28: =((3*K28)+L28+(3*M28)+(10*N28)+(3*O28)+P29+Q29) -> 102
B29: 5 | C29: 111.65 | D29: 47 | E29: 52 | G29: 1 | H29: 1 | I29: =((3*B28)+C28+(3*D28)+(10*E28)+(3*F28)+G29+H29) -> 5 | P29: 21 | Q29: 27 | R29: =((2*K28)+L28+(3*M28)+(10*N28)+(3*O28)+P29+Q29) -> 86
A30: Filip Gustavsson | B30: 0 | C30: 0 | D30: 0 | E30: 0 | F30: 0 | G30: 7.1 | H30: 0.778 | I30: =((3*B30)+C30+(3*D30)+(10*E30)+(3*F30)+G31+H31) -> 0 | K30: 18 | L30: 3 | M30: 3 | N30: 1 | O30: 1 | P30: 2.44 | Q30: 0.918 | R30: =((3*K30)+L30+(3*M30)+(10*N30)+(3*O30)+P31+Q31) -> 138
B31: 10 | C31: 84.55 | D31: 35 | E31: 45 | G31: 0 | H31: 0 | I31: =((3*B30)+C30+(3*D30)+(10*E30)+(3*F30)+G31+H31) -> 0 | P31: 24 | Q31: 35 | R31: =((2*K30)+L30+(3*M30)+(10*N30)+(3*O30)+P31+Q31) -> 120
D32: All Playes Scoring This Week | N32: Cumulative Points
B33: Gls | C33: Ast | D33: PP | E33: SH | F33: GW | G33: OT | H33: PSG | K33: Gls | L33: Ast | M33: PP | N33: SH | O33: GW | P33: OT | Q33: PSG | R33: PTS
A34: Forwards | B34: =SUM(B5:B15) -> 8 | C34: =SUM(C5:C15) -> 19 | D34: 3 | E34: 0 | F34: 4 | G34: 3 | H34: 0 | K34: 156 | L34: 216 | M34: 54 | N34: 2 | O34: 36 | P34: 11 | Q34: 0 | R34: =(K34+L34+M34+(2*N34)+(2*O34)+P34+(4*Q34)) -> 513
A35: Defense | B35: =SUM(B19:B25) -> 3 | C35: =SUM(C19:C25) -> 12 | D35: 1 | E35: 0 | F35: 0 | G35: 0 | H35: 0 | K35: 26 | L35: 149 | M35: 2 | N35: 0 | O35: 4 | P35: 2 | Q35: 0 | R35: =(K35+L35+M35+(2*N35)+(2*O35)+P35+(4*Q35)) -> 187
A36: Total Scorers | B36: =SUM(B34:B35) -> 11 | C36: =SUM(C34:C35) -> 31 | D36: 4 | E36: 0 | F36: 4 | G36: 3 | H36: 0 | K36: =SUM(K34:K35) -> 182 | L36: 365 | M36: 56 | N36: 2 | O36: 40 | P36: 13 | Q36: 0 | R36: =(K36+L36+M36+(2*N36)+(2*O36)+P36+(4*Q36)) -> 700
B37: W | C37: OT | D37: SO | E37: Gls | F37: Ast | G37: GAA | H37: SP | K37: W | L37: OT | M37: SO | N37: Gls | O37: Ast | P37: GAA | Q37: SP | R37: PTS
A38: Goalie Totals | B38: =SUM(B28,B30) -> 1 | C38: =SUM(C28,C30) -> 0 | D38: =SUM(D28,D30) -> 0 | E38: =SUM(E28,E30) -> 0 | F38: =SUM(F28,F30) -> 0 | G38: =IF(C39=0,0,B39/(C39/60)) -> 4.587155963 | H38: =IF(E39=0,0,D39/E39) -> 0.8453608247 | K38: 31 | L38: 6 | M38: 4 | N38: 0 | O38: 1 | P38: =IF(L39=0,0,K39/(L39/60)) -> 2.773458839 | Q38: =IF(N39=0,0,M39/N39) -> 0.9024081115 | R38: =((3*K38)+L38+(3*M38)+(10*N38)+(3*O38)+P39+Q39) -> 206
B39: =SUM(B29,B31) -> 15 | C39: =SUM(C29,C31) -> 196.2 | D39: =SUM(D29,D31) -> 82 | E39: =SUM(E29,E31) -> 97 | K39: 154 | L39: 3331.58 | M39: 1424 | N39: 1578 | P39: 39 | Q39: 53
K40: GA | L40: Time | M40: Saves | N40: Shots
B42: Injured Reserve | M42: This Weeks Totals
A43: Player | B43: P | C43: GP | D43: IR Weeks | E43: Pts | L43: Forwards | N43: =SUM(I5:I12) -> 38
A44: Elias Pettersson | B44: F | C44: 2 | D44: 2 | E44: 36 | L44: Defense | N44: =SUM(I19:I23) -> 14
B45: D | L45: Goalie | N45: =I28 -> 5
B46: G
B47: Flex | L47: Total Points | N47: =SUM(N43:N45) -> 57
A48: Warning, Elias Pettersson must be returned to lineup by start of Week 16
A56: Team Record | B56: W | C56: L | D56: T | E56: Pts | F56: CP | G56: BPF | H56: BFA | I56: Streak
A57: Highlanders | B57: 9 | C57: 5 | D57: 0 | E57: =2*B57+D57 -> 18 | F57: =R36+R38 -> 906 | G57: =SUM(B61,B65,B69,B73,B77,F61,F65,F69,F73,F77,J61,J65,J69,J73,J77,N61,N65,N69,N73,N77,R61,R65) -> 796 | H57: =SUM(B62,B66,B70,B74,B78,F62,F66,F70,F74,F78,J62,J66,J70,J74,J78,N62,N66,N70,N74,N78,R62,R66) -> 748 | I57: Lost 2
A60: Game 1 | B60: Score | D60: Game 6 | F60: Score | H60: Game 11 | J60: Score | L60: Game 16 | N60: Score | P60: Game 21 | R60: Score
A61: Highlanders | B61: 25 | D61: Highlanders | F61: 74 | H61: Highlanders | J61: 27 | L61: Highlanders | N61: 0 | P61: Highlanders | R61: 0
A62: Arcane Sanctuary | B62: 44 | D62: Ravens | F62: 62 | H62: Arcane Sanctuary | J62: 22 | L62: Ravens | N62: 0 | P62: Just Chillin | R62: 0
A64: Game 2 | B64: Score | D64: Game 7 | F64: Score | H64: Game 12 | J64: Score | L64: Game 17 | N64: Score | P64: Game 22 | R64: Score
A65: Highlanders | B65: 44 | D65: Highlanders | F65: 52 | H65: Highlanders | J65: 58 | L65: Highlanders | N65: 0 | P65: Highlanders | R65: 0
A66: Shawnee Tribe | B66: 52 | D66: Grumpy Old Men | F66: 65 | H66: Damn Yankees | J66: 38 | L66: Shawnee Tribe | N66: 0 | P66: Riketorians | R66: 0
A68: Game 3 | B68: Score | D68: Game 8 | F68: Score | H68: Game 13 | J68: Score | L68: Game 18 | N68: Score
A69: Highlanders | B69: 58 | D69: Highlanders | F69: 65 | H69: Highlanders | J69: 83 | L69: Highlanders | N69: 0
A70: Just Chillin | B70: 56 | D70: Slappers | F70: 63 | H70: Just Chillin | J70: 85 | L70: District 5 | N70: 0
A72: Game 4 | B72: Score | D72: Game 9 | F72: Score | H72: Game 14 | J72: Score | L72: Game 19 | N72: Score
A73: Highlanders | B73: 52 | D73: Highlanders | F73: 72 | H73: Highlanders | J73: 57 | L73: Highlanders | N73: 0
A74: Damn Yankees | B74: 50 | D74: Shawnee Tribe | F74: 46 | H74: Riketorians | J74: 64 | L74: Grumpy Old Men | N74: 0
A76: Game 5 | B76: Score | D76: Game 10 | F76: Score | H76: Game 15 | J76: Score | L76: Game 20 | N76: Score
A77: Highlanders | B77: 60 | D77: Highlanders | F77: 69 | H77: Highlanders | J77: 0 | L77: Highlanders | N77: 0
A78: Riketorians | B78: 41 | D78: District 5 | F78: 60 | H78: Damn Yankees | J78: 0 | L78: Slappers | N78: 0

Sheet Damn Yankees
A1: Team: Damn Yankees | C1: General Manager: Ken Chmela
D3: Scoring This Week | N3: Players Overall Scoring
A4: Forwards | B4: Gls | C4: Ast | D4: PP | E4: SH | F4: GW | G4: OT | H4: PSG | I4: PTS | K4: Gls | L4: Ast | M4: PP | N4: SH | O4: GW | P4: OT | Q4: PSG | R4: PTS
A5: Auston Matthews | B5: 2 | C5: 3 | D5: 1 | E5: 0 | F5: 0 | G5: 0 | H5: 0 | I5: =(B5+C5+D5+(2*E5)+(2*F5)+G5+(4*H5)) -> 6 | K5: 14 | L5: 17 | M5: 4 | N5: 0 | O5: 1 | P5: 1 | Q5: 0 | R5: =(K5+L5+M5+(2*N5)+(2*O5)+P5+(4*Q5)) -> 38
A6: Tom Wilson | B6: 3 | C6: 0 | D6: 2 | E6: 0 | F6: 0 | G6: 0 | H6: 0 | I6: =(B6+C6+D6+(2*E6)+(2*F6)+G6+(4*H6)) -> 5 | K6: 19 | L6: 14 | M6: 9 | N6: 0 | O6: 3 | P6: 1 | Q6: 0 | R6: =(K6+L6+M6+(2*N6)+(2*O6)+P6+(4*Q6)) -> 49
A7: Mark Stone | B7: 2 | C7: 1 | D7: 1 | E7: 0 | F7: 0 | G7: 0 | H7: 0 | I7: =(B7+C7+D7+(2*E7)+(2*F7)+G7+(4*H7)) -> 4 | K7: 12 | L7: 24 | M7: 3 | N7: 0 | O7: 2 | P7: 0 | Q7: 0 | R7: =(K7+L7+M7+(2*N7)+(2*O7)+P7+(4*Q7)) -> 43
A8: J.T. Miller | B8: 2 | C8: 2 | D8: 0 | E8: 0 | F8: 0 | G8: 0 | H8: 0 | I8: =(B8+C8+D8+(2*E8)+(2*F8)+G8+(4*H8)) -> 4 | K8: 8 | L8: 21 | M8: 1 | N8: 0 | O8: 1 | P8: 1 | Q8: 0 | R8: =(K8+L8+M8+(2*N8)+(2*O8)+P8+(4*Q8)) -> 33
A9: Brandon Hagel | B9: 2 | C9: 2 | D9: 0 | E9: 0 | F9: 0 | G9: 0 | H9: 0 | I9: =(B9+C9+D9+(2*E9)+(2*F9)+G9+(4*H9)) -> 4 | K9: 19 | L9: 27 | M9: 0 | N9: 2 | O9: 1 | P9: 0 | Q9: 0 | R9: =(K9+L9+M9+(2*N9)+(2*O9)+P9+(4*Q9)) -> 52
A10: Kirill Marchenko | B10: 1 | C10: 3 | D10: 0 | E10: 0 | F10: 0 | G10: 0 | H10: 0 | I10: =(B10+C10+D10+(2*E10)+(2*F10)+G10+(4*H10)) -> 4 | K10: 18 | L10: 29 | M10: 2 | N10: 0 | O10: 1 | P10: 0 | Q10: 0 | R10: =(K10+L10+M10+(2*N10)+(2*O10)+P10+(4*Q10)) -> 51
A11: Bryan Rust | B11: 1 | C11: 3 | D11: 0 | E11: 0 | F11: 0 | G11: 0 | H11: 0 | I11: =(B11+C11+D11+(2*E11)+(2*F11)+G11+(4*H11)) -> 4 | K11: 16 | L11: 16 | M11: 2 | N11: 0 | O11: 4 | P11: 2 | Q11: 0 | R11: =(K11+L11+M11+(2*N11)+(2*O11)+P11+(4*Q11)) -> 44
A12: Tim Stützle | B12: 1 | C12: 1 | D12: 0 | E12: 0 | F12: 0 | G12: 0 | H12: 0 | I12: =(B12+C12+D12+(2*E12)+(2*F12)+G12+(4*H12)) -> 2 | K12: 13 | L12: 29 | M12: 2 | N12: 0 | O12: 0 | P12: 0 | Q12: 0 | R12: =(K12+L12+M12+(2*N12)+(2*O12)+P12+(4*Q12)) -> 44
A13: Clayton Keller | B13: 0 | C13: 2 | D13: 0 | E13: 0 | F13: 0 | G13: 0 | H13: 0 | I13: =(B13+C13+D13+(2*E13)+(2*F13)+G13+(4*H13)) -> 2 | K13: 14 | L13: 27 | M13: 4 | N13: 0 | O13: 3 | P13: 1 | Q13: 0 | R13: =(K13+L13+M13+(2*N13)+(2*O13)+P13+(4*Q13)) -> 52
A14: Anze Kopitar | B14: 0 | C14: 1 | D14: 0 | E14: 0 | F14: 0 | G14: 0 | H14: 0 | I14: =(B14+C14+D14+(2*E14)+(2*F14)+G14+(4*H14)) -> 1 | K14: 12 | L14: 28 | M14: 3 | N14: 0 | O14: 5 | P14: 0 | Q14: 0 | R14: =(K14+L14+M14+(2*N14)+(2*O14)+P14+(4*Q14)) -> 53
A15: Kevin Fiala | B15: 0 | C15: 0 | D15: 0 | E15: 0 | F15: 0 | G15: 0 | H15: 0 | I15: =(B15+C15+D15+(2*E15)+(2*F15)+G15+(4*H15)) -> 0 | K15: 14 | L15: 8 | M15: 5 | N15: 0 | O15: 2 | P15: 0 | Q15: 0 | R15: =(K15+L15+M15+(2*N15)+(2*O15)+P15+(4*Q15)) -> 31
A18: Defense | B18: Gls | C18: Ast | D18: PP | E18: SH | F18: GW | G18: OT | H18: PSG | I18: PTS | K18: Gls | L18: Ast | M18: PP | N18: SH | O18: GW | P18: OT | Q18: PSG | R18: PTS
A19: Thomas Harley | B19: 1 | C19: 2 | D19: 0 | E19: 0 | F19: 0 | G19: 0 | H19: 0 | I19: =(B19+C19+D19+(2*E19)+(2*F19)+G19+(4*H19)) -> 3 | K19: 6 | L19: 15 | M19: 0 | N19: 0 | O19: 1 | P19: 1 | Q19: 0 | R19: =(K19+L19+M19+(2*N19)+(2*O19)+P19+(4*Q19)) -> 24
A20: Roman Josi | B20: 1 | C20: 2 | D20: 0 | E20: 0 | F20: 0 | G20: 0 | H20: 0 | I20: =(B20+C20+D20+(2*E20)+(2*F20)+G20+(4*H20)) -> 3 | K20: 8 | L20: 20 | M20: 1 | N20: 0 | O20: 1 | P20: 0 | Q20: 0 | R20: =(K20+L20+M20+(2*N20)+(2*O20)+P20+(4*Q20)) -> 31
A21: Ryan Pulock | B21: 1 | C21: 2 | D21: 0 | E21: 0 | F21: 0 | G21: 0 | H21: 0 | I21: =(B21+C21+D21+(2*E21)+(2*F21)+G21+(4*H21)) -> 3 | K21: 2 | L21: 13 | M21: 0 | N21: 0 | O21: 0 | P21: 0 | Q21: 0 | R21: =(K21+L21+M21+(2*N21)+(2*O21)+P21+(4*Q21)) -> 15
A22: MacKenzie Weegar | B22: 1 | C22: 1 | D22: 0 | E22: 0 | F22: 0 | G22: 0 | H22: 0 | I22: =(B22+C22+D22+(2*E22)+(2*F22)+G22+(4*H22)) -> 2 | K22: 5 | L22: 17 | M22: 2 | N22: 0 | O22: 0 | P22: 0 | Q22: 0 | R22: =(K22+L22+M22+(2*N22)+(2*O22)+P22+(4*Q22)) -> 24
A23: Mikhail Sergachev | B23: 0 | C23: 1 | D23: 0 | E23: 0 | F23: 0 | G23: 0 | H23: 0 | I23: =(B23+C23+D23+(2*E23)+(2*F23)+G23+(4*H23)) -> 1 | K23: 8 | L23: 21 | M23: 2 | N23: 0 | O23: 3 | P23: 2 | Q23: 0 | R23: =(K23+L23+M23+(2*N23)+(2*O23)+P23+(4*Q23)) -> 39
A24: Travis Sanheim | B24: 0 | C24: 1 | D24: 0 | E24: 0 | F24: 0 | G24: 0 | H24: 0 | I24: =(B24+C24+D24+(2*E24)+(2*F24)+G24+(4*H24)) -> 1 | K24: 6 | L24: 16 | M24: 0 | N24: 0 | O24: 0 | P24: 0 | Q24: 0 | R24: =(K24+L24+M24+(2*N24)+(2*O24)+P24+(4*Q24)) -> 22
A25: Jared Spurgeon | B25: 0 | C25: 0 | D25: 0 | E25: 0 | F25: 0 | G25: 0 | H25: 0 | I25: =(B25+C25+D25+(2*E25)+(2*F25)+G25+(4*H25)) -> 0 | K25: 4 | L25: 9 | M25: 0 | N25: 0 | O25: 2 | P25: 1 | Q25: 0 | R25: =(K25+L25+M25+(2*N25)+(2*O25)+P25+(4*Q25)) -> 18
A27: Goalie | B27: W | C27: OT | D27: SO | E27: Gls | F27: Ast | G27: GAA | H27: SP | I27: PTS | K27: W | L27: OT | M27: SO | N27: Gls | O27: Ast | P27: GAA | Q27: SP | R27: PTS
A28: Darcy Kuemper | B28: 1 | C28: 0 | D28: 0 | E28: 0 | F28: 0 | G28: 0.98 | H28: 0.947 | I28: =((3*B28)+C28+(3*D28)+(10*E28)+(3*F28)+G29+H29) -> 13 | K28: 12 | L28: 5 | M28: 2 | N28: 0 | O28: 0 | P28: 2.16 | Q28: 0.921 | R28: =((3*K28)+L28+(3*M28)+(10*N28)+(3*O28)+P29+Q29) -> 113
B29: 1 | C29: 61.23 | D29: 18 | E29: 19 | G29: 5 | H29: 5 | I29: =((3*B28)+C28+(3*D28)+(10*E28)+(3*F28)+G29+H29) -> 13 | P29: 31 | Q29: 35 | R29: =((2*K28)+L28+(3*M28)+(10*N28)+(3*O28)+P29+Q29) -> 101
A30: Thatcher Demko | B30: 0 | C30: 0 | D30: 0 | E30: 0 | F30: 0 | G30: 2.07 | H30: 0.9 | I30: =((3*B30)+C30+(3*D30)+(10*E30)+(3*F30)+G31+H31) -> 3 | K30: 2 | L30: 3 | M30: 0 | N30: 0 | O30: 0 | P30: 3.17 | Q30: 0.883 | R30: =((3*K30)+L30+(3*M30)+(10*N30)+(3*O30)+P31+Q31) -> 19
B31: 2 | C31: 58.02 | D31: 18 | E31: 20 | G31: 2 | H31: 1 | I31: =((3*B30)+C30+(3*D30)+(10*E30)+(3*F30)+G31+H31) -> 3 | P31: 5 | Q31: 5 | R31: =((2*K30)+L30+(3*M30)+(10*N30)+(3*O30)+P31+Q31) -> 17
D32: All Playes Scoring This Week | N32: Cumulative Points
B33: Gls | C33: Ast | D33: PP | E33: SH | F33: GW | G33: OT | H33: PSG | K33: Gls | L33: Ast | M33: PP | N33: SH | O33: GW | P33: OT | Q33: PSG | R33: PTS
A34: Forwards | B34: =SUM(B5:B15) -> 14 | C34: =SUM(C5:C15) -> 18 | D34: 4 | E34: 0 | F34: 0 | G34: 0 | H34: 0 | K34: 153 | L34: 231 | M34: 27 | N34: 3 | O34: 19 | P34: 4 | Q34: 0 | R34: =(K34+L34+M34+(2*N34)+(2*O34)+P34+(4*Q34)) -> 459
A35: Defense | B35: =SUM(B19:B25) -> 4 | C35: =SUM(C19:C25) -> 9 | D35: 0 | E35: 0 | F35: 0 | G35: 0 | H35: 0 | K35: 35 | L35: 109 | M35: 5 | N35: 0 | O35: 5 | P35: 3 | Q35: 0 | R35: =(K35+L35+M35+(2*N35)+(2*O35)+P35+(4*Q35)) -> 162
A36: Total Scorers | B36: =SUM(B34:B35) -> 18 | C36: =SUM(C34:C35) -> 27 | D36: 4 | E36: 0 | F36: 0 | G36: 0 | H36: 0 | K36: =SUM(K34:K35) -> 188 | L36: 340 | M36: 32 | N36: 3 | O36: 24 | P36: 7 | Q36: 0 | R36: =(K36+L36+M36+(2*N36)+(2*O36)+P36+(4*Q36)) -> 621
B37: W | C37: OT | D37: SO | E37: Gls | F37: Ast | G37: GAA | H37: SP | K37: W | L37: OT | M37: SO | N37: Gls | O37: Ast | P37: GAA | Q37: SP | R37: PTS
A38: Goalie Totals | B38: =SUM(B28,B30) -> 1 | C38: =SUM(C28,C30) -> 0 | D38: =SUM(D28,D30) -> 0 | E38: =SUM(E28,E30) -> 0 | F38: =SUM(F28,F30) -> 0 | G38: =IF(C39=0,0,B39/(C39/60)) -> 1.509433962 | H38: =IF(E39=0,0,D39/E39) -> 0.9230769231 | K38: 23 | L38: 7 | M38: 4 | N38: 0 | O38: 1 | P38: =IF(L39=0,0,K39/(L39/60)) -> 2.904213937 | Q38: =IF(N39=0,0,M39/N39) -> 0.8940448569 | R38: =((3*K38)+L38+(3*M38)+(10*N38)+(3*O38)+P39+Q39) -> 165
B39: =SUM(B29,B31) -> 3 | C39: =SUM(C29,C31) -> 119.25 | D39: =SUM(D29,D31) -> 36 | E39: =SUM(E29,E31) -> 39 | K39: 137 | L39: 2830.37 | M39: 1156 | N39: 1293 | P39: 35 | Q39: 39
K40: GA | L40: Time | M40: Saves | N40: Shots
B42: Injured Reserve | M42: This Weeks Totals
A43: Player | B43: P | C43: GP | D43: IR Weeks | E43: Pts | L43: Forwards | N43: =SUM(I5:I12) -> 33
A44: Valeri Nichushkin | B44: F | C44: 0 | D44: 1 | E44: 19 | L44: Defense | N44: =SUM(I19:I23) -> 12
A45: Drew Doughty | B45: D | C45: 0 | D45: 14 | E45: 0 | L45: Goalie | N45: =I28 -> 13
A46: Linus Ullmark | B46: G | C46: 0 | D46: 2 | E46: 94
B47: Flex | L47: Total Points | N47: =SUM(N43:N45) -> 58
A56: Team Record | B56: W | C56: L | D56: T | E56: Pts | F56: CP | G56: BPF | H56: BFA | I56: Streak
A57: Damn Yankees | B57: 3 | C57: 10 | D57: 1 | E57: =2*B57+D57 -> 7 | F57: =R36+R38 -> 786 | G57: =SUM(B61,B65,B69,B73,B77,F61,F65,F69,F73,F77,J61,J65,J69,J73,J77,N61,N65,N69,N73,N77,R61,R65) -> 700 | H57: =SUM(B62,B66,B70,B74,B78,F62,F66,F70,F74,F78,J62,J66,J70,J74,J78,N62,N66,N70,N74,N78,R62,R66) -> 777 | I57: Lost 5
A60: Game 1 | B60: Score | D60: Game 6 | F60: Score | H60: Game 11 | J60: Score | L60: Game 16 | N60: Score | P60: Game 21 | R60: Score
A61: Damn Yankees | B61: 38 | D61: Damn Yankees | F61: 45 | H61: Damn Yankees | J61: 36 | L61: Damn Yankees | N61: 0 | P61: Damn Yankees | R61: 0
A62: Riketorians | B62: 49 | D62: Grumpy Old Men | F62: 44 | H62: District 5 | J62: 37 | L62: Slappers | N62: 0 | P62: Riketorians | R62: 0
A64: Game 2 | B64: Score | D64: Game 7 | F64: Score | H64: Game 12 | J64: Score | L64: Game 17 | N64: Score | P64: Game 22 | R64: Score
A65: Damn Yankees | B65: 40 | D65: Damn Yankees | F65: 48 | H65: Damn Yankees | J65: 38 | L65: Damn Yankees | N65: 0 | P65: Damn Yankees | R65: 0
A66: Just Chillin | B66: 65 | D66: Arcane Sanctuary | F66: 39 | H66: Highlanders | J66: 58 | L66: Just Chillin | N66: 0 | P66: Arcane Sanctuary | R66: 0
A68: Game 3 | B68: Score | D68: Game 8 | F68: Score | H68: Game 13 | J68: Score | L68: Game 18 | N68: Score
A69: Damn Yankees | B69: 60 | D69: Damn Yankees | F69: 76 | H69: Damn Yankees | J69: 71 | L69: Damn Yankees | N69: 0
A70: Slappers | B70: 60 | D70: Shawnee Tribe | F70: 77 | H70: Riketorians | J70: 74 | L70: Shawnee Tribe | N70: 0
A72: Game 4 | B72: Score | D72: Game 9 | F72: Score | H72: Game 14 | J72: Score | L72: Game 19 | N72: Score
A73: Damn Yankees | B73: 50 | D73: Damn Yankees | F73: 47 | H73: Damn Yankees | J73: 58 | L73: Damn Yankees | N73: 0
A74: Highlanders | B74: 52 | D74: Just Chillin | F74: 44 | H74: District 5 | J74: 59 | L74: Ravens | N74: 0
A76: Game 5 | B76: Score | D76: Game 10 | F76: Score | H76: Game 15 | J76: Score | L76: Game 20 | N76: Score
A77: Damn Yankees | B77: 33 | D77: Damn Yankees | F77: 60 | H77: Damn Yankees | J77: 0 | L77: Damn Yankees | N77: 0
A78: Shawnee Tribe | B78: 52 | D78: Ravens | F78: 67 | H78: Highlanders | J78: 0 | L78: Grumpy Old Men | N78: 0

Sheet District 5
A1: Team: District 5 | D1: General Manager: Sean Wachter
D3: Scoring This Week | N3: Players Overall Scoring
A4: Forwards | B4: Gls | C4: Ast | D4: PP | E4: SH | F4: GW | G4: OT | H4: PSG | I4: PTS | K4: Gls | L4: Ast | M4: PP | N4: SH | O4: GW | P4: OT | Q4: PSG | R4: PTS
A5: Matt Boldy | B5: 2 | C5: 1 | D5: 0 | E5: 0 | F5: 2 | G5: 0 | H5: 0 | I5: =(B5+C5+D5+(2*E5)+(2*F5)+G5+(4*H5)) -> 7 | K5: 16 | L5: 21 | M5: 4 | N5: 0 | O5: 8 | P5: 1 | Q5: 0 | R5: =(K5+L5+M5+(2*N5)+(2*O5)+P5+(4*Q5)) -> 58
A6: Nikita Kucherov | B6: 1 | C6: 4 | D6: 0 | E6: 0 | F6: 0 | G6: 0 | H6: 0 | I6: =(B6+C6+D6+(2*E6)+(2*F6)+G6+(4*H6)) -> 5 | K6: 18 | L6: 41 | M6: 2 | N6: 0 | O6: 4 | P6: 0 | Q6: 0 | R6: =(K6+L6+M6+(2*N6)+(2*O6)+P6+(4*Q6)) -> 69
A7: Kyle Connor | B7: 1 | C7: 2 | D7: 0 | E7: 0 | F7: 1 | G7: 0 | H7: 0 | I7: =(B7+C7+D7+(2*E7)+(2*F7)+G7+(4*H7)) -> 5 | K7: 23 | L7: 32 | M7: 9 | N7: 1 | O7: 5 | P7: 1 | Q7: 0 | R7: =(K7+L7+M7+(2*N7)+(2*O7)+P7+(4*Q7)) -> 77
A8: Sam Reinhart | B8: 3 | C8: 0 | D8: 1 | E8: 0 | F8: 0 | G8: 0 | H8: 0 | I8: =(B8+C8+D8+(2*E8)+(2*F8)+G8+(4*H8)) -> 4 | K8: 25 | L8: 24 | M8: 8 | N8: 4 | O8: 1 | P8: 0 | Q8: 0 | R8: =(K8+L8+M8+(2*N8)+(2*O8)+P8+(4*Q8)) -> 67
A9: Jason Robertson | B9: 1 | C9: 3 | D9: 0 | E9: 0 | F9: 0 | G9: 0 | H9: 0 | I9: =(B9+C9+D9+(2*E9)+(2*F9)+G9+(4*H9)) -> 4 | K9: 10 | L9: 24 | M9: 3 | N9: 0 | O9: 1 | P9: 0 | Q9: 0 | R9: =(K9+L9+M9+(2*N9)+(2*O9)+P9+(4*Q9)) -> 39
A10: Brock Boeser | B10: 1 | C10: 1 | D10: 0 | E10: 0 | F10: 1 | G10: 0 | H10: 0 | I10: =(B10+C10+D10+(2*E10)+(2*F10)+G10+(4*H10)) -> 4 | K10: 15 | L10: 12 | M10: 5 | N10: 0 | O10: 1 | P10: 0 | Q10: 0 | R10: =(K10+L10+M10+(2*N10)+(2*O10)+P10+(4*Q10)) -> 34
A11: JJ Peterka | B11: 0 | C11: 4 | D11: 0 | E11: 0 | F11: 0 | G11: 0 | H11: 0 | I11: =(B11+C11+D11+(2*E11)+(2*F11)+G11+(4*H11)) -> 4 | K11: 10 | L11: 22 | M11: 3 | N11: 0 | O11: 1 | P11: 0 | Q11: 0 | R11: =(K11+L11+M11+(2*N11)+(2*O11)+P11+(4*Q11)) -> 37
A12: Pavel Buchnevich | B12: 2 | C12: 1 | D12: 0 | E12: 0 | F12: 0 | G12: 0 | H12: 0 | I12: =(B12+C12+D12+(2*E12)+(2*F12)+G12+(4*H12)) -> 3 | K12: 11 | L12: 18 | M12: 1 | N12: 0 | O12: 0 | P12: 0 | Q12: 0 | R12: =(K12+L12+M12+(2*N12)+(2*O12)+P12+(4*Q12)) -> 30
A13: Owen Tippett | B13: 1 | C13: 1 | D13: 0 | E13: 0 | F13: 0 | G13: 0 | H13: 0 | I13: =(B13+C13+D13+(2*E13)+(2*F13)+G13+(4*H13)) -> 2 | K13: 12 | L13: 14 | M13: 0 | N13: 0 | O13: 1 | P13: 1 | Q13: 0 | R13: =(K13+L13+M13+(2*N13)+(2*O13)+P13+(4*Q13)) -> 29
A14: Tomas Hertl | B14: 1 | C14: 1 | D14: 0 | E14: 0 | F14: 0 | G14: 0 | H14: 0 | I14: =(B14+C14+D14+(2*E14)+(2*F14)+G14+(4*H14)) -> 2 | K14: 11 | L14: 16 | M14: 7 | N14: 0 | O14: 2 | P14: 0 | Q14: 0 | R14: =(K14+L14+M14+(2*N14)+(2*O14)+P14+(4*Q14)) -> 38
A15: Will Cuylle | B15: 0 | C15: 0 | D15: 0 | E15: 0 | F15: 0 | G15: 0 | H15: 0 | I15: =(B15+C15+D15+(2*E15)+(2*F15)+G15+(4*H15)) -> 0 | K15: 11 | L15: 13 | M15: 0 | N15: 1 | O15: 1 | P15: 0 | Q15: 0 | R15: =(K15+L15+M15+(2*N15)+(2*O15)+P15+(4*Q15)) -> 28
A18: Defense | B18: Gls | C18: Ast | D18: PP | E18: SH | F18: GW | G18: OT | H18: PSG | I18: PTS | K18: Gls | L18: Ast | M18: PP | N18: SH | O18: GW | P18: OT | Q18: PSG | R18: PTS
A19: Jamie Drysdale | B19: 1 | C19: 1 | D19: 1 | E19: 0 | F19: 0 | G19: 0 | H19: 0 | I19: =(B19+C19+D19+(2*E19)+(2*F19)+G19+(4*H19)) -> 3 | K19: 2 | L19: 7 | M19: 2 | N19: 0 | O19: 0 | P19: 0 | Q19: 0 | R19: =(K19+L19+M19+(2*N19)+(2*O19)+P19+(4*Q19)) -> 11
A20: Dougie Hamilton | B20: 0 | C20: 3 | D20: 0 | E20: 0 | F20: 0 | G20: 0 | H20: 0 | I20: =(B20+C20+D20+(2*E20)+(2*F20)+G20+(4*H20)) -> 3 | K20: 5 | L20: 23 | M20: 4 | N20: 0 | O20: 2 | P20: 0 | Q20: 0 | R20: =(K20+L20+M20+(2*N20)+(2*O20)+P20+(4*Q20)) -> 36
A21: Miro Heiskanen | B21: 1 | C21: 0 | D21: 0 | E21: 0 | F21: 0 | G21: 0 | H21: 0 | I21: =(B21+C21+D21+(2*E21)+(2*F21)+G21+(4*H21)) -> 1 | K21: 5 | L21: 14 | M21: 0 | N21: 0 | O21: 0 | P21: 0 | Q21: 0 | R21: =(K21+L21+M21+(2*N21)+(2*O21)+P21+(4*Q21)) -> 19
A22: Moritz Seider | B22: 0 | C22: 0 | D22: 0 | E22: 0 | F22: 0 | G22: 0 | H22: 0 | I22: =(B22+C22+D22+(2*E22)+(2*F22)+G22+(4*H22)) -> 0 | K22: 4 | L22: 20 | M22: 0 | N22: 0 | O22: 0 | P22: 0 | Q22: 0 | R22: =(K22+L22+M22+(2*N22)+(2*O22)+P22+(4*Q22)) -> 24
A23: Brock Faber | B23: 0 | C23: 0 | D23: 0 | E23: 0 | F23: 0 | G23: 0 | H23: 0 | I23: =(B23+C23+D23+(2*E23)+(2*F23)+G23+(4*H23)) -> 0 | K23: 5 | L23: 15 | M23: 1 | N23: 0 | O23: 1 | P23: 1 | Q23: 0 | R23: =(K23+L23+M23+(2*N23)+(2*O23)+P23+(4*Q23)) -> 24
A24: Bowen Byram | B24: 0 | C24: 0 | D24: 0 | E24: 0 | F24: 0 | G24: 0 | H24: 0 | I24: =(B24+C24+D24+(2*E24)+(2*F24)+G24+(4*H24)) -> 0 | K24: 5 | L24: 17 | M24: 0 | N24: 0 | O24: 2 | P24: 0 | Q24: 0 | R24: =(K24+L24+M24+(2*N24)+(2*O24)+P24+(4*Q24)) -> 26
A25: Rasmus Andersson | B25: 0 | C25: 0 | D25: 0 | E25: 0 | F25: 0 | G25: 0 | H25: 0 | I25: =(B25+C25+D25+(2*E25)+(2*F25)+G25+(4*H25)) -> 0 | K25: 6 | L25: 12 | M25: 2 | N25: 0 | O25: 1 | P25: 0 | Q25: 0 | R25: =(K25+L25+M25+(2*N25)+(2*O25)+P25+(4*Q25)) -> 22
A27: Goalie | B27: W | C27: OT | D27: SO | E27: Gls | F27: Ast | G27: GAA | H27: SP | I27: PTS | K27: W | L27: OT | M27: SO | N27: Gls | O27: Ast | P27: GAA | Q27: SP | R27: PTS
A28: Ilya Sorokin | B28: 2 | C28: 0 | D28: 1 | E28: 0 | F28: 0 | G28: 1.96 | H28: 0.933 | I28: =((3*B28)+C28+(3*D28)+(10*E28)+(3*F28)+G29+H29) -> 16 | K28: 13 | L28: 4 | M28: 2 | N28: 0 | O28: 0 | P28: 2.83 | Q28: 0.902 | R28: =((3*K28)+L28+(3*M28)+(10*N28)+(3*O28)+P29+Q29) -> 88
B29: 4 | C29: 122.44 | D29: 56 | E29: 60 | G29: 3 | H29: 4 | I29: =((3*B28)+C28+(3*D28)+(10*E28)+(3*F28)+G29+H29) -> 16 | P29: 17 | Q29: 22 | R29: =((2*K28)+L28+(3*M28)+(10*N28)+(3*O28)+P29+Q29) -> 75
A30: Jacob Markstrom | B30: 2 | C30: 1 | D30: 0 | E30: 0 | F30: 0 | G30: 2.26 | H30: 0.914 | I30: =((3*B30)+C30+(3*D30)+(10*E30)+(3*F30)+G31+H31) -> 11 | K30: 21 | L30: 3 | M30: 3 | N30: 0 | O30: 0 | P30: 2.19 | Q30: 0.911 | R30: =((3*K30)+L30+(3*M30)+(10*N30)+(3*O30)+P31+Q31) -> 135
B31: 7 | C31: 186.12 | D31: 74 | E31: 81 | G31: 2 | H31: 2 | I31: =((3*B30)+C30+(3*D30)+(10*E30)+(3*F30)+G31+H31) -> 11 | P31: 29 | Q31: 31 | R31: =((2*K30)+L30+(3*M30)+(10*N30)+(3*O30)+P31+Q31) -> 114
D32: All Playes Scoring This Week | N32: Cumulative Points
B33: Gls | C33: Ast | D33: PP | E33: SH | F33: GW | G33: OT | H33: PSG | K33: Gls | L33: Ast | M33: PP | N33: SH | O33: GW | P33: OT | Q33: PSG | R33: PTS
A34: Forwards | B34: =SUM(B5:B15) -> 13 | C34: =SUM(C5:C15) -> 18 | D34: 1 | E34: 0 | F34: 4 | G34: 0 | H34: 0 | K34: 156 | L34: 238 | M34: 42 | N34: 6 | O34: 25 | P34: 3 | Q34: 0 | R34: =(K34+L34+M34+(2*N34)+(2*O34)+P34+(4*Q34)) -> 501
A35: Defense | B35: =SUM(B19:B25) -> 2 | C35: =SUM(C19:C25) -> 4 | D35: 1 | E35: 0 | F35: 0 | G35: 0 | H35: 0 | K35: 32 | L35: 107 | M35: 9 | N35: 0 | O35: 6 | P35: 1 | Q35: 0 | R35: =(K35+L35+M35+(2*N35)+(2*O35)+P35+(4*Q35)) -> 161
A36: Total Scorers | B36: =SUM(B34:B35) -> 15 | C36: =SUM(C34:C35) -> 22 | D36: 2 | E36: 0 | F36: 4 | G36: 0 | H36: 0 | K36: =SUM(K34:K35) -> 188 | L36: 345 | M36: 51 | N36: 6 | O36: 31 | P36: 4 | Q36: 0 | R36: =(K36+L36+M36+(2*N36)+(2*O36)+P36+(4*Q36)) -> 662
B37: W | C37: OT | D37: SO | E37: Gls | F37: Ast | G37: GAA | H37: SP | K37: W | L37: OT | M37: SO | N37: Gls | O37: Ast | P37: GAA | Q37: SP | R37: PTS
A38: Goalie Totals | B38: =SUM(B28,B30) -> 4 | C38: =SUM(C28,C30) -> 1 | D38: =SUM(D28,D30) -> 1 | E38: =SUM(E28,E30) -> 0 | F38: =SUM(F28,F30) -> 0 | G38: =IF(C39=0,0,B39/(C39/60)) -> 2.13896811 | H38: =IF(E39=0,0,D39/E39) -> 0.9219858156 | K38: 34 | L38: 7 | M38: 5 | N38: 0 | O38: 0 | P38: =IF(L39=0,0,K39/(L39/60)) -> 2.492418216 | Q38: =IF(N39=0,0,M39/N39) -> 0.906536347 | R38: =((3*K38)+L38+(3*M38)+(10*N38)+(3*O38)+P39+Q39) -> 223
B39: =SUM(B29,B31) -> 11 | C39: =SUM(C29,C31) -> 308.56 | D39: =SUM(D29,D31) -> 130 | E39: =SUM(E29,E31) -> 141 | K39: 153 | L39: 3683.17 | M39: 1484 | N39: 1637 | P39: 46 | Q39: 53
K40: GA | L40: Time | M40: Saves | N40: Shots
B42: Injured Reserve | M42: This Weeks Totals
A43: Player | B43: P | C43: GP | D43: IR Weeks | E43: Pts | L43: Forwards | N43: =SUM(I5:I12) -> 36
B44: F | L44: Defense | N44: =SUM(I19:I23) -> 7
B45: D | L45: Goalie | N45: =I28 -> 16
B46: G
B47: Flex | L47: Total Points | N47: =SUM(N43:N45) -> 59
A56: Team Record | B56: W | C56: L | D56: T | E56: Pts | F56: CP | G56: BPF | H56: BFA | I56: Streak
A57: District 5 | B57: 9 | C57: 5 | D57: 0 | E57: =2*B57+D57 -> 18 | F57: =R36+R38 -> 885 | G57: =SUM(B61,B65,B69,B73,B77,F61,F65,F69,F73,F77,J61,J65,J69,J73,J77,N61,N65,N69,N73,N77,R61,R65) -> 787 | H57: =SUM(B62,B66,B70,B74,B78,F62,F66,F70,F74,F78,J62,J66,J70,J74,J78,N62,N66,N70,N74,N78,R62,R66) -> 776 | I57: Won 1
A60: Game 1 | B60: Score | D60: Game 6 | F60: Score | H60: Game 11 | J60: Score | L60: Game 16 | N60: Score | P60: Game 21 | R60: Score
A61: District 5 | B61: 45 | D61: District 5 | F61: 50 | H61: District 5 | J61: 37 | L61: District 5 | N61: 0 | P61: District 5 | R61: 0
A62: Ravens | B62: 61 | D62: Just Chillin | F62: 42 | H62: Damn Yankees | J62: 36 | L62: Riketorians | N62: 0 | P62: Slappers | R62: 0
A64: Game 2 | B64: Score | D64: Game 7 | F64: Score | H64: Game 12 | J64: Score | L64: Game 17 | N64: Score | P64: Game 22 | R64: Score
A65: District 5 | B65: 71 | D65: District 5 | F65: 52 | H65: District 5 | J65: 60 | L65: District 5 | N65: 0 | P65: District 5 | R65: 0
A66: Slappers | B66: 51 | D66: Riketorians | F66: 46 | H66: Ravens | J66: 39 | L66: Arcane Sanctuary | N66: 0 | P66: Ravens | R66: 0
A68: Game 3 | B68: Score | D68: Game 8 | F68: Score | H68: Game 13 | J68: Score | L68: Game 18 | N68: Score
A69: District 5 | B69: 65 | D69: District 5 | F69: 45 | H69: District 5 | J69: 65 | L69: District 5 | N69: 0
A70: Arcane Sanctuary | B70: 53 | D70: Arcane Sanctuary | F70: 44 | H70: Slappers | J70: 84 | L70: Highlanders | N70: 0
A72: Game 4 | B72: Score | D72: Game 9 | F72: Score | H72: Game 14 | J72: Score | L72: Game 19 | N72: Score
A73: District 5 | B73: 64 | D73: District 5 | F73: 53 | H73: District 5 | J73: 59 | L73: District 5 | N73: 0
A74: Shawnee Tribe | B74: 44 | D74: Grumpy Old Men | F74: 80 | H74: Damn Yankees | J74: 58 | L74: Just Chillin | N74: 0
A76: Game 5 | B76: Score | D76: Game 10 | F76: Score | H76: Game 15 | J76: Score | L76: Game 20 | N76: Score
A77: District 5 | B77: 61 | D77: District 5 | F77: 60 | H77: District 5 | J77: 0 | L77: District 5 | N77: 0
A78: Grumpy Old Men | B78: 69 | D78: Highlanders | F78: 69 | H78: Grumpy Old Men | J78: 0 | L78: Shawnee Tribe | N78: 0

Sheet Grumpy Old Men
A1: Team: Grumpy Old Men | D1: General Manager: Tom Romano
D3: Scoring This Week | N3: Players Overall Scoring
A4: Forwards | B4: Gls | C4: Ast | D4: PP | E4: SH | F4: GW | G4: OT | H4: PSG | I4: PTS | K4: Gls | L4: Ast | M4: PP | N4: SH | O4: GW | P4: OT | Q4: PSG | R4: PTS
A5: Vincent Trocheck | B5: 4 | C5: 2 | D5: 2 | E5: 0 | F5: 0 | G5: 0 | H5: 0 | I5: =(B5+C5+D5+(2*E5)+(2*F5)+G5+(4*H5)) -> 8 | K5: 14 | L5: 15 | M5: 4 | N5: 1 | O5: 3 | P5: 0 | Q5: 0 | R5: =(K5+L5+M5+(2*N5)+(2*O5)+P5+(4*Q5)) -> 41
A6: Bo Horvat | B6: 3 | C6: 0 | D6: 0 | E6: 1 | F6: 1 | G6: 1 | H6: 0 | I6: =(B6+C6+D6+(2*E6)+(2*F6)+G6+(4*H6)) -> 8 | K6: 13 | L6: 17 | M6: 1 | N6: 1 | O6: 3 | P6: 2 | Q6: 0 | R6: =(K6+L6+M6+(2*N6)+(2*O6)+P6+(4*Q6)) -> 41
A7: Jamie Benn | B7: 2 | C7: 1 | D7: 1 | E7: 0 | F7: 1 | G7: 1 | H7: 0 | I7: =(B7+C7+D7+(2*E7)+(2*F7)+G7+(4*H7)) -> 7 | K7: 12 | L7: 18 | M7: 1 | N7: 0 | O7: 4 | P7: 1 | Q7: 0 | R7: =(K7+L7+M7+(2*N7)+(2*O7)+P7+(4*Q7)) -> 40
A8: Nikolaj Ehlers | B8: 2 | C8: 1 | D8: 0 | E8: 0 | F8: 1 | G8: 0 | H8: 0 | I8: =(B8+C8+D8+(2*E8)+(2*F8)+G8+(4*H8)) -> 5 | K8: 14 | L8: 22 | M8: 4 | N8: 0 | O8: 3 | P8: 1 | Q8: 0 | R8: =(K8+L8+M8+(2*N8)+(2*O8)+P8+(4*Q8)) -> 47
A9: Andrei Svechnikov | B9: 2 | C9: 2 | D9: 0 | E9: 0 | F9: 0 | G9: 0 | H9: 0 | I9: =(B9+C9+D9+(2*E9)+(2*F9)+G9+(4*H9)) -> 4 | K9: 14 | L9: 17 | M9: 8 | N9: 0 | O9: 1 | P9: 0 | Q9: 0 | R9: =(K9+L9+M9+(2*N9)+(2*O9)+P9+(4*Q9)) -> 41
A10: Roope Hintz | B10: 1 | C10: 1 | D10: 0 | E10: 0 | F10: 1 | G10: 0 | H10: 0 | I10: =(B10+C10+D10+(2*E10)+(2*F10)+G10+(4*H10)) -> 4 | K10: 19 | L10: 7 | M10: 4 | N10: 0 | O10: 4 | P10: 0 | Q10: 0 | R10: =(K10+L10+M10+(2*N10)+(2*O10)+P10+(4*Q10)) -> 38
A11: Jared McCann | B11: 0 | C11: 4 | D11: 0 | E11: 0 | F11: 0 | G11: 0 | H11: 0 | I11: =(B11+C11+D11+(2*E11)+(2*F11)+G11+(4*H11)) -> 4 | K11: 13 | L11: 19 | M11: 2 | N11: 0 | O11: 1 | P11: 1 | Q11: 0 | R11: =(K11+L11+M11+(2*N11)+(2*O11)+P11+(4*Q11)) -> 37
A12: Mitch Marner | B12: 0 | C12: 3 | D12: 0 | E12: 0 | F12: 0 | G12: 0 | H12: 0 | I12: =(B12+C12+D12+(2*E12)+(2*F12)+G12+(4*H12)) -> 3 | K12: 14 | L12: 45 | M12: 5 | N12: 1 | O12: 4 | P12: 1 | Q12: 0 | R12: =(K12+L12+M12+(2*N12)+(2*O12)+P12+(4*Q12)) -> 75
A13: Matthew Tkachuk | B13: 0 | C13: 3 | D13: 0 | E13: 0 | F13: 0 | G13: 0 | H13: 0 | I13: =(B13+C13+D13+(2*E13)+(2*F13)+G13+(4*H13)) -> 3 | K13: 14 | L13: 25 | M13: 8 | N13: 0 | O13: 1 | P13: 0 | Q13: 0 | R13: =(K13+L13+M13+(2*N13)+(2*O13)+P13+(4*Q13)) -> 49
A14: Martin Necas | B14: 0 | C14: 2 | D14: 0 | E14: 0 | F14: 0 | G14: 0 | H14: 0 | I14: =(B14+C14+D14+(2*E14)+(2*F14)+G14+(4*H14)) -> 2 | K14: 15 | L14: 33 | M14: 7 | N14: 0 | O14: 5 | P14: 0 | Q14: 0 | R14: =(K14+L14+M14+(2*N14)+(2*O14)+P14+(4*Q14)) -> 65
A15: Steven Stamkos | B15: 0 | C15: 0 | D15: 0 | E15: 0 | F15: 0 | G15: 0 | H15: 0 | I15: =(B15+C15+D15+(2*E15)+(2*F15)+G15+(4*H15)) -> 0 | K15: 12 | L15: 13 | M15: 7 | N15: 0 | O15: 3 | P15: 0 | Q15: 0 | R15: =(K15+L15+M15+(2*N15)+(2*O15)+P15+(4*Q15)) -> 38
A18: Defense | B18: Gls | C18: Ast | D18: PP | E18: SH | F18: GW | G18: OT | H18: PSG | I18: PTS | K18: Gls | L18: Ast | M18: PP | N18: SH | O18: GW | P18: OT | Q18: PSG | R18: PTS
A19: Devon Toews | B19: 2 | C19: 1 | D19: 0 | E19: 0 | F19: 1 | G19: 0 | H19: 0 | I19: =(B19+C19+D19+(2*E19)+(2*F19)+G19+(4*H19)) -> 5 | K19: 5 | L19: 15 | M19: 0 | N19: 0 | O19: 2 | P19: 1 | Q19: 0 | R19: =(K19+L19+M19+(2*N19)+(2*O19)+P19+(4*Q19)) -> 25
A20: Charlie McAvoy | B20: 0 | C20: 2 | D20: 0 | E20: 0 | F20: 0 | G20: 0 | H20: 0 | I20: =(B20+C20+D20+(2*E20)+(2*F20)+G20+(4*H20)) -> 2 | K20: 5 | L20: 15 | M20: 1 | N20: 1 | O20: 1 | P20: 0 | Q20: 0 | R20: =(K20+L20+M20+(2*N20)+(2*O20)+P20+(4*Q20)) -> 25
A21: Brett Kulak | B21: 0 | C21: 2 | D21: 0 | E21: 0 | F21: 0 | G21: 0 | H21: 0 | I21: =(B21+C21+D21+(2*E21)+(2*F21)+G21+(4*H21)) -> 2 | K21: 5 | L21: 9 | M21: 0 | N21: 0 | O21: 0 | P21: 0 | Q21: 0 | R21: =(K21+L21+M21+(2*N21)+(2*O21)+P21+(4*Q21)) -> 14
A22: Alex Pietrangelo | B22: 0 | C22: 0 | D22: 0 | E22: 0 | F22: 0 | G22: 0 | H22: 0 | I22: =(B22+C22+D22+(2*E22)+(2*F22)+G22+(4*H22)) -> 0 | K22: 3 | L22: 18 | M22: 0 | N22: 0 | O22: 1 | P22: 0 | Q22: 0 | R22: =(K22+L22+M22+(2*N22)+(2*O22)+P22+(4*Q22)) -> 23
A23: Cale Makar | B23: 0 | C23: 0 | D23: 0 | E23: 0 | F23: 0 | G23: 0 | H23: 0 | I23: =(B23+C23+D23+(2*E23)+(2*F23)+G23+(4*H23)) -> 0 | K23: 13 | L23: 36 | M23: 6 | N23: 1 | O23: 3 | P23: 0 | Q23: 0 | R23: =(K23+L23+M23+(2*N23)+(2*O23)+P23+(4*Q23)) -> 63
A24: Rasmus Sandin | B24: 0 | C24: 0 | D24: 0 | E24: 0 | F24: 0 | G24: 0 | H24: 0 | I24: =(B24+C24+D24+(2*E24)+(2*F24)+G24+(4*H24)) -> 0 | K24: 4 | L24: 13 | M24: 1 | N24: 0 | O24: 0 | P24: 0 | Q24: 0 | R24: =(K24+L24+M24+(2*N24)+(2*O24)+P24+(4*Q24)) -> 18
A25: Neal Pionk | B25: 0 | C25: 0 | D25: 0 | E25: 0 | F25: 0 | G25: 0 | H25: 0 | I25: =(B25+C25+D25+(2*E25)+(2*F25)+G25+(4*H25)) -> 0 | K25: 5 | L25: 23 | M25: 3 | N25: 0 | O25: 1 | P25: 0 | Q25: 0 | R25: =(K25+L25+M25+(2*N25)+(2*O25)+P25+(4*Q25)) -> 33
A27: Goalie | B27: W | C27: OT | D27: SO | E27: Gls | F27: Ast | G27: GAA | H27: SP | I27: PTS | K27: W | L27: OT | M27: SO | N27: Gls | O27: Ast | P27: GAA | Q27: SP | R27: PTS
A28: Sergei Bobrovsky | B28: 1 | C28: 1 | D28: 0 | E28: 0 | F28: 0 | G28: 2.31 | H28: 0.909 | I28: =((3*B28)+C28+(3*D28)+(10*E28)+(3*F28)+G29+H29) -> 7 | K28: 18 | L28: 2 | M28: 1 | N28: 0 | O28: 0 | P28: 2.73 | Q28: 0.9 | R28: =((3*K28)+L28+(3*M28)+(10*N28)+(3*O28)+P29+Q29) -> 96
B29: 7 | C29: 181.88 | D29: 70 | E29: 77 | G29: 2 | H29: 1 | I29: =((3*B28)+C28+(3*D28)+(10*E28)+(3*F28)+G29+H29) -> 7 | P29: 18 | Q29: 19 | R29: =((2*K28)+L28+(3*M28)+(10*N28)+(3*O28)+P29+Q29) -> 78
A30: Pyotr Kochetkov | B30: 1 | C30: 0 | D30: 0 | E30: 0 | F30: 0 | G30: 3.03 | H30: 0.909 | I30: =((3*B30)+C30+(3*D30)+(10*E30)+(3*F30)+G31+H31) -> 4 | K30: 16 | L30: 1 | M30: 1 | N30: 0 | O30: 3 | P30: 2.52 | Q30: 0.902 | R30: =((3*K30)+L30+(3*M30)+(10*N30)+(3*O30)+P31+Q31) -> 99
B31: 6 | C31: 118.84 | D31: 60 | E31: 66 | G31: 0 | H31: 1 | I31: =((3*B30)+C30+(3*D30)+(10*E30)+(3*F30)+G31+H31) -> 4 | P31: 20 | Q31: 18 | R31: =((2*K30)+L30+(3*M30)+(10*N30)+(3*O30)+P31+Q31) -> 83
D32: All Playes Scoring This Week | N32: Cumulative Points
B33: Gls | C33: Ast | D33: PP | E33: SH | F33: GW | G33: OT | H33: PSG | K33: Gls | L33: Ast | M33: PP | N33: SH | O33: GW | P33: OT | Q33: PSG | R33: PTS
A34: Forwards | B34: =SUM(B5:B15) -> 14 | C34: =SUM(C5:C15) -> 19 | D34: 3 | E34: 1 | F34: 4 | G34: 2 | H34: 0 | K34: 154 | L34: 231 | M34: 51 | N34: 3 | O34: 32 | P34: 6 | Q34: 0 | R34: =(K34+L34+M34+(2*N34)+(2*O34)+P34+(4*Q34)) -> 512
A35: Defense | B35: =SUM(B19:B25) -> 2 | C35: =SUM(C19:C25) -> 5 | D35: 0 | E35: 0 | F35: 1 | G35: 0 | H35: 0 | K35: 35 | L35: 129 | M35: 11 | N35: 2 | O35: 8 | P35: 1 | Q35: 0 | R35: =(K35+L35+M35+(2*N35)+(2*O35)+P35+(4*Q35)) -> 196
A36: Total Scorers | B36: =SUM(B34:B35) -> 16 | C36: =SUM(C34:C35) -> 24 | D36: 3 | E36: 1 | F36: 5 | G36: 2 | H36: 0 | K36: =SUM(K34:K35) -> 189 | L36: 360 | M36: 62 | N36: 5 | O36: 40 | P36: 7 | Q36: 0 | R36: =(K36+L36+M36+(2*N36)+(2*O36)+P36+(4*Q36)) -> 708
B37: W | C37: OT | D37: SO | E37: Gls | F37: Ast | G37: GAA | H37: SP | K37: W | L37: OT | M37: SO | N37: Gls | O37: Ast | P37: GAA | Q37: SP | R37: PTS
A38: Goalie Totals | B38: =SUM(B28,B30) -> 2 | C38: =SUM(C28,C30) -> 1 | D38: =SUM(D28,D30) -> 0 | E38: =SUM(E28,E30) -> 0 | F38: =SUM(F28,F30) -> 0 | G38: =IF(C39=0,0,B39/(C39/60)) -> 2.59377494 | H38: =IF(E39=0,0,D39/E39) -> 0.9090909091 | K38: 34 | L38: 3 | M38: 2 | N38: 0 | O38: 3 | P38: =IF(L39=0,0,K39/(L39/60)) -> 2.632607062 | Q38: =IF(N39=0,0,M39/N39) -> 0.9010840108 | R38: =((3*K38)+L38+(3*M38)+(10*N38)+(3*O38)+P39+Q39) -> 195
B39: =SUM(B29,B31) -> 13 | C39: =SUM(C29,C31) -> 300.72 | D39: =SUM(D29,D31) -> 130 | E39: =SUM(E29,E31) -> 143 | K39: 146 | L39: 3327.5 | M39: 1330 | N39: 1476 | P39: 38 | Q39: 37
K40: GA | L40: Time | M40: Saves | N40: Shots
B42: Injured Reserve | M42: This Weeks Totals
A43: Player | B43: P | C43: GP | D43: IR Weeks | E43: Pts | L43: Forwards | N43: =SUM(I5:I12) -> 43
B44: F | L44: Defense | N44: =SUM(I19:I23) -> 9
A45: Filip Hronek | B45: D | C45: 0 | D45: 5 | E45: 9 | L45: Goalie | N45: =I28 -> 7
B46: G
B47: Flex | L47: Total Points | N47: =SUM(N43:N45) -> 59
A56: Team Record | B56: W | C56: L | D56: T | E56: Pts | F56: CP | G56: BPF | H56: BFA | I56: Streak
A57: Grumpy Old Men | B57: 10 | C57: 4 | D57: 0 | E57: =2*B57+D57 -> 20 | F57: =R36+R38 -> 903 | G57: =SUM(B61,B65,B69,B73,B77,F61,F65,F69,F73,F77,J61,J65,J69,J73,J77,N61,N65,N69,N73,N77,R61,R65) -> 809 | H57: =SUM(B62,B66,B70,B74,B78,F62,F66,F70,F74,F78,J62,J66,J70,J74,J78,N62,N66,N70,N74,N78,R62,R66) -> 766 | I57: Won 4
A60: Game 1 | B60: Score | D60: Game 6 | F60: Score | H60: Game 11 | J60: Score | L60: Game 16 | N60: Score | P60: Game 21 | R60: Score
A61: Grumpy Old Men | B61: 31 | D61: Grumpy Old Men | F61: 44 | H61: Grumpy Old Men | J61: 44 | L61: Grumpy Old Men | N61: 0 | P61: Grumpy Old Men | R61: 0
A62: Slappers | B62: 53 | D62: Damn Yankees | F62: 45 | H62: Riketorians | J62: 40 | L62: Just Chillin | N62: 0 | P62: Shawnee Tribe | R62: 0
A64: Game 2 | B64: Score | D64: Game 7 | F64: Score | H64: Game 12 | J64: Score | L64: Game 17 | N64: Score | P64: Game 22 | R64: Score
A65: Grumpy Old Men | B65: 63 | D65: Grumpy Old Men | F65: 65 | H65: Grumpy Old Men | J65: 51 | L65: Grumpy Old Men | N65: 0 | P65: Grumpy Old Men | R65: 0
A66: Riketorians | B66: 60 | D66: Highlanders | F66: 52 | H66: Slappers | J66: 47 | L66: Ravens | N66: 0 | P66: Slappers | R66: 0
A68: Game 3 | B68: Score | D68: Game 8 | F68: Score | H68: Game 13 | J68: Score | L68: Game 18 | N68: Score
A69: Grumpy Old Men | B69: 74 | D69: Grumpy Old Men | F69: 53 | H69: Grumpy Old Men | J69: 79 | L69: Grumpy Old Men | N69: 0
A70: Ravens | B70: 46 | D70: Ravens | F70: 84 | H70: Shawnee Tribe | J70: 59 | L70: Arcane Sanctuary | N70: 0
A72: Game 4 | B72: Score | D72: Game 9 | F72: Score | H72: Game 14 | J72: Score | L72: Game 19 | N72: Score
A73: Grumpy Old Men | B73: 58 | D73: Grumpy Old Men | F73: 80 | H73: Grumpy Old Men | J73: 59 | L73: Grumpy Old Men | N73: 0
A74: Arcane Sanctuary | B74: 55 | D74: District 5 | F74: 53 | H74: Arcane Sanctuary | J74: 30 | L74: Highlanders | N74: 0
A76: Game 5 | B76: Score | D76: Game 10 | F76: Score | H76: Game 15 | J76: Score | L76: Game 20 | N76: Score
A77: Grumpy Old Men | B77: 69 | D77: Grumpy Old Men | F77: 39 | H77: Grumpy Old Men | J77: 0 | L77: Grumpy Old Men | N77: 0
A78: District 5 | B78: 61 | D78: Just Chillin | F78: 81 | H78: District 5 | J78: 0 | L78: Damn Yankees | N78: 0

Sheet Just Chillin
A1: Team: Just Chillin | C1: General Manager: Mike Willoughby
D3: Scoring This Week | N3: Players Overall Scoring
A4: Forwards | B4: Gls | C4: Ast | D4: PP | E4: SH | F4: GW | G4: OT | H4: PSG | I4: PTS | K4: Gls | L4: Ast | M4: PP | N4: SH | O4: GW | P4: OT | Q4: PSG | R4: PTS
A5: Jordan Kyrou | B5: 2 | C5: 1 | D5: 1 | E5: 0 | F5: 1 | G5: 0 | H5: 0 | I5: =(B5+C5+D5+(2*E5)+(2*F5)+G5+(4*H5)) -> 6 | K5: 19 | L5: 19 | M5: 5 | N5: 0 | O5: 3 | P5: 0 | Q5: 0 | R5: =(K5+L5+M5+(2*N5)+(2*O5)+P5+(4*Q5)) -> 49
A6: Zach Hyman | B6: 1 | C6: 2 | D6: 1 | E6: 0 | F6: 1 | G6: 0 | H6: 0 | I6: =(B6+C6+D6+(2*E6)+(2*F6)+G6+(4*H6)) -> 6 | K6: 14 | L6: 11 | M6: 5 | N6: 0 | O6: 5 | P6: 0 | Q6: 0 | R6: =(K6+L6+M6+(2*N6)+(2*O6)+P6+(4*Q6)) -> 40
A7: Mark Scheifele | B7: 2 | C7: 2 | D7: 1 | E7: 0 | F7: 0 | G7: 0 | H7: 0 | I7: =(B7+C7+D7+(2*E7)+(2*F7)+G7+(4*H7)) -> 5 | K7: 25 | L7: 25 | M7: 5 | N7: 0 | O7: 6 | P7: 1 | Q7: 0 | R7: =(K7+L7+M7+(2*N7)+(2*O7)+P7+(4*Q7)) -> 68
A8: Mikko Rantanen | B8: 2 | C8: 1 | D8: 0 | E8: 0 | F8: 0 | G8: 0 | H8: 0 | I8: =(B8+C8+D8+(2*E8)+(2*F8)+G8+(4*H8)) -> 3 | K8: 25 | L8: 35 | M8: 8 | N8: 0 | O8: 5 | P8: 0 | Q8: 0 | R8: =(K8+L8+M8+(2*N8)+(2*O8)+P8+(4*Q8)) -> 78
A9: Jake Guentzel | B9: 1 | C9: 1 | D9: 1 | E9: 0 | F9: 0 | G9: 0 | H9: 0 | I9: =(B9+C9+D9+(2*E9)+(2*F9)+G9+(4*H9)) -> 3 | K9: 21 | L9: 19 | M9: 9 | N9: 0 | O9: 1 | P9: 0 | Q9: 0 | R9: =(K9+L9+M9+(2*N9)+(2*O9)+P9+(4*Q9)) -> 51
A10: Tage Thompson | B10: 1 | C10: 0 | D10: 1 | E10: 0 | F10: 0 | G10: 0 | H10: 0 | I10: =(B10+C10+D10+(2*E10)+(2*F10)+G10+(4*H10)) -> 2 | K10: 19 | L10: 15 | M10: 4 | N10: 0 | O10: 1 | P10: 0 | Q10: 0 | R10: =(K10+L10+M10+(2*N10)+(2*O10)+P10+(4*Q10)) -> 40
A11: Drake Batherson | B11: 1 | C11: 0 | D11: 1 | E11: 0 | F11: 0 | G11: 0 | H11: 0 | I11: =(B11+C11+D11+(2*E11)+(2*F11)+G11+(4*H11)) -> 2 | K11: 14 | L11: 23 | M11: 8 | N11: 0 | O11: 2 | P11: 0 | Q11: 0 | R11: =(K11+L11+M11+(2*N11)+(2*O11)+P11+(4*Q11)) -> 49
A12: Wyatt Johnston | B12: 1 | C12: 0 | D12: 0 | E12: 0 | F12: 0 | G12: 0 | H12: 0 | I12: =(B12+C12+D12+(2*E12)+(2*F12)+G12+(4*H12)) -> 1 | K12: 10 | L12: 20 | M12: 2 | N12: 1 | O12: 1 | P12: 0 | Q12: 0 | R12: =(K12+L12+M12+(2*N12)+(2*O12)+P12+(4*Q12)) -> 36
A13: Nico Hischier | B13: 0 | C13: 1 | D13: 0 | E13: 0 | F13: 0 | G13: 0 | H13: 0 | I13: =(B13+C13+D13+(2*E13)+(2*F13)+G13+(4*H13)) -> 1 | K13: 19 | L13: 17 | M13: 6 | N13: 0 | O13: 2 | P13: 0 | Q13: 0 | R13: =(K13+L13+M13+(2*N13)+(2*O13)+P13+(4*Q13)) -> 46
A14: Mikael Granlund | B14: 0 | C14: 1 | D14: 0 | E14: 0 | F14: 0 | G14: 0 | H14: 0 | I14: =(B14+C14+D14+(2*E14)+(2*F14)+G14+(4*H14)) -> 1 | K14: 11 | L14: 25 | M14: 3 | N14: 1 | O14: 0 | P14: 0 | Q14: 0 | R14: =(K14+L14+M14+(2*N14)+(2*O14)+P14+(4*Q14)) -> 41
A15: Evgeni Malkin | B15: 0 | C15: 0 | D15: 0 | E15: 0 | F15: 0 | G15: 0 | H15: 0 | I15: =(B15+C15+D15+(2*E15)+(2*F15)+G15+(4*H15)) -> 0 | K15: 8 | L15: 24 | M15: 2 | N15: 0 | O15: 2 | P15: 0 | Q15: 0 | R15: =(K15+L15+M15+(2*N15)+(2*O15)+P15+(4*Q15)) -> 38
A18: Defense | B18: Gls | C18: Ast | D18: PP | E18: SH | F18: GW | G18: OT | H18: PSG | I18: PTS | K18: Gls | L18: Ast | M18: PP | N18: SH | O18: GW | P18: OT | Q18: PSG | R18: PTS
A19: Zach Werenski | B19: 1 | C19: 2 | D19: 0 | E19: 0 | F19: 1 | G19: 0 | H19: 0 | I19: =(B19+C19+D19+(2*E19)+(2*F19)+G19+(4*H19)) -> 5 | K19: 13 | L19: 35 | M19: 5 | N19: 0 | O19: 3 | P19: 1 | Q19: 0 | R19: =(K19+L19+M19+(2*N19)+(2*O19)+P19+(4*Q19)) -> 60
A20: Morgan Rielly | B20: 1 | C20: 1 | D20: 0 | E20: 0 | F20: 1 | G20: 1 | H20: 0 | I20: =(B20+C20+D20+(2*E20)+(2*F20)+G20+(4*H20)) -> 5 | K20: 5 | L20: 15 | M20: 1 | N20: 0 | O20: 2 | P20: 1 | Q20: 0 | R20: =(K20+L20+M20+(2*N20)+(2*O20)+P20+(4*Q20)) -> 26
A21: Mason Lohrei | B21: 1 | C21: 2 | D21: 0 | E21: 0 | F21: 0 | G21: 0 | H21: 0 | I21: =(B21+C21+D21+(2*E21)+(2*F21)+G21+(4*H21)) -> 3 | K21: 2 | L21: 17 | M21: 0 | N21: 0 | O21: 0 | P21: 0 | Q21: 0 | R21: =(K21+L21+M21+(2*N21)+(2*O21)+P21+(4*Q21)) -> 19
A22: Matt Grzelcyk | B22: 0 | C22: 2 | D22: 0 | E22: 0 | F22: 0 | G22: 0 | H22: 0 | I22: =(B22+C22+D22+(2*E22)+(2*F22)+G22+(4*H22)) -> 2 | K22: 1 | L22: 21 | M22: 0 | N22: 0 | O22: 0 | P22: 0 | Q22: 0 | R22: =(K22+L22+M22+(2*N22)+(2*O22)+P22+(4*Q22)) -> 22
A23: Brandt Clarke | B23: 0 | C23: 1 | D23: 0 | E23: 0 | F23: 0 | G23: 0 | H23: 0 | I23: =(B23+C23+D23+(2*E23)+(2*F23)+G23+(4*H23)) -> 1 | K23: 3 | L23: 19 | M23: 2 | N23: 0 | O23: 0 | P23: 0 | Q23: 0 | R23: =(K23+L23+M23+(2*N23)+(2*O23)+P23+(4*Q23)) -> 24
A24: Jake Walman | B24: 0 | C24: 1 | D24: 0 | E24: 0 | F24: 0 | G24: 0 | H24: 0 | I24: =(B24+C24+D24+(2*E24)+(2*F24)+G24+(4*H24)) -> 1 | K24: 5 | L24: 21 | M24: 0 | N24: 0 | O24: 1 | P24: 0 | Q24: 0 | R24: =(K24+L24+M24+(2*N24)+(2*O24)+P24+(4*Q24)) -> 28
A25: Seth Jones | B25: 0 | C25: 1 | D25: 0 | E25: 0 | F25: 0 | G25: 0 | H25: 0 | I25: =(B25+C25+D25+(2*E25)+(2*F25)+G25+(4*H25)) -> 1 | K25: 3 | L25: 11 | M25: 2 | N25: 0 | O25: 1 | P25: 0 | Q25: 0 | R25: =(K25+L25+M25+(2*N25)+(2*O25)+P25+(4*Q25)) -> 18
A27: Goalie | B27: W | C27: OT | D27: SO | E27: Gls | F27: Ast | G27: GAA | H27: SP | I27: PTS | K27: W | L27: OT | M27: SO | N27: Gls | O27: Ast | P27: GAA | Q27: SP | R27: PTS
A28: Connor Hellebuyck | B28: 2 | C28: 0 | D28: 1 | E28: 0 | F28: 0 | G28: 1 | H28: 0.96 | I28: =((3*B28)+C28+(3*D28)+(10*E28)+(3*F28)+G29+H29) -> 18 | K28: 26 | L28: 2 | M28: 6 | N28: 0 | O28: 0 | P28: 2.02 | Q28: 0.928 | R28: =((3*K28)+L28+(3*M28)+(10*N28)+(3*O28)+P29+Q29) -> 170
B29: 2 | C29: 120 | D29: 48 | E29: 50 | G29: 4 | H29: 5 | I29: =((3*B28)+C28+(3*D28)+(10*E28)+(3*F28)+G29+H29) -> 18 | P29: 32 | Q29: 40 | R29: =((2*K28)+L28+(3*M28)+(10*N28)+(3*O28)+P29+Q29) -> 144
A30: Joseph Woll | B30: 1 | C30: 0 | D30: 0 | E30: 0 | F30: 0 | G30: 3.51 | H30: 0.892 | I30: =((3*B30)+C30+(3*D30)+(10*E30)+(3*F30)+G31+H31) -> 3 | K30: 14 | L30: 0 | M30: 1 | N30: 0 | O30: 0 | P30: 2.58 | Q30: 0.912 | R30: =((3*K30)+L30+(3*M30)+(10*N30)+(3*O30)+P31+Q31) -> 88
B31: 7 | C31: 119.75 | D31: 58 | E31: 65 | G31: 0 | H31: 0 | I31: =((3*B30)+C30+(3*D30)+(10*E30)+(3*F30)+G31+H31) -> 3 | P31: 18 | Q31: 25 | R31: =((2*K30)+L30+(3*M30)+(10*N30)+(3*O30)+P31+Q31) -> 74
D32: All Playes Scoring This Week | N32: Cumulative Points
B33: Gls | C33: Ast | D33: PP | E33: SH | F33: GW | G33: OT | H33: PSG | K33: Gls | L33: Ast | M33: PP | N33: SH | O33: GW | P33: OT | Q33: PSG | R33: PTS
A34: Forwards | B34: =SUM(B5:B15) -> 11 | C34: =SUM(C5:C15) -> 9 | D34: 6 | E34: 0 | F34: 2 | G34: 0 | H34: 0 | K34: 181 | L34: 220 | M34: 57 | N34: 2 | O34: 27 | P34: 1 | Q34: 0 | R34: =(K34+L34+M34+(2*N34)+(2*O34)+P34+(4*Q34)) -> 517
A35: Defense | B35: =SUM(B19:B25) -> 3 | C35: =SUM(C19:C25) -> 10 | D35: 0 | E35: 0 | F35: 2 | G35: 1 | H35: 0 | K35: 34 | L35: 122 | M35: 10 | N35: 1 | O35: 7 | P35: 2 | Q35: 0 | R35: =(K35+L35+M35+(2*N35)+(2*O35)+P35+(4*Q35)) -> 184
A36: Total Scorers | B36: =SUM(B34:B35) -> 14 | C36: =SUM(C34:C35) -> 19 | D36: 6 | E36: 0 | F36: 4 | G36: 1 | H36: 0 | K36: =SUM(K34:K35) -> 215 | L36: 342 | M36: 67 | N36: 3 | O36: 34 | P36: 3 | Q36: 0 | R36: =(K36+L36+M36+(2*N36)+(2*O36)+P36+(4*Q36)) -> 701
B37: W | C37: OT | D37: SO | E37: Gls | F37: Ast | G37: GAA | H37: SP | K37: W | L37: OT | M37: SO | N37: Gls | O37: Ast | P37: GAA | Q37: SP | R37: PTS
A38: Goalie Totals | B38: =SUM(B28,B30) -> 3 | C38: =SUM(C28,C30) -> 0 | D38: =SUM(D28,D30) -> 1 | E38: =SUM(E28,E30) -> 0 | F38: =SUM(F28,F30) -> 0 | G38: =IF(C39=0,0,B39/(C39/60)) -> 2.252346194 | H38: =IF(E39=0,0,D39/E39) -> 0.9217391304 | K38: 40 | L38: 2 | M38: 7 | N38: 0 | O38: 0 | P38: =IF(L39=0,0,K39/(L39/60)) -> 2.233184759 | Q38: =IF(N39=0,0,M39/N39) -> 0.9215434084 | R38: =((3*K38)+L38+(3*M38)+(10*N38)+(3*O38)+P39+Q39) -> 258
B39: =SUM(B29,B31) -> 9 | C39: =SUM(C29,C31) -> 239.75 | D39: =SUM(D29,D31) -> 106 | E39: =SUM(E29,E31) -> 115 | K39: 122 | L39: 3277.83 | M39: 1433 | N39: 1555 | P39: 50 | Q39: 65
K40: GA | L40: Time | M40: Saves | N40: Shots
B42: Injured Reserve | M42: This Weeks Totals
A43: Player | B43: P | C43: GP | D43: IR Weeks | E43: Pts | L43: Forwards | N43: =SUM(I5:I12) -> 28
B44: F | L44: Defense | N44: =SUM(I19:I23) -> 16
B45: D | L45: Goalie | N45: =I28 -> 18
B46: G
B47: Flex | L47: Total Points | N47: =SUM(N43:N45) -> 62
A56: Team Record | B56: W | C56: L | D56: T | E56: Pts | F56: CP | G56: BPF | H56: BFA | I56: Streak
A57: Just Chillin | B57: 8 | C57: 6 | D57: 0 | E57: =2*B57+D57 -> 16 | F57: =R36+R38 -> 959 | G57: =SUM(B61,B65,B69,B73,B77,F61,F65,F69,F73,F77,J61,J65,J69,J73,J77,N61,N65,N69,N73,N77,R61,R65) -> 849 | H57: =SUM(B62,B66,B70,B74,B78,F62,F66,F70,F74,F78,J62,J66,J70,J74,J78,N62,N66,N70,N74,N78,R62,R66) -> 722 | I57: Won 3
A60: Game 1 | B60: Score | D60: Game 6 | F60: Score | H60: Game 11 | J60: Score | L60: Game 16 | N60: Score | P60: Game 21 | R60: Score
A61: Just Chillin | B61: 62 | D61: Just Chillin | F61: 42 | H61: Just Chillin | J61: 33 | L61: Just Chillin | N61: 0 | P61: Just Chillin | R61: 0
A62: Shawnee Tribe | B62: 41 | D62: District 5 | F62: 50 | H62: Slappers | J62: 46 | L62: Grumpy Old Men | N62: 0 | P62: Highlanders | R62: 0
A64: Game 2 | B64: Score | D64: Game 7 | F64: Score | H64: Game 12 | J64: Score | L64: Game 17 | N64: Score | P64: Game 22 | R64: Score
A65: Just Chillin | B65: 65 | D65: Just Chillin | F65: 69 | H65: Just Chillin | J65: 51 | L65: Just Chillin | N65: 0 | P65: Just Chillin | R65: 0
A66: Damn Yankees | B66: 40 | D66: Slappers | F66: 64 | H66: Arcane Sanctuary | J66: 32 | L66: Damn Yankees | N66: 0 | P66: Shawnee Tribe | R66: 0
A68: Game 3 | B68: Score | D68: Game 8 | F68: Score | H68: Game 13 | J68: Score | L68: Game 18 | N68: Score
A69: Just Chillin | B69: 56 | D69: Just Chillin | F69: 61 | H69: Just Chillin | J69: 85 | L69: Just Chillin | N69: 0
A70: Highlanders | B70: 58 | D70: Riketorians | F70: 63 | H70: Highlanders | J70: 83 | L70: Riketorians | N70: 0
A72: Game 4 | B72: Score | D72: Game 9 | F72: Score | H72: Game 14 | J72: Score | L72: Game 19 | N72: Score
A73: Just Chillin | B73: 52 | D73: Just Chillin | F73: 44 | H73: Just Chillin | J73: 62 | L73: Just Chillin | N73: 0
A74: Riketorians | B74: 53 | D74: Damn Yankees | F74: 47 | H74: Shawnee Tribe | J74: 51 | L74: District 5 | N74: 0
A76: Game 5 | B76: Score | D76: Game 10 | F76: Score | H76: Game 15 | J76: Score | L76: Game 20 | N76: Score
A77: Just Chillin | B77: 86 | D77: Just Chillin | F77: 81 | H77: Just Chillin | J77: 0 | L77: Just Chillin | N77: 0
A78: Ravens | B78: 55 | D78: Grumpy Old Men | F78: 39 | H78: Ravens | J78: 0 | L78: Arcane Sanctuary | N78: 0

Sheet Slappers
A1: Team: Slappers | C1: General Manager: Vince Kovacs
D3: Scoring This Week | N3: Players Overall Scoring
A4: Forwards | B4: Gls | C4: Ast | D4: PP | E4: SH | F4: GW | G4: OT | H4: PSG | I4: PTS | K4: Gls | L4: Ast | M4: PP | N4: SH | O4: GW | P4: OT | Q4: PSG | R4: PTS
A5: David Pastrnak | B5: 4 | C5: 1 | D5: 1 | E5: 0 | F5: 1 | G5: 1 | H5: 0 | I5: =(B5+C5+D5+(2*E5)+(2*F5)+G5+(4*H5)) -> 9 | K5: 19 | L5: 26 | M5: 5 | N5: 0 | O5: 4 | P5: 3 | Q5: 0 | R5: =(K5+L5+M5+(2*N5)+(2*O5)+P5+(4*Q5)) -> 61
A6: Sebastian Aho | B6: 1 | C6: 2 | D6: 0 | E6: 0 | F6: 1 | G6: 1 | H6: 0 | I6: =(B6+C6+D6+(2*E6)+(2*F6)+G6+(4*H6)) -> 6 | K6: 13 | L6: 30 | M6: 2 | N6: 1 | O6: 4 | P6: 3 | Q6: 0 | R6: =(K6+L6+M6+(2*N6)+(2*O6)+P6+(4*Q6)) -> 58
A7: Jack Hughes | B7: 2 | C7: 3 | D7: 0 | E7: 0 | F7: 0 | G7: 0 | H7: 0 | I7: =(B7+C7+D7+(2*E7)+(2*F7)+G7+(4*H7)) -> 5 | K7: 17 | L7: 35 | M7: 5 | N7: 0 | O7: 6 | P7: 1 | Q7: 0 | R7: =(K7+L7+M7+(2*N7)+(2*O7)+P7+(4*Q7)) -> 70
A8: Rickard Rakell | B8: 3 | C8: 1 | D8: 0 | E8: 0 | F8: 0 | G8: 0 | H8: 0 | I8: =(B8+C8+D8+(2*E8)+(2*F8)+G8+(4*H8)) -> 4 | K8: 21 | L8: 15 | M8: 4 | N8: 0 | O8: 1 | P8: 1 | Q8: 0 | R8: =(K8+L8+M8+(2*N8)+(2*O8)+P8+(4*Q8)) -> 43
A9: Gabriel Vilardi | B9: 1 | C9: 1 | D9: 1 | E9: 0 | F9: 0 | G9: 0 | H9: 0 | I9: =(B9+C9+D9+(2*E9)+(2*F9)+G9+(4*H9)) -> 3 | K9: 19 | L9: 19 | M9: 10 | N9: 0 | O9: 3 | P9: 0 | Q9: 0 | R9: =(K9+L9+M9+(2*N9)+(2*O9)+P9+(4*Q9)) -> 54
A10: Jesper Bratt | B10: 1 | C10: 2 | D10: 0 | E10: 0 | F10: 0 | G10: 0 | H10: 0 | I10: =(B10+C10+D10+(2*E10)+(2*F10)+G10+(4*H10)) -> 3 | K10: 15 | L10: 36 | M10: 4 | N10: 1 | O10: 0 | P10: 0 | Q10: 0 | R10: =(K10+L10+M10+(2*N10)+(2*O10)+P10+(4*Q10)) -> 57
A11: Matvei Michkov | B11: 1 | C11: 0 | D11: 1 | E11: 0 | F11: 0 | G11: 0 | H11: 0 | I11: =(B11+C11+D11+(2*E11)+(2*F11)+G11+(4*H11)) -> 2 | K11: 13 | L11: 17 | M11: 6 | N11: 0 | O11: 3 | P11: 3 | Q11: 0 | R11: =(K11+L11+M11+(2*N11)+(2*O11)+P11+(4*Q11)) -> 45
A12: Jack Eichel | B12: 0 | C12: 2 | D12: 0 | E12: 0 | F12: 0 | G12: 0 | H12: 0 | I12: =(B12+C12+D12+(2*E12)+(2*F12)+G12+(4*H12)) -> 2 | K12: 11 | L12: 43 | M12: 1 | N12: 1 | O12: 1 | P12: 0 | Q12: 0 | R12: =(K12+L12+M12+(2*N12)+(2*O12)+P12+(4*Q12)) -> 59
A13: Jonathan Marchessault | B13: 0 | C13: 2 | D13: 0 | E13: 0 | F13: 0 | G13: 0 | H13: 0 | I13: =(B13+C13+D13+(2*E13)+(2*F13)+G13+(4*H13)) -> 2 | K13: 14 | L13: 17 | M13: 3 | N13: 0 | O13: 2 | P13: 1 | Q13: 0 | R13: =(K13+L13+M13+(2*N13)+(2*O13)+P13+(4*Q13)) -> 39
A14: Jason Zucker | B14: 0 | C14: 0 | D14: 0 | E14: 0 | F14: 0 | G14: 0 | H14: 0 | I14: =(B14+C14+D14+(2*E14)+(2*F14)+G14+(4*H14)) -> 0 | K14: 15 | L14: 16 | M14: 8 | N14: 0 | O14: 2 | P14: 0 | Q14: 0 | R14: =(K14+L14+M14+(2*N14)+(2*O14)+P14+(4*Q14)) -> 43
A15: Dylan Guenther | B15: 0 | C15: 0 | D15: 0 | E15: 0 | F15: 0 | G15: 0 | H15: 0 | I15: =(B15+C15+D15+(2*E15)+(2*F15)+G15+(4*H15)) -> 0 | K15: 16 | L15: 18 | M15: 7 | N15: 0 | O15: 3 | P15: 1 | Q15: 0 | R15: =(K15+L15+M15+(2*N15)+(2*O15)+P15+(4*Q15)) -> 48
A18: Defense | B18: Gls | C18: Ast | D18: PP | E18: SH | F18: GW | G18: OT | H18: PSG | I18: PTS | K18: Gls | L18: Ast | M18: PP | N18: SH | O18: GW | P18: OT | Q18: PSG | R18: PTS
A19: Jackson LaCombe | B19: 1 | C19: 2 | D19: 0 | E19: 0 | F19: 0 | G19: 0 | H19: 0 | I19: =(B19+C19+D19+(2*E19)+(2*F19)+G19+(4*H19)) -> 3 | K19: 8 | L19: 10 | M19: 1 | N19: 0 | O19: 0 | P19: 0 | Q19: 0 | R19: =(K19+L19+M19+(2*N19)+(2*O19)+P19+(4*Q19)) -> 19
A20: Rasmus Dahlin | B20: 0 | C20: 3 | D20: 0 | E20: 0 | F20: 0 | G20: 0 | H20: 0 | I20: =(B20+C20+D20+(2*E20)+(2*F20)+G20+(4*H20)) -> 3 | K20: 6 | L20: 25 | M20: 3 | N20: 0 | O20: 1 | P20: 1 | Q20: 0 | R20: =(K20+L20+M20+(2*N20)+(2*O20)+P20+(4*Q20)) -> 37
A21: Colton Parayko | B21: 1 | C21: 0 | D21: 1 | E21: 0 | F21: 0 | G21: 0 | H21: 0 | I21: =(B21+C21+D21+(2*E21)+(2*F21)+G21+(4*H21)) -> 2 | K21: 8 | L21: 16 | M21: 1 | N21: 1 | O21: 2 | P21: 1 | Q21: 0 | R21: =(K21+L21+M21+(2*N21)+(2*O21)+P21+(4*Q21)) -> 32
A22: Brent Burns | B22: 0 | C22: 2 | D22: 0 | E22: 0 | F22: 0 | G22: 0 | H22: 0 | I22: =(B22+C22+D22+(2*E22)+(2*F22)+G22+(4*H22)) -> 2 | K22: 4 | L22: 11 | M22: 0 | N22: 0 | O22: 0 | P22: 0 | Q22: 0 | R22: =(K22+L22+M22+(2*N22)+(2*O22)+P22+(4*Q22)) -> 15
A23: Brandon Montour | B23: 0 | C23: 1 | D23: 0 | E23: 0 | F23: 0 | G23: 0 | H23: 0 | I23: =(B23+C23+D23+(2*E23)+(2*F23)+G23+(4*H23)) -> 1 | K23: 8 | L23: 15 | M23: 3 | N23: 0 | O23: 1 | P23: 0 | Q23: 0 | R23: =(K23+L23+M23+(2*N23)+(2*O23)+P23+(4*Q23)) -> 28
A24: Noah Hanifin | B24: 0 | C24: 0 | D24: 0 | E24: 0 | F24: 0 | G24: 0 | H24: 0 | I24: =(B24+C24+D24+(2*E24)+(2*F24)+G24+(4*H24)) -> 0 | K24: 6 | L24: 15 | M24: 1 | N24: 0 | O24: 1 | P24: 0 | Q24: 0 | R24: =(K24+L24+M24+(2*N24)+(2*O24)+P24+(4*Q24)) -> 24
A25: Aaron Ekblad | B25: 0 | C25: 0 | D25: 0 | E25: 0 | F25: 0 | G25: 0 | H25: 0 | I25: =(B25+C25+D25+(2*E25)+(2*F25)+G25+(4*H25)) -> 0 | K25: 2 | L25: 18 | M25: 0 | N25: 0 | O25: 1 | P25: 0 | Q25: 0 | R25: =(K25+L25+M25+(2*N25)+(2*O25)+P25+(4*Q25)) -> 22
A27: Goalie | B27: W | C27: OT | D27: SO | E27: Gls | F27: Ast | G27: GAA | H27: SP | I27: PTS | K27: W | L27: OT | M27: SO | N27: Gls | O27: Ast | P27: GAA | Q27: SP | R27: PTS
A28: Dustin Wolf | B28: 2 | C28: 0 | D28: 0 | E28: 0 | F28: 0 | G28: 1.48 | H28: 0.95 | I28: =((3*B28)+C28+(3*D28)+(10*E28)+(3*F28)+G29+H29) -> 15 | K28: 14 | L28: 2 | M28: 2 | N28: 0 | O28: 3 | P28: 2.53 | Q28: 0.916 | R28: =((3*K28)+L28+(3*M28)+(10*N28)+(3*O28)+P29+Q29) -> 110
B29: 3 | C29: 122.03 | D29: 57 | E29: 60 | G29: 4 | H29: 5 | I29: =((3*B28)+C28+(3*D28)+(10*E28)+(3*F28)+G29+H29) -> 15 | P29: 21 | Q29: 30 | R29: =((2*K28)+L28+(3*M28)+(10*N28)+(3*O28)+P29+Q29) -> 96
A30: Jeremy Swayman | B30: 1 | C30: 0 | D30: 0 | E30: 0 | F30: 0 | G30: 2.95 | H30: 0.919 | I30: =((3*B30)+C30+(3*D30)+(10*E30)+(3*F30)+G31+H31) -> 6 | K30: 14 | L30: 3 | M30: 2 | N30: 0 | O30: 0 | P30: 2.91 | Q30: 0.895 | R30: =((3*K30)+L30+(3*M30)+(10*N30)+(3*O30)+P31+Q31) -> 83
B31: 9 | C31: 183.04 | D31: 102 | E31: 111 | G31: 1 | H31: 2 | I31: =((3*B30)+C30+(3*D30)+(10*E30)+(3*F30)+G31+H31) -> 6 | P31: 17 | Q31: 15 | R31: =((2*K30)+L30+(3*M30)+(10*N30)+(3*O30)+P31+Q31) -> 69
D32: All Playes Scoring This Week | N32: Cumulative Points
B33: Gls | C33: Ast | D33: PP | E33: SH | F33: GW | G33: OT | H33: PSG | K33: Gls | L33: Ast | M33: PP | N33: SH | O33: GW | P33: OT | Q33: PSG | R33: PTS
A34: Forwards | B34: =SUM(B5:B15) -> 13 | C34: =SUM(C5:C15) -> 14 | D34: 3 | E34: 0 | F34: 2 | G34: 2 | H34: 0 | K34: 154 | L34: 265 | M34: 44 | N34: 3 | O34: 27 | P34: 13 | Q34: 0 | R34: =(K34+L34+M34+(2*N34)+(2*O34)+P34+(4*Q34)) -> 536
A35: Defense | B35: =SUM(B19:B25) -> 2 | C35: =SUM(C19:C25) -> 8 | D35: 1 | E35: 0 | F35: 0 | G35: 0 | H35: 0 | K35: 38 | L35: 121 | M35: 13 | N35: 1 | O35: 6 | P35: 2 | Q35: 0 | R35: =(K35+L35+M35+(2*N35)+(2*O35)+P35+(4*Q35)) -> 188
A36: Total Scorers | B36: =SUM(B34:B35) -> 15 | C36: =SUM(C34:C35) -> 22 | D36: 4 | E36: 0 | F36: 2 | G36: 2 | H36: 0 | K36: =SUM(K34:K35) -> 192 | L36: 386 | M36: 57 | N36: 4 | O36: 33 | P36: 15 | Q36: 0 | R36: =(K36+L36+M36+(2*N36)+(2*O36)+P36+(4*Q36)) -> 724
B37: W | C37: OT | D37: SO | E37: Gls | F37: Ast | G37: GAA | H37: SP | K37: W | L37: OT | M37: SO | N37: Gls | O37: Ast | P37: GAA | Q37: SP | R37: PTS
A38: Goalie Totals | B38: =SUM(B28,B30) -> 3 | C38: =SUM(C28,C30) -> 0 | D38: =SUM(D28,D30) -> 0 | E38: =SUM(E28,E30) -> 0 | F38: =SUM(F28,F30) -> 0 | G38: =IF(C39=0,0,B39/(C39/60)) -> 2.360114072 | H38: =IF(E39=0,0,D39/E39) -> 0.9298245614 | K38: 25 | L38: 4 | M38: 3 | N38: 0 | O38: 2 | P38: =IF(L39=0,0,K39/(L39/60)) -> 2.811211924 | Q38: =IF(N39=0,0,M39/N39) -> 0.9005376344 | R38: =((3*K38)+L38+(3*M38)+(10*N38)+(3*O38)+P39+Q39) -> 176
B39: =SUM(B29,B31) -> 12 | C39: =SUM(C29,C31) -> 305.07 | D39: =SUM(D29,D31) -> 159 | E39: =SUM(E29,E31) -> 171 | K39: 148 | L39: 3158.78 | M39: 1340 | N39: 1488 | P39: 38 | Q39: 44
K40: GA | L40: Time | M40: Saves | N40: Shots
B42: Injured Reserve | M42: This Weeks Totals
A43: Player | B43: P | C43: GP | D43: IR Weeks | E43: Pts | L43: Forwards | N43: =SUM(I5:I12) -> 34
B44: F | L44: Defense | N44: =SUM(I19:I23) -> 11
A45: Shayne Gostisbehere | B45: D | C45: 0 | D45: 1 | E45: 31 | L45: Goalie | N45: =I28 -> 15
A46: Frederik Andersen | B46: G | C46: 0 | D46: 10 | E46: 30
B47: Flex | L47: Total Points | N47: =SUM(N43:N45) -> 60
A56: Team Record | B56: W | C56: L | D56: T | E56: Pts | F56: CP | G56: BPF | H56: BFA | I56: Streak
A57: Slappers | B57: 7 | C57: 5 | D57: 2 | E57: =2*B57+D57 -> 16 | F57: =R36+R38 -> 900 | G57: =SUM(B61,B65,B69,B73,B77,F61,F65,F69,F73,F77,J61,J65,J69,J73,J77,N61,N65,N69,N73,N77,R61,R65) -> 819 | H57: =SUM(B62,B66,B70,B74,B78,F62,F66,F70,F74,F78,J62,J66,J70,J74,J78,N62,N66,N70,N74,N78,R62,R66) -> 768 | I57: Won 2
A60: Game 1 | B60: Score | D60: Game 6 | F60: Score | H60: Game 11 | J60: Score | L60: Game 16 | N60: Score | P60: Game 21 | R60: Score
A61: Slappers | B61: 53 | D61: Slappers | F61: 57 | H61: Slappers | J61: 46 | L61: Slappers | N61: 0 | P61: Slappers | R61: 0
A62: Grumpy Old Men | B62: 31 | D62: Shawnee Tribe | F62: 36 | H62: Just Chillin | J62: 33 | L62: Damn Yankees | N62: 0 | P62: District 5 | R62: 0
A64: Game 2 | B64: Score | D64: Game 7 | F64: Score | H64: Game 12 | J64: Score | L64: Game 17 | N64: Score | P64: Game 22 | R64: Score
A65: Slappers | B65: 51 | D65: Slappers | F65: 64 | H65: Slappers | J65: 47 | L65: Slappers | N65: 0 | P65: Slappers | R65: 0
A66: District 5 | B66: 71 | D66: Just Chillin | F66: 69 | H66: Grumpy Old Men | J66: 51 | L66: Riketorians | N66: 0 | P66: Grumpy Old Men | R66: 0
A68: Game 3 | B68: Score | D68: Game 8 | F68: Score | H68: Game 13 | J68: Score | L68: Game 18 | N68: Score
A69: Slappers | B69: 60 | D69: Slappers | F69: 63 | H69: Slappers | J69: 84 | L69: Slappers | N69: 0
A70: Damn Yankees | B70: 60 | D70: Highlanders | F70: 65 | H70: District 5 | J70: 65 | L70: Ravens | N70: 0
A72: Game 4 | B72: Score | D72: Game 9 | F72: Score | H72: Game 14 | J72: Score | L72: Game 19 | N72: Score
A73: Slappers | B73: 45 | D73: Slappers | F73: 59 | H73: Slappers | J73: 60 | L73: Slappers | N73: 0
A74: Ravens | B74: 55 | D74: Arcane Sanctuary | F74: 53 | H74: Ravens | J74: 57 | L74: Shawnee Tribe | N74: 0
A76: Game 5 | B76: Score | D76: Game 10 | F76: Score | H76: Game 15 | J76: Score | L76: Game 20 | N76: Score
A77: Slappers | B77: 73 | D77: Slappers | F77: 57 | H77: Slappers | J77: 0 | L77: Slappers | N77: 0
A78: Arcane Sanctuary | B78: 73 | D78: Riketorians | F78: 49 | H78: Arcane Sanctuary | J78: 0 | L78: Highlanders | N78: 0

Sheet Shawnee Tribe
A1: Team: Shawnee Tribe | C1: General Manager: John Kaziun
D3: Scoring This Week | N3: Players Overall Scoring
A4: Forwards | B4: Gls | C4: Ast | D4: PP | E4: SH | F4: GW | G4: OT | H4: PSG | I4: PTS | K4: Gls | L4: Ast | M4: PP | N4: SH | O4: GW | P4: OT | Q4: PSG | R4: PTS
A5: Teuvo Teravainen | B5: 3 | C5: 2 | D5: 0 | E5: 0 | F5: 0 | G5: 0 | H5: 0 | I5: =(B5+C5+D5+(2*E5)+(2*F5)+G5+(4*H5)) -> 5 | K5: 10 | L5: 20 | M5: 5 | N5: 0 | O5: 0 | P5: 0 | Q5: 0 | R5: =(K5+L5+M5+(2*N5)+(2*O5)+P5+(4*Q5)) -> 35
A6: Seth Jarvis | B6: 3 | C6: 1 | D6: 0 | E6: 0 | F6: 0 | G6: 0 | H6: 0 | I6: =(B6+C6+D6+(2*E6)+(2*F6)+G6+(4*H6)) -> 4 | K6: 12 | L6: 18 | M6: 4 | N6: 1 | O6: 0 | P6: 0 | Q6: 0 | R6: =(K6+L6+M6+(2*N6)+(2*O6)+P6+(4*Q6)) -> 36
A7: Lucas Raymond | B7: 1 | C7: 2 | D7: 1 | E7: 0 | F7: 0 | G7: 0 | H7: 0 | I7: =(B7+C7+D7+(2*E7)+(2*F7)+G7+(4*H7)) -> 4 | K7: 17 | L7: 27 | M7: 4 | N7: 1 | O7: 3 | P7: 1 | Q7: 0 | R7: =(K7+L7+M7+(2*N7)+(2*O7)+P7+(4*Q7)) -> 57
A8: Mika Zibanejad | B8: 0 | C8: 4 | D8: 0 | E8: 0 | F8: 0 | G8: 0 | H8: 0 | I8: =(B8+C8+D8+(2*E8)+(2*F8)+G8+(4*H8)) -> 4 | K8: 8 | L8: 19 | M8: 2 | N8: 0 | O8: 0 | P8: 0 | Q8: 0 | R8: =(K8+L8+M8+(2*N8)+(2*O8)+P8+(4*Q8)) -> 29
A9: Robert Thomas | B9: 3 | C9: 0 | D9: 0 | E9: 0 | F9: 0 | G9: 0 | H9: 0 | I9: =(B9+C9+D9+(2*E9)+(2*F9)+G9+(4*H9)) -> 3 | K9: 11 | L9: 22 | M9: 1 | N9: 1 | O9: 2 | P9: 0 | Q9: 0 | R9: =(K9+L9+M9+(2*N9)+(2*O9)+P9+(4*Q9)) -> 40
A10: Patrik Laine | B10: 1 | C10: 0 | D10: 1 | E10: 0 | F10: 0 | G10: 0 | H10: 0 | I10: =(B10+C10+D10+(2*E10)+(2*F10)+G10+(4*H10)) -> 2 | K10: 9 | L10: 2 | M10: 9 | N10: 0 | O10: 2 | P10: 0 | Q10: 0 | R10: =(K10+L10+M10+(2*N10)+(2*O10)+P10+(4*Q10)) -> 24
A11: Carter Verhaeghe | B11: 1 | C11: 1 | D11: 0 | E11: 0 | F11: 0 | G11: 0 | H11: 0 | I11: =(B11+C11+D11+(2*E11)+(2*F11)+G11+(4*H11)) -> 2 | K11: 10 | L11: 20 | M11: 3 | N11: 0 | O11: 3 | P11: 0 | Q11: 0 | R11: =(K11+L11+M11+(2*N11)+(2*O11)+P11+(4*Q11)) -> 39
A12: Macklin Celebrini | B12: 0 | C12: 1 | D12: 0 | E12: 0 | F12: 0 | G12: 0 | H12: 0 | I12: =(B12+C12+D12+(2*E12)+(2*F12)+G12+(4*H12)) -> 1 | K12: 13 | L12: 16 | M12: 4 | N12: 0 | O12: 3 | P12: 1 | Q12: 0 | R12: =(K12+L12+M12+(2*N12)+(2*O12)+P12+(4*Q12)) -> 40
A13: Leo Carlsson | B13: 0 | C13: 1 | D13: 0 | E13: 0 | F13: 0 | G13: 0 | H13: 0 | I13: =(B13+C13+D13+(2*E13)+(2*F13)+G13+(4*H13)) -> 1 | K13: 8 | L13: 7 | M13: 2 | N13: 0 | O13: 4 | P13: 1 | Q13: 0 | R13: =(K13+L13+M13+(2*N13)+(2*O13)+P13+(4*Q13)) -> 26
A14: Cole Perfetti | B14: 0 | C14: 0 | D14: 0 | E14: 0 | F14: 0 | G14: 0 | H14: 0 | I14: =(B14+C14+D14+(2*E14)+(2*F14)+G14+(4*H14)) -> 0 | K14: 7 | L14: 16 | M14: 3 | N14: 0 | O14: 1 | P14: 0 | Q14: 0 | R14: =(K14+L14+M14+(2*N14)+(2*O14)+P14+(4*Q14)) -> 28
A15: Kirill Kaprizov | B15: 0 | C15: 0 | D15: 0 | E15: 0 | F15: 0 | G15: 0 | H15: 0 | I15: =(B15+C15+D15+(2*E15)+(2*F15)+G15+(4*H15)) -> 0 | K15: 23 | L15: 27 | M15: 3 | N15: 0 | O15: 4 | P15: 1 | Q15: 0 | R15: =(K15+L15+M15+(2*N15)+(2*O15)+P15+(4*Q15)) -> 62
A18: Defense | B18: Gls | C18: Ast | D18: PP | E18: SH | F18: GW | G18: OT | H18: PSG | I18: PTS | K18: Gls | L18: Ast | M18: PP | N18: SH | O18: GW | P18: OT | Q18: PSG | R18: PTS
A19: Lane Hutson | B19: 1 | C19: 4 | D19: 0 | E19: 0 | F19: 0 | G19: 0 | H19: 0 | I19: =(B19+C19+D19+(2*E19)+(2*F19)+G19+(4*H19)) -> 5 | K19: 3 | L19: 29 | M19: 0 | N19: 0 | O19: 0 | P19: 0 | Q19: 0 | R19: =(K19+L19+M19+(2*N19)+(2*O19)+P19+(4*Q19)) -> 32
A20: John Carlson | B20: 0 | C20: 3 | D20: 0 | E20: 0 | F20: 0 | G20: 0 | H20: 0 | I20: =(B20+C20+D20+(2*E20)+(2*F20)+G20+(4*H20)) -> 3 | K20: 3 | L20: 24 | M20: 1 | N20: 0 | O20: 0 | P20: 0 | Q20: 0 | R20: =(K20+L20+M20+(2*N20)+(2*O20)+P20+(4*Q20)) -> 28
A21: Evan Bouchard | B21: 0 | C21: 2 | D21: 0 | E21: 0 | F21: 0 | G21: 0 | H21: 0 | I21: =(B21+C21+D21+(2*E21)+(2*F21)+G21+(4*H21)) -> 2 | K21: 7 | L21: 25 | M21: 0 | N21: 0 | O21: 0 | P21: 0 | Q21: 0 | R21: =(K21+L21+M21+(2*N21)+(2*O21)+P21+(4*Q21)) -> 32
A22: Ryker Evans | B22: 1 | C22: 0 | D22: 0 | E22: 0 | F22: 0 | G22: 0 | H22: 0 | I22: =(B22+C22+D22+(2*E22)+(2*F22)+G22+(4*H22)) -> 1 | K22: 5 | L22: 14 | M22: 1 | N22: 0 | O22: 0 | P22: 0 | Q22: 0 | R22: =(K22+L22+M22+(2*N22)+(2*O22)+P22+(4*Q22)) -> 20
A23: Vince Dunn | B23: 0 | C23: 0 | D23: 0 | E23: 0 | F23: 0 | G23: 0 | H23: 0 | I23: =(B23+C23+D23+(2*E23)+(2*F23)+G23+(4*H23)) -> 0 | K23: 8 | L23: 10 | M23: 1 | N23: 0 | O23: 2 | P23: 1 | Q23: 0 | R23: =(K23+L23+M23+(2*N23)+(2*O23)+P23+(4*Q23)) -> 24
A24: Luke Hughes | B24: 0 | C24: 0 | D24: 0 | E24: 0 | F24: 0 | G24: 0 | H24: 0 | I24: =(B24+C24+D24+(2*E24)+(2*F24)+G24+(4*H24)) -> 0 | K24: 3 | L24: 15 | M24: 0 | N24: 0 | O24: 1 | P24: 0 | Q24: 0 | R24: =(K24+L24+M24+(2*N24)+(2*O24)+P24+(4*Q24)) -> 20
A25: Olen Zellweger | B25: 0 | C25: 0 | D25: 0 | E25: 0 | F25: 0 | G25: 0 | H25: 0 | I25: =(B25+C25+D25+(2*E25)+(2*F25)+G25+(4*H25)) -> 0 | K25: 4 | L25: 8 | M25: 1 | N25: 0 | O25: 0 | P25: 0 | Q25: 0 | R25: =(K25+L25+M25+(2*N25)+(2*O25)+P25+(4*Q25)) -> 13
A27: Goalie | B27: W | C27: OT | D27: SO | E27: Gls | F27: Ast | G27: GAA | H27: SP | I27: PTS | K27: W | L27: OT | M27: SO | N27: Gls | O27: Ast | P27: GAA | Q27: SP | R27: PTS
A28: Igor Shesterkin | B28: 2 | C28: 0 | D28: 0 | E28: 0 | F28: 0 | G28: 1.47 | H28: 0.943 | I28: =((3*B28)+C28+(3*D28)+(10*E28)+(3*F28)+G29+H29) -> 15 | K28: 13 | L28: 1 | M28: 1 | N28: 0 | O28: 0 | P28: 2.98 | Q28: 0.908 | R28: =((3*K28)+L28+(3*M28)+(10*N28)+(3*O28)+P29+Q29) -> 87
B29: 3 | C29: 122.8 | D29: 50 | E29: 53 | G29: 4 | H29: 5 | I29: =((3*B28)+C28+(3*D28)+(10*E28)+(3*F28)+G29+H29) -> 15 | P29: 16 | Q29: 28 | R29: =((2*K28)+L28+(3*M28)+(10*N28)+(3*O28)+P29+Q29) -> 74
A30: Juuse Saros | B30: 0 | C30: 0 | D30: 0 | E30: 0 | F30: 0 | G30: 3.56 | H30: 0.864 | I30: =((3*B30)+C30+(3*D30)+(10*E30)+(3*F30)+G31+H31) -> 0 | K30: 9 | L30: 6 | M30: 4 | N30: 0 | O30: 1 | P30: 2.78 | Q30: 0.904 | R30: =((3*K30)+L30+(3*M30)+(10*N30)+(3*O30)+P31+Q31) -> 88
B31: 7 | C31: 117.93 | D31: 38 | E31: 44 | G31: 0 | H31: 0 | I31: =((3*B30)+C30+(3*D30)+(10*E30)+(3*F30)+G31+H31) -> 0 | P31: 18 | Q31: 22 | R31: =((2*K30)+L30+(3*M30)+(10*N30)+(3*O30)+P31+Q31) -> 79
D32: All Playes Scoring This Week | N32: Cumulative Points
B33: Gls | C33: Ast | D33: PP | E33: SH | F33: GW | G33: OT | H33: PSG | K33: Gls | L33: Ast | M33: PP | N33: SH | O33: GW | P33: OT | Q33: PSG | R33: PTS
A34: Forwards | B34: =SUM(B5:B15) -> 12 | C34: =SUM(C5:C15) -> 12 | D34: 2 | E34: 0 | F34: 0 | G34: 0 | H34: 0 | K34: 133 | L34: 199 | M34: 37 | N34: 3 | O34: 22 | P34: 4 | Q34: 0 | R34: =(K34+L34+M34+(2*N34)+(2*O34)+P34+(4*Q34)) -> 423
A35: Defense | B35: =SUM(B19:B25) -> 2 | C35: =SUM(C19:C25) -> 9 | D35: 0 | E35: 0 | F35: 0 | G35: 0 | H35: 0 | K35: 33 | L35: 127 | M35: 3 | N35: 0 | O35: 2 | P35: 1 | Q35: 0 | R35: =(K35+L35+M35+(2*N35)+(2*O35)+P35+(4*Q35)) -> 168
A36: Total Scorers | B36: =SUM(B34:B35) -> 14 | C36: =SUM(C34:C35) -> 21 | D36: 2 | E36: 0 | F36: 0 | G36: 0 | H36: 0 | K36: =SUM(K34:K35) -> 166 | L36: 326 | M36: 40 | N36: 3 | O36: 24 | P36: 5 | Q36: 0 | R36: =(K36+L36+M36+(2*N36)+(2*O36)+P36+(4*Q36)) -> 591
B37: W | C37: OT | D37: SO | E37: Gls | F37: Ast | G37: GAA | H37: SP | K37: W | L37: OT | M37: SO | N37: Gls | O37: Ast | P37: GAA | Q37: SP | R37: PTS
A38: Goalie Totals | B38: =SUM(B28,B30) -> 2 | C38: =SUM(C28,C30) -> 0 | D38: =SUM(D28,D30) -> 0 | E38: =SUM(E28,E30) -> 0 | F38: =SUM(F28,F30) -> 0 | G38: =IF(C39=0,0,B39/(C39/60)) -> 2.492418893 | H38: =IF(E39=0,0,D39/E39) -> 0.9072164948 | K38: 22 | L38: 7 | M38: 5 | N38: 0 | O38: 1 | P38: =IF(L39=0,0,K39/(L39/60)) -> 2.869343595 | Q38: =IF(N39=0,0,M39/N39) -> 0.9059020045 | R38: =((3*K38)+L38+(3*M38)+(10*N38)+(3*O38)+P39+Q39) -> 175
B39: =SUM(B29,B31) -> 10 | C39: =SUM(C29,C31) -> 240.73 | D39: =SUM(D29,D31) -> 88 | E39: =SUM(E29,E31) -> 97 | K39: 170 | L39: 3554.82 | M39: 1627 | N39: 1796 | P39: 34 | Q39: 50
K40: GA | L40: Time | M40: Saves | N40: Shots
B42: Injured Reserve | M42: This Weeks Totals
A43: Player | B43: P | C43: GP | D43: IR Weeks | E43: Pts | L43: Forwards | N43: =SUM(I5:I12) -> 25
B44: F | L44: Defense | N44: =SUM(I19:I23) -> 11
B45: D | L45: Goalie | N45: =I28 -> 15
B46: G
B47: Flex | L47: Total Points | N47: =SUM(N43:N45) -> 51
A56: Team Record | B56: W | C56: L | D56: T | E56: Pts | F56: CP | G56: BPF | H56: BFA | I56: Streak
A57: Shawnee Tribe | B57: 5 | C57: 8 | D57: 1 | E57: =2*B57+D57 -> 11 | F57: =R36+R38 -> 766 | G57: =SUM(B61,B65,B69,B73,B77,F61,F65,F69,F73,F77,J61,J65,J69,J73,J77,N61,N65,N69,N73,N77,R61,R65) -> 704 | H57: =SUM(B62,B66,B70,B74,B78,F62,F66,F70,F74,F78,J62,J66,J70,J74,J78,N62,N66,N70,N74,N78,R62,R66) -> 778 | I57: Lost 2
A60: Game 1 | B60: Score | D60: Game 6 | F60: Score | H60: Game 11 | J60: Score | L60: Game 16 | N60: Score | P60: Game 21 | R60: Score
A61: Shawnee Tribe | B61: 41 | D61: Shawnee Tribe | F61: 36 | H61: Shawnee Tribe | J61: 53 | L61: Shawnee Tribe | N61: 0 | P61: Shawnee Tribe | R61: 0
A62: Just Chillin | B62: 62 | D62: Slappers | F62: 57 | H62: Ravens | J62: 26 | L62: Arcane Sanctuary | N62: 0 | P62: Grumpy Old Men | R62: 0
A64: Game 2 | B64: Score | D64: Game 7 | F64: Score | H64: Game 12 | J64: Score | L64: Game 17 | N64: Score | P64: Game 22 | R64: Score
A65: Shawnee Tribe | B65: 52 | D65: Shawnee Tribe | F65: 49 | H65: Shawnee Tribe | J65: 44 | L65: Shawnee Tribe | N65: 0 | P65: Shawnee Tribe | R65: 0
A66: Highlanders | B66: 44 | D66: Ravens | F66: 51 | H66: Riketorians | J66: 44 | L66: Highlanders | N66: 0 | P66: Just Chillin | R66: 0
A68: Game 3 | B68: Score | D68: Game 8 | F68: Score | H68: Game 13 | J68: Score | L68: Game 18 | N68: Score
A69: Shawnee Tribe | B69: 60 | D69: Shawnee Tribe | F69: 77 | H69: Shawnee Tribe | J69: 59 | L69: Shawnee Tribe | N69: 0
A70: Riketorians | B70: 46 | D70: Damn Yankees | F70: 76 | H70: Grumpy Old Men | J70: 79 | L70: Damn Yankees | N70: 0
A72: Game 4 | B72: Score | D72: Game 9 | F72: Score | H72: Game 14 | J72: Score | L72: Game 19 | N72: Score
A73: Shawnee Tribe | B73: 44 | D73: Shawnee Tribe | F73: 46 | H73: Shawnee Tribe | J73: 51 | L73: Shawnee Tribe | N73: 0
A74: District 5 | B74: 64 | D74: Highlanders | F74: 72 | H74: Just Chillin | J74: 62 | L74: Slappers | N74: 0
A76: Game 5 | B76: Score | D76: Game 10 | F76: Score | H76: Game 15 | J76: Score | L76: Game 20 | N76: Score
A77: Shawnee Tribe | B77: 52 | D77: Shawnee Tribe | F77: 40 | H77: Shawnee Tribe | J77: 0 | L77: Shawnee Tribe | N77: 0
A78: Damn Yankees | B78: 33 | D78: Arcane Sanctuary | F78: 62 | H78: Riketorians | J78: 0 | L78: District 5 | N78: 0

Sheet Ravens
A1: Team: Ravens | C1: General Manager: Barrett Pagan
D3: Scoring This Week | N3: Players Overall Scoring
A4: Forwards | B4: Gls | C4: Ast | D4: PP | E4: SH | F4: GW | G4: OT | H4: PSG | I4: PTS | K4: Gls | L4: Ast | M4: PP | N4: SH | O4: GW | P4: OT | Q4: PSG | R4: PTS
A5: Travis Konecny | B5: 2 | C5: 5 | D5: 0 | E5: 0 | F5: 0 | G5: 0 | H5: 0 | I5: =(B5+C5+D5+(2*E5)+(2*F5)+G5+(4*H5)) -> 7 | K5: 20 | L5: 30 | M5: 8 | N5: 1 | O5: 2 | P5: 0 | Q5: 0 | R5: =(K5+L5+M5+(2*N5)+(2*O5)+P5+(4*Q5)) -> 64
A6: Brayden Point | B6: 2 | C6: 1 | D6: 1 | E6: 0 | F6: 1 | G6: 0 | H6: 0 | I6: =(B6+C6+D6+(2*E6)+(2*F6)+G6+(4*H6)) -> 6 | K6: 25 | L6: 22 | M6: 12 | N6: 0 | O6: 6 | P6: 2 | Q6: 0 | R6: =(K6+L6+M6+(2*N6)+(2*O6)+P6+(4*Q6)) -> 73
A7: Cole Caufield | B7: 2 | C7: 2 | D7: 0 | E7: 0 | F7: 0 | G7: 0 | H7: 0 | I7: =(B7+C7+D7+(2*E7)+(2*F7)+G7+(4*H7)) -> 4 | K7: 23 | L7: 17 | M7: 7 | N7: 0 | O7: 3 | P7: 0 | Q7: 0 | R7: =(K7+L7+M7+(2*N7)+(2*O7)+P7+(4*Q7)) -> 53
A8: Filip Forsberg | B8: 2 | C8: 0 | D8: 2 | E8: 0 | F8: 0 | G8: 0 | H8: 0 | I8: =(B8+C8+D8+(2*E8)+(2*F8)+G8+(4*H8)) -> 4 | K8: 11 | L8: 24 | M8: 5 | N8: 0 | O8: 1 | P8: 0 | Q8: 0 | R8: =(K8+L8+M8+(2*N8)+(2*O8)+P8+(4*Q8)) -> 42
A9: Alex DeBrincat | B9: 1 | C9: 2 | D9: 0 | E9: 0 | F9: 0 | G9: 0 | H9: 0 | I9: =(B9+C9+D9+(2*E9)+(2*F9)+G9+(4*H9)) -> 3 | K9: 18 | L9: 17 | M9: 7 | N9: 0 | O9: 2 | P9: 0 | Q9: 0 | R9: =(K9+L9+M9+(2*N9)+(2*O9)+P9+(4*Q9)) -> 46
A10: Artturi Lehkonen | B10: 1 | C10: 0 | D10: 0 | E10: 1 | F10: 0 | G10: 0 | H10: 0 | I10: =(B10+C10+D10+(2*E10)+(2*F10)+G10+(4*H10)) -> 3 | K10: 15 | L10: 6 | M10: 1 | N10: 1 | O10: 3 | P10: 0 | Q10: 0 | R10: =(K10+L10+M10+(2*N10)+(2*O10)+P10+(4*Q10)) -> 30
A11: Jake DeBrusk | B11: 1 | C11: 0 | D11: 1 | E11: 0 | F11: 0 | G11: 0 | H11: 0 | I11: =(B11+C11+D11+(2*E11)+(2*F11)+G11+(4*H11)) -> 2 | K11: 17 | L11: 12 | M11: 7 | N11: 0 | O11: 2 | P11: 1 | Q11: 0 | R11: =(K11+L11+M11+(2*N11)+(2*O11)+P11+(4*Q11)) -> 41
A12: Alex Ovechkin | B12: 1 | C12: 1 | D12: 0 | E12: 0 | F12: 0 | G12: 0 | H12: 0 | I12: =(B12+C12+D12+(2*E12)+(2*F12)+G12+(4*H12)) -> 2 | K12: 20 | L12: 12 | M12: 5 | N12: 0 | O12: 4 | P12: 0 | Q12: 0 | R12: =(K12+L12+M12+(2*N12)+(2*O12)+P12+(4*Q12)) -> 45
A13: Matt Duchene | B13: 1 | C13: 0 | D13: 0 | E13: 0 | F13: 0 | G13: 0 | H13: 0 | I13: =(B13+C13+D13+(2*E13)+(2*F13)+G13+(4*H13)) -> 1 | K13: 16 | L13: 22 | M13: 3 | N13: 0 | O13: 4 | P13: 1 | Q13: 0 | R13: =(K13+L13+M13+(2*N13)+(2*O13)+P13+(4*Q13)) -> 50
A14: Sean Monahan | B14: 0 | C14: 1 | D14: 0 | E14: 0 | F14: 0 | G14: 0 | H14: 0 | I14: =(B14+C14+D14+(2*E14)+(2*F14)+G14+(4*H14)) -> 1 | K14: 14 | L14: 27 | M14: 4 | N14: 0 | O14: 2 | P14: 0 | Q14: 0 | R14: =(K14+L14+M14+(2*N14)+(2*O14)+P14+(4*Q14)) -> 49
A15: Alex Laferriere | B15: 0 | C15: 0 | D15: 0 | E15: 0 | F15: 0 | G15: 0 | H15: 0 | I15: =(B15+C15+D15+(2*E15)+(2*F15)+G15+(4*H15)) -> 0 | K15: 13 | L15: 13 | M15: 2 | N15: 0 | O15: 4 | P15: 0 | Q15: 0 | R15: =(K15+L15+M15+(2*N15)+(2*O15)+P15+(4*Q15)) -> 36
A18: Defense | B18: Gls | C18: Ast | D18: PP | E18: SH | F18: GW | G18: OT | H18: PSG | I18: PTS | K18: Gls | L18: Ast | M18: PP | N18: SH | O18: GW | P18: OT | Q18: PSG | R18: PTS
A19: Quinn Hughes | B19: 1 | C19: 4 | D19: 0 | E19: 0 | F19: 0 | G19: 0 | H19: 0 | I19: =(B19+C19+D19+(2*E19)+(2*F19)+G19+(4*H19)) -> 5 | K19: 9 | L19: 38 | M19: 1 | N19: 0 | O19: 1 | P19: 0 | Q19: 0 | R19: =(K19+L19+M19+(2*N19)+(2*O19)+P19+(4*Q19)) -> 50
A20: Jakob Chychrun | B20: 1 | C20: 1 | D20: 1 | E20: 0 | F20: 0 | G20: 0 | H20: 0 | I20: =(B20+C20+D20+(2*E20)+(2*F20)+G20+(4*H20)) -> 3 | K20: 12 | L20: 17 | M20: 4 | N20: 0 | O20: 3 | P20: 1 | Q20: 0 | R20: =(K20+L20+M20+(2*N20)+(2*O20)+P20+(4*Q20)) -> 40
A21: Mattias Ekholm | B21: 0 | C21: 1 | D21: 0 | E21: 0 | F21: 0 | G21: 0 | H21: 0 | I21: =(B21+C21+D21+(2*E21)+(2*F21)+G21+(4*H21)) -> 1 | K21: 6 | L21: 12 | M21: 3 | N21: 0 | O21: 1 | P21: 1 | Q21: 0 | R21: =(K21+L21+M21+(2*N21)+(2*O21)+P21+(4*Q21)) -> 24
A22: Damon Severson | B22: 0 | C22: 1 | D22: 0 | E22: 0 | F22: 0 | G22: 0 | H22: 0 | I22: =(B22+C22+D22+(2*E22)+(2*F22)+G22+(4*H22)) -> 1 | K22: 6 | L22: 12 | M22: 0 | N22: 0 | O22: 1 | P22: 0 | Q22: 0 | R22: =(K22+L22+M22+(2*N22)+(2*O22)+P22+(4*Q22)) -> 20
A23: Michael Kesselring | B23: 0 | C23: 1 | D23: 0 | E23: 0 | F23: 0 | G23: 0 | H23: 0 | I23: =(B23+C23+D23+(2*E23)+(2*F23)+G23+(4*H23)) -> 1 | K23: 4 | L23: 12 | M23: 0 | N23: 0 | O23: 1 | P23: 1 | Q23: 0 | R23: =(K23+L23+M23+(2*N23)+(2*O23)+P23+(4*Q23)) -> 19
A24: Philip Broberg | B24: 0 | C24: 0 | D24: 0 | E24: 0 | F24: 0 | G24: 0 | H24: 0 | I24: =(B24+C24+D24+(2*E24)+(2*F24)+G24+(4*H24)) -> 0 | K24: 3 | L24: 11 | M24: 0 | N24: 0 | O24: 1 | P24: 0 | Q24: 0 | R24: =(K24+L24+M24+(2*N24)+(2*O24)+P24+(4*Q24)) -> 16
A25: Mike Matheson | B25: 0 | C25: 0 | D25: 0 | E25: 0 | F25: 0 | G25: 0 | H25: 0 | I25: =(B25+C25+D25+(2*E25)+(2*F25)+G25+(4*H25)) -> 0 | K25: 2 | L25: 18 | M25: 1 | N25: 0 | O25: 0 | P25: 0 | Q25: 0 | R25: =(K25+L25+M25+(2*N25)+(2*O25)+P25+(4*Q25)) -> 21
A27: Goalie | B27: W | C27: OT | D27: SO | E27: Gls | F27: Ast | G27: GAA | H27: SP | I27: PTS | K27: W | L27: OT | M27: SO | N27: Gls | O27: Ast | P27: GAA | Q27: SP | R27: PTS
A28: Logan Thompson | B28: 2 | C28: 1 | D28: 0 | E28: 0 | F28: 0 | G28: 1.84 | H28: 0.941 | I28: =((3*B28)+C28+(3*D28)+(10*E28)+(3*F28)+G29+H29) -> 15 | K28: 18 | L28: 3 | M28: 0 | N28: 0 | O28: 0 | P28: 2.32 | Q28: 0.919 | R28: =((3*K28)+L28+(3*M28)+(10*N28)+(3*O28)+P29+Q29) -> 107
B29: 5 | C29: 163.09 | D29: 80 | E29: 85 | G29: 3 | H29: 5 | I29: =((3*B28)+C28+(3*D28)+(10*E28)+(3*F28)+G29+H29) -> 15 | P29: 22 | Q29: 28 | R29: =((2*K28)+L28+(3*M28)+(10*N28)+(3*O28)+P29+Q29) -> 89
A30: Jake Oettinger | B30: 2 | C30: 0 | D30: 0 | E30: 0 | F30: 0 | G30: 2.36 | H30: 0.912 | I30: =((3*B30)+C30+(3*D30)+(10*E30)+(3*F30)+G31+H31) -> 10 | K30: 21 | L30: 1 | M30: 1 | N30: 0 | O30: 1 | P30: 2.35 | Q30: 0.91 | R30: =((3*K30)+L30+(3*M30)+(10*N30)+(3*O30)+P31+Q31) -> 125
B31: 5 | C31: 127.29 | D31: 52 | E31: 57 | G31: 2 | H31: 2 | I31: =((3*B30)+C30+(3*D30)+(10*E30)+(3*F30)+G31+H31) -> 10 | P31: 26 | Q31: 29 | R31: =((2*K30)+L30+(3*M30)+(10*N30)+(3*O30)+P31+Q31) -> 104
D32: All Playes Scoring This Week | N32: Cumulative Points
B33: Gls | C33: Ast | D33: PP | E33: SH | F33: GW | G33: OT | H33: PSG | K33: Gls | L33: Ast | M33: PP | N33: SH | O33: GW | P33: OT | Q33: PSG | R33: PTS
A34: Forwards | B34: =SUM(B5:B15) -> 13 | C34: =SUM(C5:C15) -> 12 | D34: 4 | E34: 1 | F34: 1 | G34: 0 | H34: 0 | K34: 186 | L34: 207 | M34: 55 | N34: 2 | O34: 29 | P34: 5 | Q34: 0 | R34: =(K34+L34+M34+(2*N34)+(2*O34)+P34+(4*Q34)) -> 515
A35: Defense | B35: =SUM(B19:B25) -> 2 | C35: =SUM(C19:C25) -> 8 | D35: 1 | E35: 0 | F35: 0 | G35: 0 | H35: 0 | K35: 36 | L35: 122 | M35: 10 | N35: 0 | O35: 6 | P35: 2 | Q35: 0 | R35: =(K35+L35+M35+(2*N35)+(2*O35)+P35+(4*Q35)) -> 182
A36: Total Scorers | B36: =SUM(B34:B35) -> 15 | C36: =SUM(C34:C35) -> 20 | D36: 5 | E36: 1 | F36: 1 | G36: 0 | H36: 0 | K36: =SUM(K34:K35) -> 222 | L36: 329 | M36: 65 | N36: 2 | O36: 35 | P36: 7 | Q36: 0 | R36: =(K36+L36+M36+(2*N36)+(2*O36)+P36+(4*Q36)) -> 697
B37: W | C37: OT | D37: SO | E37: Gls | F37: Ast | G37: GAA | H37: SP | K37: W | L37: OT | M37: SO | N37: Gls | O37: Ast | P37: GAA | Q37: SP | R37: PTS
A38: Goalie Totals | B38: =SUM(B28,B30) -> 4 | C38: =SUM(C28,C30) -> 1 | D38: =SUM(D28,D30) -> 0 | E38: =SUM(E28,E30) -> 0 | F38: =SUM(F28,F30) -> 0 | G38: =IF(C39=0,0,B39/(C39/60)) -> 2.066258007 | H38: =IF(E39=0,0,D39/E39) -> 0.9295774648 | K38: 38 | L38: 5 | M38: 1 | N38: 0 | O38: 1 | P38: =IF(L39=0,0,K39/(L39/60)) -> 2.505946439 | Q38: =IF(N39=0,0,M39/N39) -> 0.9077828646 | R38: =((3*K38)+L38+(3*M38)+(10*N38)+(3*O38)+P39+Q39) -> 222
B39: =SUM(B29,B31) -> 10 | C39: =SUM(C29,C31) -> 290.38 | D39: =SUM(D29,D31) -> 132 | E39: =SUM(E29,E31) -> 142 | K39: 141 | L39: 3375.97 | M39: 1388 | N39: 1529 | P39: 45 | Q39: 52
K40: GA | L40: Time | M40: Saves | N40: Shots
B42: Injured Reserve | M42: This Weeks Totals
A43: Player | B43: P | C43: GP | D43: IR Weeks | E43: Pts | L43: Forwards | N43: =SUM(I5:I12) -> 31
A44: Ivan Barbashev | B44: F | C44: 1 | D44: 1 | E44: 38 | L44: Defense | N44: =SUM(I19:I23) -> 11
B45: D | L45: Goalie | N45: =I28 -> 15
B46: G
B47: Flex | L47: Total Points | N47: =SUM(N43:N45) -> 57
A48: Warning, Ivan Barbashev must be returned to lineup by start of Week 16
A56: Team Record | B56: W | C56: L | D56: T | E56: Pts | F56: CP | G56: BPF | H56: BFA | I56: Streak
A57: Ravens | B57: 8 | C57: 6 | D57: 0 | E57: =2*B57+D57 -> 16 | F57: =R36+R38 -> 919 | G57: =SUM(B61,B65,B69,B73,B77,F61,F65,F69,F73,F77,J61,J65,J69,J73,J77,N61,N65,N69,N73,N77,R61,R65) -> 809 | H57: =SUM(B62,B66,B70,B74,B78,F62,F66,F70,F74,F78,J62,J66,J70,J74,J78,N62,N66,N70,N74,N78,R62,R66) -> 811 | I57: Lost 1
A60: Game 1 | B60: Score | D60: Game 6 | F60: Score | H60: Game 11 | J60: Score | L60: Game 16 | N60: Score | P60: Game 21 | R60: Score
A61: Ravens | B61: 61 | D61: Ravens | F61: 62 | H61: Ravens | J61: 26 | L61: Ravens | N61: 0 | P61: Ravens | R61: 0
A62: District 5 | B62: 45 | D62: Highlanders | F62: 74 | H62: Shawnee Tribe | J62: 53 | L62: Highlanders | N62: 0 | P62: Arcane Sanctuary | R62: 0
A64: Game 2 | B64: Score | D64: Game 7 | F64: Score | H64: Game 12 | J64: Score | L64: Game 17 | N64: Score | P64: Game 22 | R64: Score
A65: Ravens | B65: 65 | D65: Ravens | F65: 51 | H65: Ravens | J65: 39 | L65: Ravens | N65: 0 | P65: Ravens | R65: 0
A66: Arcane Sanctuary | B66: 55 | D66: Shawnee Tribe | F66: 49 | H66: District 5 | J66: 60 | L66: Grumpy Old Men | N66: 0 | P66: District 5 | R66: 0
A68: Game 3 | B68: Score | D68: Game 8 | F68: Score | H68: Game 13 | J68: Score | L68: Game 18 | N68: Score
A69: Ravens | B69: 46 | D69: Ravens | F69: 84 | H69: Ravens | J69: 89 | L69: Ravens | N69: 0
A70: Grumpy Old Men | B70: 74 | D70: Grumpy Old Men | F70: 53 | H70: Arcane Sanctuary | J70: 50 | L70: Slappers | N70: 0
A72: Game 4 | B72: Score | D72: Game 9 | F72: Score | H72: Game 14 | J72: Score | L72: Game 19 | N72: Score
A73: Ravens | B73: 55 | D73: Ravens | F73: 52 | H73: Ravens | J73: 57 | L73: Ravens | N73: 0
A74: Slappers | B74: 45 | D74: Riketorians | F74: 47 | H74: Slappers | J74: 60 | L74: Damn Yankees | N74: 0
A76: Game 5 | B76: Score | D76: Game 10 | F76: Score | H76: Game 15 | J76: Score | L76: Game 20 | N76: Score
A77: Ravens | B77: 55 | D77: Ravens | F77: 67 | H77: Ravens | J77: 0 | L77: Ravens | N77: 0
A78: Just Chillin | B78: 86 | D78: Damn Yankees | F78: 60 | H78: Just Chillin | J78: 0 | L78: Riketorians | N78: 0

Sheet Boxscores
A1: Box Scores Week 1 | G1: Box Scores Week 2
A3: Just Chillin | B3: 33 | C3: 10 | D3: 19 | E3: 62 | G3: Just Chillin | H3: 42 | I3: 13 | J3: 10 | K3: 65
A4: Shawnee Tribe | B4: 22 | C4: 11 | D4: 8 | E4: 41 | G4: Damn Yankees | H4: 31 | I4: 6 | J4: 3 | K4: 40
A6: Damn Yankees | B6: 24 | C6: 13 | D6: 1 | E6: 38 | G6: Shawnee Tribe | H6: 28 | I6: 9 | J6: 15 | K6: 52
A7: Riketorians | B7: 27 | C7: 10 | D7: 12 | E7: 49 | G7: Highlanders | H7: 30 | I7: 11 | J7: 3 | K7: 44
A9: Highlanders | B9: 11 | C9: 13 | D9: 1 | E9: 25 | G9: Riketorians | H9: 48 | I9: 6 | J9: 6 | K9: 60
A10: Arcane Sanctuary | B10: 32 | C10: 6 | D10: 6 | E10: 44 | G10: Grumpy Old Men | H10: 40 | I10: 15 | J10: 8 | K10: 63
A12: Grumpy Old Men | B12: 16 | C12: 12 | D12: 3 | E12: 31 | G12: Arcane Sanctuary | H12: 35 | I12: 15 | J12: 5 | K12: 55
A13: Slappers | B13: 34 | C13: 9 | D13: 10 | E13: 53 | G13: Ravens | H13: 33 | I13: 17 | J13: 15 | K13: 65
A15: District 5 | B15: 31 | C15: 6 | D15: 8 | E15: 45 | G15: Slappers | H15: 28 | I15: 11 | J15: 12 | K15: 51
A16: Ravens | B16: 38 | C16: 6 | D16: 17 | E16: 61 | G16: District 5 | H16: 45 | I16: 13 | J16: 13 | K16: 71
A18: Box Scores Week 3 | G18: Box Scores Week 4
A20: Just Chillin | B20: 31 | C20: 15 | D20: 10 | E20: 56 | G20: Just Chillin | H20: 29 | I20: 16 | J20: 7 | K20: 52
A21: Highlanders | B21: 30 | C21: 12 | D21: 16 | E21: 58 | G21: Riketorians | H21: 35 | I21: 7 | J21: 11 | K21: 53
A23: Shawnee Tribe | B23: 35 | C23: 7 | D23: 18 | E23: 60 | G23: Shawnee Tribe | H23: 25 | I23: 10 | J23: 9 | K23: 44
A24: Riketorians | B24: 26 | C24: 13 | D24: 7 | E24: 46 | G24: District 5 | H24: 36 | I24: 10 | J24: 18 | K24: 64
A26: Damn Yankees | B26: 44 | C26: 10 | D26: 6 | E26: 60 | G26: Damn Yankees | H26: 30 | I26: 15 | J26: 5 | K26: 50
A27: Slappers | B27: 36 | C27: 9 | D27: 15 | E27: 60 | G27: Highlanders | H27: 36 | I27: 12 | J27: 4 | K27: 52
A29: Arcane Sanctuary | B29: 31 | C29: 14 | D29: 8 | E29: 53 | G29: Arcane Sanctuary | H29: 39 | I29: 9 | J29: 7 | K29: 55
A30: District 5 | B30: 44 | C30: 14 | D30: 7 | E30: 65 | G30: Grumpy Old Men | H30: 34 | I30: 16 | J30: 8 | K30: 58
A32: Grumpy Old Men | B32: 40 | C32: 22 | D32: 12 | E32: 74 | G32: Slappers | H32: 25 | I32: 20 | J32: 0 | K32: 45
A33: Ravens | B33: 32 | C33: 10 | D33: 4 | E33: 46 | G33: Ravens | H33: 39 | I33: 13 | J33: 3 | K33: 55
A35: Box Scores Week 5 | G35: Box Scores Week 6
A37: Just Chillin | B37: 43 | C37: 16 | D37: 27 | E37: 86 | G37: Just Chillin | H37: 29 | I37: 9 | J37: 4 | K37: 42
A38: Ravens | B38: 39 | C38: 11 | D38: 5 | E38: 55 | G38: District 5 | H38: 32 | I38: 9 | J38: 9 | K38: 50
A40: Shawnee Tribe | B40: 31 | C40: 7 | D40: 14 | E40: 52 | G40: Shawnee Tribe | H40: 15 | I40: 13 | J40: 8 | K40: 36
A41: Damn Yankees | B41: 18 | C41: 9 | D41: 6 | E41: 33 | G41: Slappers | H41: 37 | I41: 17 | J41: 3 | K41: 57
A43: Riketorians | B43: 28 | C43: 6 | D43: 7 | E43: 41 | G43: Damn Yankees | H43: 26 | I43: 13 | J43: 6 | K43: 45
A44: Highlanders | B44: 38 | C44: 11 | D44: 11 | E44: 60 | G44: Grumpy Old Men | H44: 26 | I44: 10 | J44: 8 | K44: 44
A46: Arcane Sanctuary | B46: 41 | C46: 12 | D46: 20 | E46: 73 | G46: Riketorians | H46: 28 | I46: 3 | J46: 19 | K46: 50
A47: Slappers | B47: 49 | C47: 12 | D47: 12 | E47: 73 | G47: Arcane Sanctuary | H47: 25 | I47: 14 | J47: 5 | K47: 44
A49: Grumpy Old Men | B49: 47 | C49: 10 | D49: 12 | E49: 69 | G49: Highlanders | H49: 44 | I49: 14 | J49: 16 | K49: 74
A50: District 5 | B50: 40 | C50: 14 | D50: 7 | E50: 61 | G50: Ravens | H50: 34 | I50: 10 | J50: 18 | K50: 62
A52: Box Scores Week 7 | G52: Box Scores Week 8
A54: Just Chillin | B54: 36 | C54: 17 | D54: 16 | E54: 69 | G54: Just Chillin | H54: 34 | I54: 17 | J54: 10 | K54: 61
A55: Slappers | B55: 36 | C55: 13 | D55: 15 | E55: 64 | G55: Riketorians | H55: 35 | I55: 13 | J55: 15 | K55: 63
A57: Shawnee Tribe | B57: 26 | C57: 11 | D57: 12 | E57: 49 | G57: Shawnee Tribe | H57: 56 | I57: 18 | J57: 3 | K57: 77
A58: Ravens | B58: 33 | C58: 7 | D58: 11 | E58: 51 | G58: Damn Yankees | H58: 42 | I58: 16 | J58: 18 | K58: 76
A60: Damn Yankees | B60: 19 | C60: 14 | D60: 15 | E60: 48 | G60: Highlanders | H60: 38 | I60: 10 | J60: 17 | K60: 65
A61: Arcane Sanctuary | B61: 29 | C61: 10 | D61: 0 | E61: 39 | G61: Slappers | H61: 36 | I61: 19 | J61: 8 | K61: 63
A63: Riketorians | B63: 35 | C63: 4 | D63: 7 | E63: 46 | G63: Arcane Sanctuary | H63: 35 | I63: 9 | J63: 0 | K63: 44
A64: District 5 | B64: 25 | C64: 16 | D64: 11 | E64: 52 | G64: District 5 | H64: 25 | I64: 13 | J64: 7 | K64: 45
A66: Highlanders | B66: 31 | C66: 14 | D66: 7 | E66: 52 | G66: Grumpy Old Men | H66: 32 | I66: 10 | J66: 11 | K66: 53
A67: Grumpy Old Men | B67: 39 | C67: 14 | D67: 12 | E67: 65 | G67: Ravens | H67: 48 | I67: 25 | J67: 11 | K67: 84
A69: Box Scores Week 9 | G69: Box Scores Week 10
A71: Just Chillin | B71: 27 | C71: 7 | D71: 10 | E71: 44 | G71: Just Chillin | H71: 54 | I71: 13 | J71: 14 | K71: 81
A72: Damn Yankees | B72: 28 | C72: 9 | D72: 10 | E72: 47 | G72: Grumpy Old Men | H72: 22 | I72: 11 | J72: 6 | K72: 39
A74: Shawnee Tribe | B74: 30 | C74: 13 | D74: 3 | E74: 46 | G74: Shawnee Tribe | H74: 27 | I74: 10 | J74: 3 | K74: 40
A75: Highlanders | B75: 44 | C75: 13 | D75: 15 | E75: 72 | G75: Arcane Sanctuary | H75: 41 | I75: 9 | J75: 12 | K75: 62
A77: Riketorians | B77: 25 | C77: 10 | D77: 12 | E77: 47 | G77: Damn Yankees | H77: 36 | I77: 10 | J77: 14 | K77: 60
A78: Ravens | B78: 25 | C78: 17 | D78: 10 | E78: 52 | G78: Ravens | H78: 45 | I78: 11 | J78: 11 | K78: 67
A80: Arcane Sanctuary | B80: 32 | C80: 10 | D80: 11 | E80: 53 | G80: Riketorians | H80: 30 | I80: 9 | J80: 10 | K80: 49
A81: Slappers | B81: 36 | C81: 13 | D81: 10 | E81: 59 | G81: Slappers | H81: 41 | I81: 9 | J81: 7 | K81: 57
A83: Grumpy Old Men | B83: 52 | C83: 16 | D83: 12 | E83: 80 | G83: Highlanders | H83: 38 | I83: 19 | J83: 12 | K83: 69
A84: District 5 | B84: 27 | C84: 12 | D84: 14 | E84: 53 | G84: District 5 | H84: 40 | I84: 7 | J84: 13 | K84: 60
A86: Box Scores Week 11 | G86: Box Scores Week 12
A88: Just Chillin | B88: 21 | C88: 6 | D88: 6 | E88: 33 | G88: Just Chillin | H88: 25 | I88: 8 | J88: 18 | K88: 51
A89: Slappers | B89: 32 | C89: 9 | D89: 5 | E89: 46 | G89: Arcane Sanctuary | H89: 24 | I89: 5 | J89: 3 | K89: 32
A91: Shawnee Tribe | B91: 37 | C91: 7 | D91: 9 | E91: 53 | G91: Shawnee Tribe | H91: 21 | I91: 12 | J91: 11 | K91: 44
A92: Ravens | B92: 14 | C92: 9 | D92: 3 | E92: 26 | G92: Riketorians | H92: 23 | I92: 5 | J92: 16 | K92: 44
A94: Damn Yankees | B94: 27 | C94: 6 | D94: 3 | E94: 36 | G94: Damn Yankees | H94: 28 | I94: 7 | J94: 3 | K94: 38
A95: District 5 | B95: 21 | C95: 4 | D95: 12 | E95: 37 | G95: Highlanders | H95: 33 | I95: 13 | J95: 12 | K95: 58
A97: Riketorians | B97: 20 | C97: 8 | D97: 12 | E97: 40 | G97: Grumpy Old Men | H97: 23 | I97: 15 | J97: 13 | K97: 51
A98: Grumpy Old Men | B98: 21 | C98: 7 | D98: 16 | E98: 44 | G98: Slappers | H98: 30 | I98: 9 | J98: 8 | K98: 47
A100: Highlanders | B100: 19 | C100: 5 | D100: 3 | E100: 27 | G100: District 5 | H100: 34 | I100: 4 | J100: 22 | K100: 60
A101: Arcane Sanctuary | B101: 19 | C101: 3 | D101: 0 | E101: 22 | G101: Ravens | H101: 20 | I101: 7 | J101: 12 | K101: 39
A103: Box Scores Week 13 | G103: Box Scores Week 14
A105: Just Chillin | B105: 51 | C105: 16 | D105: 18 | E105: 85 | G105: Just Chillin | H105: 28 | I105: 16 | J105: 18 | K105: 62
A106: Highlanders | B106: 49 | C106: 11 | D106: 23 | E106: 83 | G106: Shawnee Tribe | H106: 25 | I106: 11 | J106: 15 | K106: 51
A108: Shawnee Tribe | B108: 31 | C108: 22 | D108: 6 | E108: 59 | G108: Damn Yankees | H108: 33 | I108: 12 | J108: 13 | K108: 58
A109: Grumpy Old Men | B109: 50 | C109: 21 | D109: 8 | E109: 79 | G109: District 5 | H109: 36 | I109: 7 | J109: 16 | K109: 59
A111: Damn Yankees | B111: 38 | C111: 12 | D111: 21 | E111: 71 | G111: Riketorians | H111: 39 | I111: 12 | J111: 13 | K111: 64
A112: Riketorians | B112: 51 | C112: 11 | D112: 12 | E112: 74 | G112: Highlanders | H112: 38 | I112: 14 | J112: 5 | K112: 57
A114: Arcane Sanctuary | B114: 39 | C114: 8 | D114: 3 | E114: 50 | G114: Arcane Sanctuary | H114: 19 | I114: 9 | J114: 2 | K114: 30
A115: Ravens | B115: 56 | C115: 18 | D115: 15 | E115: 89 | G115: Grumpy Old Men | H115: 43 | I115: 9 | J115: 7 | K115: 59
A117: Slappers | B117: 45 | C117: 23 | D117: 16 | E117: 84 | G117: Slappers | H117: 34 | I117: 11 | J117: 15 | K117: 60
A118: District 5 | B118: 37 | C118: 21 | D118: 7 | E118: 65 | G118: Ravens | H118: 31 | I118: 11 | J118: 15 | K118: 57
A120: Box Scores Week 15 | G120: Box Scores Week 16
A122: Just Chillin | B122: 0 | C122: 0 | D122: 0 | E122: 0 | G122: Just Chillin | H122: 0 | I122: 0 | J122: 0 | K122: 0
A123: Ravens | B123: 0 | C123: 0 | D123: 0 | E123: 0 | G123: Grumpy Old Men | H123: 0 | I123: 0 | J123: 0 | K123: 0
A125: Shawnee Tribe | B125: 0 | C125: 0 | D125: 0 | E125: 0 | G125: Shawnee Tribe | H125: 0 | I125: 0 | J125: 0 | K125: 0
A126: Riketorians | B126: 0 | C126: 0 | D126: 0 | E126: 0 | G126: Arcane Sanctuary | H126: 0 | I126: 0 | J126: 0 | K126: 0
A128: Damn Yankees | B128: 0 | C128: 0 | D128: 0 | E128: 0 | G128: Damn Yankees | H128: 0 | I128: 0 | J128: 0 | K128: 0
A129: Highlanders | B129: 0 | C129: 0 | D129: 0 | E129: 0 | G129: Slappers | H129: 0 | I129: 0 | J129: 0 | K129: 0
A131: Arcane Sanctuary | B131: 0 | C131: 0 | D131: 0 | E131: 0 | G131: Riketorians | H131: 0 | I131: 0 | J131: 0 | K131: 0
A132: Slappers | B132: 0 | C132: 0 | D132: 0 | E132: 0 | G132: District 5 | H132: 0 | I132: 0 | J132: 0 | K132: 0
A134: Grumpy Old Men | B134: 0 | C134: 0 | D134: 0 | E134: 0 | G134: Highlanders | H134: 0 | I134: 0 | J134: 0 | K134: 0
A135: District 5 | B135: 0 | C135: 0 | D135: 0 | E135: 0 | G135: Ravens | H135: 0 | I135: 0 | J135: 0 | K135: 0
A137: Box Scores Week 17 | G137: Box Scores Week 18
A139: Just Chillin | B139: 0 | C139: 0 | D139: 0 | E139: 0 | G139: Just Chillin | H139: 0 | I139: 0 | J139: 0 | K139: 0
A140: Damn Yankees | B140: 0 | C140: 0 | D140: 0 | E140: 0 | G140: Riketorians | H140: 0 | I140: 0 | J140: 0 | K140: 0
A142: Shawnee Tribe | B142: 0 | C142: 0 | D142: 0 | E142: 0 | G142: Shawnee Tribe | H142: 0 | I142: 0 | J142: 0 | K142: 0
A143: Highlanders | B143: 0 | C143: 0 | D143: 0 | E143: 0 | G143: Damn Yankees | H143: 0 | I143: 0 | J143: 0 | K143: 0
A145: Riketorians | B145: 0 | C145: 0 | D145: 0 | E145: 0 | G145: Highlanders | H145: 0 | I145: 0 | J145: 0 | K145: 0
A146: Slappers | B146: 0 | C146: 0 | D146: 0 | E146: 0 | G146: District 5 | H146: 0 | I146: 0 | J146: 0 | K146: 0
A148: Arcane Sanctuary | B148: 0 | C148: 0 | D148: 0 | E148: 0 | G148: Arcane Sanctuary | H148: 0 | I148: 0 | J148: 0 | K148: 0
A149: District 5 | B149: 0 | C149: 0 | D149: 0 | E149: 0 | G149: Grumpy Old Men | H149: 0 | I149: 0 | J149: 0 | K149: 0
A151: Grumpy Old Men | B151: 0 | C151: 0 | D151: 0 | E151: 0 | G151: Slappers | H151: 0 | I151: 0 | J151: 0 | K151: 0
A152: Ravens | B152: 0 | C152: 0 | D152: 0 | E152: 0 | G152: Ravens | H152: 0 | I152: 0 | J152: 0 | K152: 0
A154: Box Scores Week 19 | G154: Box Scores Week 20
A156: Just Chillin | B156: 0 | C156: 0 | D156: 0 | E156: 0 | G156: Just Chillin | H156: 0 | I156: 0 | J156: 0 | K156: 0
A157: District 5 | B157: 0 | C157: 0 | D157: 0 | E157: 0 | G157: Arcane Sanctuary | H157: 0 | I157: 0 | J157: 0 | K157: 0
A159: Shawnee Tribe | B159: 0 | C159: 0 | D159: 0 | E159: 0 | G159: Shawnee Tribe | H159: 0 | I159: 0 | J159: 0 | K159: 0
A160: Slappers | B160: 0 | C160: 0 | D160: 0 | E160: 0 | G160: District 5 | H160: 0 | I160: 0 | J160: 0 | K160: 0
A162: Damn Yankees | B162: 0 | C162: 0 | D162: 0 | E162: 0 | G162: Damn Yankees | H162: 0 | I162: 0 | J162: 0 | K162: 0
A163: Ravens | B163: 0 | C163: 0 | D163: 0 | E163: 0 | G163: Grumpy Old Men | H163: 0 | I163: 0 | J163: 0 | K163: 0
A165: Riketorians | B165: 0 | C165: 0 | D165: 0 | E165: 0 | G165: Riketorians | H165: 0 | I165: 0 | J165: 0 | K165: 0
A166: Arcane Sanctuary | B166: 0 | C166: 0 | D166: 0 | E166: 0 | G166: Ravens | H166: 0 | I166: 0 | J166: 0 | K166: 0
A168: Highlanders | B168: 0 | C168: 0 | D168: 0 | E168: 0 | G168: Highlanders | H168: 0 | I168: 0 | J168: 0 | K168: 0
A169: Grumpy Old Men | B169: 0 | C169: 0 | D169: 0 | E169: 0 | G169: Slappers | H169: 0 | I169: 0 | J169: 0 | K169: 0
A171: Box Scores Week 21 | G171: Box Scores Week 22
A173: Just Chillin | B173: 0 | C173: 0 | D173: 0 | E173: 0 | G173: Just Chillin | H173: 0 | I173: 0 | J173: 0 | K173: 0
A174: Highlanders | B174: 0 | C174: 0 | D174: 0 | E174: 0 | G174: Shawnee Tribe | H174: 0 | I174: 0 | J174: 0 | K174: 0
A176: Shawnee Tribe | B176: 0 | C176: 0 | D176: 0 | E176: 0 | G176: Damn Yankees | H176: 0 | I176: 0 | J176: 0 | K176: 0
A177: Grumpy Old Men | B177: 0 | C177: 0 | D177: 0 | E177: 0 | G177: Arcane Sanctuary | H177: 0 | I177: 0 | J177: 0 | K177: 0
A179: Damn Yankees | B179: 0 | C179: 0 | D179: 0 | E179: 0 | G179: Riketorians | H179: 0 | I179: 0 | J179: 0 | K179: 0
A180: Riketorians | B180: 0 | C180: 0 | D180: 0 | E180: 0 | G180: Highlanders | H180: 0 | I180: 0 | J180: 0 | K180: 0
A182: Arcane Sanctuary | B182: 0 | C182: 0 | D182: 0 | E182: 0 | G182: Grumpy Old Men | H182: 0 | I182: 0 | J182: 0 | K182: 0
A183: Ravens | B183: 0 | C183: 0 | D183: 0 | E183: 0 | G183: Slappers | H183: 0 | I183: 0 | J183: 0 | K183: 0
A185: Slappers | B185: 0 | C185: 0 | D185: 0 | E185: 0 | G185: District 5 | H185: 0 | I185: 0 | J185: 0 | K185: 0
A186: District 5 | B186: 0 | C186: 0 | D186: 0 | E186: 0 | G186: Ravens | H186: 0 | I186: 0 | J186: 0 | K186: 0

Sheet Weekly Calc
A1: Forwards | C1: Points | E1: Defense | G1: Points | I1: Goalie | K1: Points
A2: =Highlanders!A5 -> Nick Suzuki | B2: (HGL) | C2: =Highlanders!I5 -> 12 | E2: =Highlanders!A19 -> Adam Fox | F2: (HGL) | G2: =Highlanders!I19 -> 6 | I2: ='Just Chillin'!A28 -> Connor Hellebuyck | J2: (JCH) | K2: ='Just Chillin'!I28 -> 18
A3: =Slappers!A5 -> David Pastrnak | B3: (SLP) | C3: =Slappers!I5 -> 9 | E3: ='Shawnee Tribe'!A19 -> Lane Hutson | F3: (SHW) | G3: ='Shawnee Tribe'!I19 -> 5 | I3: ='District 5'!A28 -> Ilya Sorokin | J3: (DI5) | K3: ='District 5'!I28 -> 16
A4: ='Grumpy Old Men'!A5 -> Vincent Trocheck | B4: (GOM) | C4: ='Grumpy Old Men'!I5 -> 8 | E4: ='Just Chillin'!A19 -> Zach Werenski | F4: (JCH) | G4: ='Just Chillin'!I19 -> 5 | I4: =Slappers!A28 -> Dustin Wolf | J4: (SLP) | K4: =Slappers!I28 -> 15
A5: =Highlanders!A6 -> Patrick Kane | B5: (HGL) | C5: =Highlanders!I6 -> 8 | E5: =Ravens!A19 -> Quinn Hughes | F5: (RAV) | G5: =Ravens!I19 -> 5 | I5: =Ravens!A28 -> Logan Thompson | J5: (RAV) | K5: =Ravens!I28 -> 15
A6: ='Grumpy Old Men'!A6 -> Bo Horvat | B6: (GOM) | C6: ='Grumpy Old Men'!I6 -> 8 | E6: ='Grumpy Old Men'!A19 -> Devon Toews | F6: (GOM) | G6: ='Grumpy Old Men'!I19 -> 5 | I6: ='Shawnee Tribe'!A28 -> Igor Shesterkin | J6: (SHW) | K6: ='Shawnee Tribe'!I28 -> 15
A7: =Ravens!A5 -> Travis Konecny | B7: (RAV) | C7: =Ravens!I5 -> 7 | E7: =Riketorians!A19 -> Erik Karlsson | F7: (RIK) | G7: =Riketorians!I19 -> 5 | I7: ='Damn Yankees'!A28 -> Darcy Kuemper | J7: (DYK) | K7: ='Damn Yankees'!I28 -> 13
A8: ='District 5'!A5 -> Matt Boldy | B8: (DI5) | C8: ='District 5'!I5 -> 7 | E8: ='Just Chillin'!A20 -> Morgan Rielly | F8: (JCH) | G8: ='Just Chillin'!I20 -> 5 | I8: =Riketorians!A28 -> Andrei Vasilevskiy | J8: (RIK) | K8: =Riketorians!I28 -> 13
A9: =Riketorians!A5 -> Artemi Panarin | B9: (RIK) | C9: =Riketorians!I5 -> 7 | E9: =Slappers!A19 -> Jackson LaCombe | F9: (SLP) | G9: =Slappers!I19 -> 3 | I9: ='District 5'!A30 -> Jacob Markstrom | J9: (DI5) | K9: ='District 5'!I30 -> 11
A10: ='Grumpy Old Men'!A7 -> Jamie Benn | B10: (GOM) | C10: ='Grumpy Old Men'!I7 -> 7 | E10: ='Damn Yankees'!A19 -> Thomas Harley | F10: (DYK) | G10: ='Damn Yankees'!I19 -> 3 | I10: =Ravens!A30 -> Jake Oettinger | J10: (RAV) | K10: =Ravens!I30 -> 10
A11: =Ravens!A6 -> Brayden Point | B11: (RAV) | C11: =Ravens!I6 -> 6 | E11: ='District 5'!A19 -> Jamie Drysdale | F11: (DI5) | G11: ='District 5'!I19 -> 3 | I11: ='Grumpy Old Men'!A28 -> Sergei Bobrovsky | J11: (GOM) | K11: ='Grumpy Old Men'!I28 -> 7
A12: ='Just Chillin'!A5 -> Jordan Kyrou | B12: (JCH) | C12: ='Just Chillin'!I5 -> 6 | E12: =Slappers!A20 -> Rasmus Dahlin | F12: (SLP) | G12: =Slappers!I20 -> 3 | I12: =Slappers!A30 -> Jeremy Swayman | J12: (SLP) | K12: =Slappers!I30 -> 6
A13: =Slappers!A6 -> Sebastian Aho | B13: (SLP) | C13: =Slappers!I6 -> 6 | E13: ='Shawnee Tribe'!A20 -> John Carlson | F13: (SHW) | G13: ='Shawnee Tribe'!I20 -> 3 | I13: =Highlanders!A28 -> Stuart Skinner | J13: (HGL) | K13: =Highlanders!I28 -> 5
A14: =Highlanders!A7 -> Mathew Barzal | B14: (HGL) | C14: =Highlanders!I7 -> 6 | E14: ='District 5'!A20 -> Dougie Hamilton | F14: (DI5) | G14: ='District 5'!I20 -> 3 | I14: ='Grumpy Old Men'!A30 -> Pyotr Kochetkov | J14: (GOM) | K14: ='Grumpy Old Men'!I30 -> 4
A15: =Riketorians!A6 -> Sidney Crosby | B15: (RIK) | C15: =Riketorians!I6 -> 6 | E15: =Ravens!A20 -> Jakob Chychrun | F15: (RAV) | G15: =Ravens!I20 -> 3 | I15: ='Just Chillin'!A30 -> Joseph Woll | J15: (JCH) | K15: ='Just Chillin'!I30 -> 3
A16: ='Just Chillin'!A6 -> Zach Hyman | B16: (JCH) | C16: ='Just Chillin'!I6 -> 6 | E16: ='Arcane Sanctuary'!A19 -> Dmitry Orlov | F16: (ARS) | G16: ='Arcane Sanctuary'!I19 -> 3 | I16: ='Damn Yankees'!A30 -> Thatcher Demko | J16: (DYK) | K16: ='Damn Yankees'!I30 -> 3
A17: ='Damn Yankees'!A5 -> Auston Matthews | B17: (DYK) | C17: ='Damn Yankees'!I5 -> 6 | E17: =Riketorians!A20 -> Alexander Romanov | F17: (RIK) | G17: =Riketorians!I20 -> 3 | I17: ='Arcane Sanctuary'!A28 -> David Rittich | J17: (ARS) | K17: ='Arcane Sanctuary'!I28 -> 2
A18: ='Shawnee Tribe'!A5 -> Teuvo Teravainen | B18: (SHW) | C18: ='Shawnee Tribe'!I5 -> 5 | E18: ='Damn Yankees'!A20 -> Roman Josi | F18: (DYK) | G18: ='Damn Yankees'!I20 -> 3 | I18: =Highlanders!A30 -> Filip Gustavsson | J18: (HGL) | K18: =Highlanders!I30 -> 0
A19: =Riketorians!A7 -> Mats Zuccarello | B19: (RIK) | C19: =Riketorians!I7 -> 5 | E19: ='Damn Yankees'!A21 -> Ryan Pulock | F19: (DYK) | G19: ='Damn Yankees'!I21 -> 3 | I19: =Riketorians!A30 -> Jordan Binnington | J19: (RIK) | K19: =Riketorians!I30 -> 0
A20: ='Just Chillin'!A7 -> Mark Scheifele | B20: (JCH) | C20: ='Just Chillin'!I7 -> 5 | E20: ='Just Chillin'!A21 -> Mason Lohrei | F20: (JCH) | G20: ='Just Chillin'!I21 -> 3 | I20: ='Shawnee Tribe'!A30 -> Juuse Saros | J20: (SHW) | K20: ='Shawnee Tribe'!I30 -> 0
A21: ='Damn Yankees'!A6 -> Tom Wilson | B21: (DYK) | C21: ='Damn Yankees'!I6 -> 5 | E21: ='Grumpy Old Men'!A20 -> Charlie McAvoy | F21: (GOM) | G21: ='Grumpy Old Men'!I20 -> 2 | I21: ='Arcane Sanctuary'!A30 -> Anthony Stolarz | J21: (ARS) | K21: ='Arcane Sanctuary'!I30 -> 0
A22: =Riketorians!A8 -> Adrian Kempe | B22: (RIK) | C22: =Riketorians!I8 -> 5 | E22: =Slappers!A21 -> Colton Parayko | F22: (SLP) | G22: =Slappers!I21 -> 2
A23: =Slappers!A7 -> Jack Hughes | B23: (SLP) | C23: =Slappers!I7 -> 5 | E23: ='Shawnee Tribe'!A21 -> Evan Bouchard | F23: (SHW) | G23: ='Shawnee Tribe'!I21 -> 2
A24: ='Grumpy Old Men'!A8 -> Nikolaj Ehlers | B24: (GOM) | C24: ='Grumpy Old Men'!I8 -> 5 | E24: =Slappers!A22 -> Brent Burns | F24: (SLP) | G24: =Slappers!I22 -> 2
A25: ='District 5'!A6 -> Nikita Kucherov | B25: (DI5) | C25: ='District 5'!I6 -> 5 | E25: ='Grumpy Old Men'!A21 -> Brett Kulak | F25: (GOM) | G25: ='Grumpy Old Men'!I21 -> 2
A26: ='District 5'!A7 -> Kyle Connor | B26: (DI5) | C26: ='District 5'!I7 -> 5 | E26: =Highlanders!A20 -> Josh Morrissey | F26: (HGL) | G26: =Highlanders!I20 -> 2
A27: =Riketorians!A9 -> Connor McDavid | B27: (RIK) | C27: =Riketorians!I9 -> 5 | E27: =Highlanders!A21 -> Thomas Chabot | F27: (HGL) | G27: =Highlanders!I21 -> 2
A28: ='Arcane Sanctuary'!A5 -> John Tavares | B28: (ARS) | C28: ='Arcane Sanctuary'!I5 -> 4 | E28: ='Arcane Sanctuary'!A20 -> Victor Hedman | F28: (ARS) | G28: ='Arcane Sanctuary'!I20 -> 2
A29: =Highlanders!A8 -> Leon Draisaitl | B29: (HGL) | C29: =Highlanders!I8 -> 4 | E29: =Riketorians!A21 -> Marcus Pettersson | F29: (RIK) | G29: =Riketorians!I21 -> 2
A30: ='Damn Yankees'!A7 -> Mark Stone | B30: (DYK) | C30: ='Damn Yankees'!I7 -> 4 | E30: ='Arcane Sanctuary'!A21 -> Gustav Forsling | F30: (ARS) | G30: ='Arcane Sanctuary'!I21 -> 2
A31: =Ravens!A7 -> Cole Caufield | B31: (RAV) | C31: =Ravens!I7 -> 4 | E31: ='Just Chillin'!A22 -> Matt Grzelcyk | F31: (JCH) | G31: ='Just Chillin'!I22 -> 2
A32: =Ravens!A8 -> Filip Forsberg | B32: (RAV) | C32: =Ravens!I8 -> 4 | E32: =Highlanders!A22 -> Shea Theodore | F32: (HGL) | G32: =Highlanders!I22 -> 2
A33: ='Grumpy Old Men'!A9 -> Andrei Svechnikov | B33: (GOM) | C33: ='Grumpy Old Men'!I9 -> 4 | E33: =Highlanders!A23 -> Jake Sanderson | F33: (HGL) | G33: =Highlanders!I23 -> 2
A34: ='District 5'!A8 -> Sam Reinhart | B34: (DI5) | C34: ='District 5'!I8 -> 4 | E34: ='Damn Yankees'!A22 -> MacKenzie Weegar | F34: (DYK) | G34: ='Damn Yankees'!I22 -> 2
A35: ='Shawnee Tribe'!A6 -> Seth Jarvis | B35: (SHW) | C35: ='Shawnee Tribe'!I6 -> 4 | E35: =Highlanders!A24 -> Simon Edvinsson | F35: (HGL) | G35: =Highlanders!I24 -> 2
A36: ='Shawnee Tribe'!A7 -> Lucas Raymond | B36: (SHW) | C36: ='Shawnee Tribe'!I7 -> 4 | E36: ='District 5'!A21 -> Miro Heiskanen | F36: (DI5) | G36: ='District 5'!I21 -> 1
A37: =Slappers!A8 -> Rickard Rakell | B37: (SLP) | C37: =Slappers!I8 -> 4 | E37: =Ravens!A21 -> Mattias Ekholm | F37: (RAV) | G37: =Ravens!I21 -> 1
A38: ='Damn Yankees'!A8 -> J.T. Miller | B38: (DYK) | C38: ='Damn Yankees'!I8 -> 4 | E38: =Riketorians!A22 -> Dylan DeMelo | F38: (RIK) | G38: =Riketorians!I22 -> 1
A39: ='Grumpy Old Men'!A10 -> Roope Hintz | B39: (GOM) | C39: ='Grumpy Old Men'!I10 -> 4 | E39: =Riketorians!A23 -> Chris Tanev | F39: (RIK) | G39: =Riketorians!I23 -> 1
A40: =Riketorians!A10 -> Brock Nelson | B40: (RIK) | C40: =Riketorians!I10 -> 4 | E40: =Ravens!A22 -> Damon Severson | F40: (RAV) | G40: =Ravens!I22 -> 1
A41: ='District 5'!A9 -> Jason Robertson | B41: (DI5) | C41: ='District 5'!I9 -> 4 | E41: ='Shawnee Tribe'!A22 -> Ryker Evans | F41: (SHW) | G41: ='Shawnee Tribe'!I22 -> 1
A42: ='Damn Yankees'!A9 -> Brandon Hagel | B42: (DYK) | C42: ='Damn Yankees'!I9 -> 4 | E42: =Slappers!A23 -> Brandon Montour | F42: (SLP) | G42: =Slappers!I23 -> 1
A43: ='Shawnee Tribe'!A8 -> Mika Zibanejad | B43: (SHW) | C43: ='Shawnee Tribe'!I8 -> 4 | E43: ='Arcane Sanctuary'!A22 -> Adam Larsson | F43: (ARS) | G43: ='Arcane Sanctuary'!I22 -> 1
A44: =Riketorians!A11 -> Connor Bedard | B44: (RIK) | C44: =Riketorians!I11 -> 4 | E44: ='Damn Yankees'!A23 -> Mikhail Sergachev | F44: (DYK) | G44: ='Damn Yankees'!I23 -> 1
A45: ='District 5'!A10 -> Brock Boeser | B45: (DI5) | C45: ='District 5'!I10 -> 4 | E45: ='Damn Yankees'!A24 -> Travis Sanheim | F45: (DYK) | G45: ='Damn Yankees'!I24 -> 1
A46: ='District 5'!A11 -> JJ Peterka | B46: (DI5) | C46: ='District 5'!I11 -> 4 | E46: ='Arcane Sanctuary'!A23 -> Noah Dobson | F46: (ARS) | G46: ='Arcane Sanctuary'!I23 -> 1
A47: ='Damn Yankees'!A10 -> Kirill Marchenko | B47: (DYK) | C47: ='Damn Yankees'!I10 -> 4 | E47: ='Just Chillin'!A23 -> Brandt Clarke | F47: (JCH) | G47: ='Just Chillin'!I23 -> 1
A48: ='Damn Yankees'!A11 -> Bryan Rust | B48: (DYK) | C48: ='Damn Yankees'!I11 -> 4 | E48: =Ravens!A23 -> Michael Kesselring | F48: (RAV) | G48: =Ravens!I23 -> 1
A49: ='Grumpy Old Men'!A11 -> Jared McCann | B49: (GOM) | C49: ='Grumpy Old Men'!I11 -> 4 | E49: ='Just Chillin'!A24 -> Jake Walman | F49: (JCH) | G49: ='Just Chillin'!I24 -> 1
A50: ='Arcane Sanctuary'!A6 -> Alex Tuch | B50: (ARS) | C50: ='Arcane Sanctuary'!I6 -> 3 | E50: ='Just Chillin'!A25 -> Seth Jones | F50: (JCH) | G50: ='Just Chillin'!I25 -> 1
A51: ='Just Chillin'!A8 -> Mikko Rantanen | B51: (JCH) | C51: ='Just Chillin'!I8 -> 3 | E51: ='Grumpy Old Men'!A22 -> Alex Pietrangelo | F51: (GOM) | G51: ='Grumpy Old Men'!I22 -> 0
A52: ='Arcane Sanctuary'!A7 -> Nathan MacKinnon | B52: (ARS) | C52: ='Arcane Sanctuary'!I7 -> 3 | E52: ='District 5'!A22 -> Moritz Seider | F52: (DI5) | G52: ='District 5'!I22 -> 0
A53: ='Just Chillin'!A9 -> Jake Guentzel | B53: (JCH) | C53: ='Just Chillin'!I9 -> 3 | E53: ='District 5'!A23 -> Brock Faber | F53: (DI5) | G53: ='District 5'!I23 -> 0
A54: =Ravens!A9 -> Alex DeBrincat | B54: (RAV) | C54: =Ravens!I9 -> 3 | E54: ='Grumpy Old Men'!A23 -> Cale Makar | F54: (GOM) | G54: ='Grumpy Old Men'!I23 -> 0
A55: ='Arcane Sanctuary'!A8 -> Anthony Cirelli | B55: (ARS) | C55: ='Arcane Sanctuary'!I8 -> 3 | E55: ='District 5'!A24 -> Bowen Byram | F55: (DI5) | G55: ='District 5'!I24 -> 0
A56: =Slappers!A9 -> Gabriel Vilardi | B56: (SLP) | C56: =Slappers!I9 -> 3 | E56: ='Grumpy Old Men'!A24 -> Rasmus Sandin | F56: (GOM) | G56: ='Grumpy Old Men'!I24 -> 0
A57: =Slappers!A10 -> Jesper Bratt | B57: (SLP) | C57: =Slappers!I10 -> 3 | E57: ='District 5'!A25 -> Rasmus Andersson | F57: (DI5) | G57: ='District 5'!I25 -> 0
A58: =Highlanders!A9 -> Dylan Larkin | B58: (HGL) | C58: =Highlanders!I9 -> 3 | E58: ='Shawnee Tribe'!A23 -> Vince Dunn | F58: (SHW) | G58: ='Shawnee Tribe'!I23 -> 0
A59: =Ravens!A10 -> Artturi Lehkonen | B59: (RAV) | C59: =Ravens!I10 -> 3 | E59: ='Arcane Sanctuary'!A24 -> Darnell Nurse | F59: (ARS) | G59: ='Arcane Sanctuary'!I24 -> 0
A60: ='Shawnee Tribe'!A9 -> Robert Thomas | B60: (SHW) | C60: ='Shawnee Tribe'!I9 -> 3 | E60: ='Shawnee Tribe'!A24 -> Luke Hughes | F60: (SHW) | G60: ='Shawnee Tribe'!I24 -> 0
A61: ='District 5'!A12 -> Pavel Buchnevich | B61: (DI5) | C61: ='District 5'!I12 -> 3 | E61: ='Damn Yankees'!A25 -> Jared Spurgeon | F61: (DYK) | G61: ='Damn Yankees'!I25 -> 0
A62: =Riketorians!A12 -> Alexis Lafrenière | B62: (RIK) | C62: =Riketorians!I12 -> 3 | E62: ='Grumpy Old Men'!A25 -> Neal Pionk | F62: (GOM) | G62: ='Grumpy Old Men'!I25 -> 0
A63: ='Grumpy Old Men'!A12 -> Mitch Marner | B63: (GOM) | C63: ='Grumpy Old Men'!I12 -> 3 | E63: ='Arcane Sanctuary'!A25 -> Samuel Girard | F63: (ARS) | G63: ='Arcane Sanctuary'!I25 -> 0
A64: ='Grumpy Old Men'!A13 -> Matthew Tkachuk | B64: (GOM) | C64: ='Grumpy Old Men'!I13 -> 3 | E64: =Ravens!A24 -> Philip Broberg | F64: (RAV) | G64: =Ravens!I24 -> 0
A65: =Riketorians!A13 -> Ryan Nugent-Hopkins | B65: (RIK) | C65: =Riketorians!I13 -> 3 | E65: =Slappers!A24 -> Noah Hanifin | F65: (SLP) | G65: =Slappers!I24 -> 0
A66: =Riketorians!A14 -> Claude Giroux | B66: (RIK) | C66: =Riketorians!I14 -> 3 | E66: =Ravens!A25 -> Mike Matheson | F66: (RAV) | G66: =Ravens!I25 -> 0
A67: ='Just Chillin'!A10 -> Tage Thompson | B67: (JCH) | C67: ='Just Chillin'!I10 -> 2 | E67: ='Shawnee Tribe'!A25 -> Olen Zellweger | F67: (SHW) | G67: ='Shawnee Tribe'!I25 -> 0
A68: ='Arcane Sanctuary'!A9 -> Nazem Kadri | B68: (ARS) | C68: ='Arcane Sanctuary'!I9 -> 2 | E68: =Highlanders!A25 -> Owen Power | F68: (HGL) | G68: =Highlanders!I25 -> 0
A69: ='Just Chillin'!A11 -> Drake Batherson | B69: (JCH) | C69: ='Just Chillin'!I11 -> 2 | E69: =Riketorians!A24 -> Brady Skjei | F69: (RIK) | G69: =Riketorians!I24 -> 0
A70: ='Arcane Sanctuary'!A10 -> Brady Tkachuk | B70: (ARS) | C70: ='Arcane Sanctuary'!I10 -> 2 | E70: =Riketorians!A25 -> Kris Letang | F70: (RIK) | G70: =Riketorians!I25 -> 0
A71: =Ravens!A11 -> Jake DeBrusk | B71: (RAV) | C71: =Ravens!I11 -> 2 | E71: =Slappers!A25 -> Aaron Ekblad | F71: (SLP) | G71: =Slappers!I25 -> 0
A72: =Ravens!A12 -> Alex Ovechkin | B72: (RAV) | C72: =Ravens!I12 -> 2
A73: =Slappers!A11 -> Matvei Michkov | B73: (SLP) | C73: =Slappers!I11 -> 2
A74: =Highlanders!A10 -> Dylan Strome | B74: (HGL) | C74: =Highlanders!I10 -> 2
A75: =Highlanders!A11 -> Aleksander Barkov | B75: (HGL) | C75: =Highlanders!I11 -> 2
A76: =Slappers!A12 -> Jack Eichel | B76: (SLP) | C76: =Slappers!I12 -> 2
A77: ='Shawnee Tribe'!A10 -> Patrik Laine | B77: (SHW) | C77: ='Shawnee Tribe'!I10 -> 2
A78: ='Damn Yankees'!A12 -> Tim Stützle | B78: (DYK) | C78: ='Damn Yankees'!I12 -> 2
A79: ='Shawnee Tribe'!A11 -> Carter Verhaeghe | B79: (SHW) | C79: ='Shawnee Tribe'!I11 -> 2
A80: =Slappers!A13 -> Jonathan Marchessault | B80: (SLP) | C80: =Slappers!I13 -> 2
A81: ='Damn Yankees'!A13 -> Clayton Keller | B81: (DYK) | C81: ='Damn Yankees'!I13 -> 2
A82: ='District 5'!A13 -> Owen Tippett | B82: (DI5) | C82: ='District 5'!I13 -> 2
A83: ='District 5'!A14 -> Tomas Hertl | B83: (DI5) | C83: ='District 5'!I14 -> 2
A84: ='Grumpy Old Men'!A14 -> Martin Necas | B84: (GOM) | C84: ='Grumpy Old Men'!I14 -> 2
A85: ='Just Chillin'!A12 -> Wyatt Johnston | B85: (JCH) | C85: ='Just Chillin'!I12 -> 1
A86: ='Just Chillin'!A13 -> Nico Hischier | B86: (JCH) | C86: ='Just Chillin'!I13 -> 1
A87: ='Arcane Sanctuary'!A11 -> Paul Cotter | B87: (ARS) | C87: ='Arcane Sanctuary'!I11 -> 1
A88: =Highlanders!A12 -> William Nylander | B88: (HGL) | C88: =Highlanders!I12 -> 1
A89: =Highlanders!A13 -> Josh Norris | B89: (HGL) | C89: =Highlanders!I13 -> 1
A90: =Ravens!A13 -> Matt Duchene | B90: (RAV) | C90: =Ravens!I13 -> 1
A91: ='Just Chillin'!A14 -> Mikael Granlund | B91: (JCH) | C91: ='Just Chillin'!I14 -> 1
A92: ='Arcane Sanctuary'!A12 -> Brad Marchand | B92: (ARS) | C92: ='Arcane Sanctuary'!I12 -> 1
A93: ='Arcane Sanctuary'!A13 -> Timo Meier | B93: (ARS) | C93: ='Arcane Sanctuary'!I13 -> 1
A94: =Highlanders!A14 -> Connor McMichael | B94: (HGL) | C94: =Highlanders!I14 -> 1
A95: ='Shawnee Tribe'!A12 -> Macklin Celebrini | B95: (SHW) | C95: ='Shawnee Tribe'!I12 -> 1
A96: ='Damn Yankees'!A14 -> Anze Kopitar | B96: (DYK) | C96: ='Damn Yankees'!I14 -> 1
A97: ='Shawnee Tribe'!A13 -> Leo Carlsson | B97: (SHW) | C97: ='Shawnee Tribe'!I13 -> 1
A98: =Highlanders!A15 -> Kyle Palmieri | B98: (HGL) | C98: =Highlanders!I15 -> 1
A99: =Ravens!A14 -> Sean Monahan | B99: (RAV) | C99: =Ravens!I14 -> 1
A100: =Slappers!A14 -> Jason Zucker | B100: (SLP) | C100: =Slappers!I14 -> 0
A101: ='Just Chillin'!A15 -> Evgeni Malkin | B101: (JCH) | C101: ='Just Chillin'!I15 -> 0
A102: =Slappers!A15 -> Dylan Guenther | B102: (SLP) | C102: =Slappers!I15 -> 0
A103: ='Damn Yankees'!A15 -> Kevin Fiala | B103: (DYK) | C103: ='Damn Yankees'!I15 -> 0
A104: ='Arcane Sanctuary'!A14 -> Chris Kreider | B104: (ARS) | C104: ='Arcane Sanctuary'!I14 -> 0
A105: ='Grumpy Old Men'!A15 -> Steven Stamkos | B105: (GOM) | C105: ='Grumpy Old Men'!I15 -> 0
A106: ='District 5'!A15 -> Will Cuylle | B106: (DI5) | C106: ='District 5'!I15 -> 0
A107: =Riketorians!A15 -> Ryan OReilly | B107: (RIK) | C107: =Riketorians!I15 -> 0
A108: =Ravens!A15 -> Alex Laferriere | B108: (RAV) | C108: =Ravens!I15 -> 0
A109: ='Shawnee Tribe'!A14 -> Cole Perfetti | B109: (SHW) | C109: ='Shawnee Tribe'!I14 -> 0
A110: ='Arcane Sanctuary'!A15 -> Mason Marchment | B110: (ARS) | C110: ='Arcane Sanctuary'!I15 -> 0
A111: ='Shawnee Tribe'!A15 -> Kirill Kaprizov | B111: (SHW) | C111: ='Shawnee Tribe'!I15 -> 0

Sheet Total Calc
A1: Forwards | C1: Points | E1: Defense | G1: Points | I1: Goalie | K1: Points
A2: =Highlanders!A8 -> Leon Draisaitl | B2: (HGL) | C2: =Highlanders!R8 -> 92 | E2: ='Grumpy Old Men'!A23 -> Cale Makar | F2: (GOM) | G2: ='Grumpy Old Men'!R23 -> 63 | I2: ='Just Chillin'!A28 -> Connor Hellebuyck | J2: (JCH) | K2: ='Just Chillin'!R28 -> 170
A3: ='Just Chillin'!A8 -> Mikko Rantanen | B3: (JCH) | C3: ='Just Chillin'!R8 -> 78 | E3: ='Just Chillin'!A19 -> Zach Werenski | F3: (JCH) | G3: ='Just Chillin'!R19 -> 60 | I3: =Highlanders!A30 -> Filip Gustavsson | J3: (HGL) | K3: =Highlanders!R30 -> 138
A4: ='Arcane Sanctuary'!A7 -> Nathan MacKinnon | B4: (ARS) | C4: ='Arcane Sanctuary'!R7 -> 78 | E4: =Ravens!A19 -> Quinn Hughes | F4: (RAV) | G4: =Ravens!R19 -> 50 | I4: ='District 5'!A30 -> Jacob Markstrom | J4: (DI5) | K4: ='District 5'!R30 -> 135
A5: ='District 5'!A7 -> Kyle Connor | B5: (DI5) | C5: ='District 5'!R7 -> 77 | E5: =Highlanders!A20 -> Josh Morrissey | F5: (HGL) | G5: =Highlanders!R20 -> 40 | I5: =Ravens!A30 -> Jake Oettinger | J5: (RAV) | K5: =Ravens!R30 -> 125
A6: ='Grumpy Old Men'!A12 -> Mitch Marner | B6: (GOM) | C6: ='Grumpy Old Men'!R12 -> 75 | E6: =Ravens!A20 -> Jakob Chychrun | F6: (RAV) | G6: =Ravens!R20 -> 40 | I6: =Riketorians!A28 -> Andrei Vasilevskiy | J6: (RIK) | K6: =Riketorians!R28 -> 125
A7: =Ravens!A6 -> Brayden Point | B7: (RAV) | C7: =Ravens!R6 -> 73 | E7: ='Damn Yankees'!A23 -> Mikhail Sergachev | F7: (DYK) | G7: ='Damn Yankees'!R23 -> 39 | I7: ='Damn Yankees'!A28 -> Darcy Kuemper | J7: (DYK) | K7: ='Damn Yankees'!R28 -> 113
A8: =Slappers!A7 -> Jack Hughes | B8: (SLP) | C8: =Slappers!R7 -> 70 | E8: =Slappers!A20 -> Rasmus Dahlin | F8: (SLP) | G8: =Slappers!R20 -> 37 | I8: =Slappers!A28 -> Dustin Wolf | J8: (SLP) | K8: =Slappers!R28 -> 110
A9: ='District 5'!A6 -> Nikita Kucherov | B9: (DI5) | C9: ='District 5'!R6 -> 69 | E9: =Highlanders!A19 -> Adam Fox | F9: (HGL) | G9: =Highlanders!R19 -> 36 | I9: =Ravens!A28 -> Logan Thompson | J9: (RAV) | K9: =Ravens!R28 -> 107
A10: =Riketorians!A9 -> Connor McDavid | B10: (RIK) | C10: =Riketorians!R9 -> 68 | E10: ='District 5'!A20 -> Dougie Hamilton | F10: (DI5) | G10: ='District 5'!R20 -> 36 | I10: =Highlanders!A28 -> Stuart Skinner | J10: (HGL) | K10: =Highlanders!R28 -> 102
A11: ='Just Chillin'!A7 -> Mark Scheifele | B11: (JCH) | C11: ='Just Chillin'!R7 -> 68 | E11: =Highlanders!A22 -> Shea Theodore | F11: (HGL) | G11: =Highlanders!R22 -> 35 | I11: ='Grumpy Old Men'!A30 -> Pyotr Kochetkov | J11: (GOM) | K11: ='Grumpy Old Men'!R30 -> 99
A12: ='District 5'!A8 -> Sam Reinhart | B12: (DI5) | C12: ='District 5'!R8 -> 67 | E12: ='Arcane Sanctuary'!A20 -> Victor Hedman | F12: (ARS) | G12: ='Arcane Sanctuary'!R20 -> 34 | I12: ='Grumpy Old Men'!A28 -> Sergei Bobrovsky | J12: (GOM) | K12: ='Grumpy Old Men'!R28 -> 96
A13: ='Grumpy Old Men'!A14 -> Martin Necas | B13: (GOM) | C13: ='Grumpy Old Men'!R14 -> 65 | E13: ='Grumpy Old Men'!A25 -> Neal Pionk | F13: (GOM) | G13: ='Grumpy Old Men'!R25 -> 33 | I13: ='Damn Yankees'!A46 -> Linus Ullmark | J13: (DYK) | K13: ='Damn Yankees'!E46 -> 94
A14: =Ravens!A5 -> Travis Konecny | B14: (RAV) | C14: =Ravens!R5 -> 64 | E14: ='Shawnee Tribe'!A21 -> Evan Bouchard | F14: (SHW) | G14: ='Shawnee Tribe'!R21 -> 32 | I14: ='Just Chillin'!A30 -> Joseph Woll | J14: (JCH) | K14: ='Just Chillin'!R30 -> 88
A15: ='Arcane Sanctuary'!A5 -> John Tavares | B15: (ARS) | C15: ='Arcane Sanctuary'!R5 -> 62 | E15: ='Shawnee Tribe'!A19 -> Lane Hutson | F15: (SHW) | G15: ='Shawnee Tribe'!R19 -> 32 | I15: ='District 5'!A28 -> Ilya Sorokin | J15: (DI5) | K15: ='District 5'!R28 -> 88
A16: ='Shawnee Tribe'!A15 -> Kirill Kaprizov | B16: (SHW) | C16: ='Shawnee Tribe'!R15 -> 62 | E16: =Slappers!A21 -> Colton Parayko | F16: (SLP) | G16: =Slappers!R21 -> 32 | I16: ='Shawnee Tribe'!A30 -> Juuse Saros | J16: (SHW) | K16: ='Shawnee Tribe'!R30 -> 88
A17: =Slappers!A5 -> David Pastrnak | B17: (SLP) | C17: =Slappers!R5 -> 61 | E17: =Riketorians!A19 -> Erik Karlsson | F17: (RIK) | G17: =Riketorians!R19 -> 32 | I17: ='Shawnee Tribe'!A28 -> Igor Shesterkin | J17: (SHW) | K17: ='Shawnee Tribe'!R28 -> 87
A18: =Riketorians!A6 -> Sidney Crosby | B18: (RIK) | C18: =Riketorians!R6 -> 61 | E18: ='Damn Yankees'!A20 -> Roman Josi | F18: (DYK) | G18: ='Damn Yankees'!R20 -> 31 | I18: =Slappers!A30 -> Jeremy Swayman | J18: (SLP) | K18: =Slappers!R30 -> 83
A19: =Highlanders!A12 -> William Nylander | B19: (HGL) | C19: =Highlanders!R12 -> 61 | E19: =Slappers!A45 -> Shayne Gostisbehere | F19: (SLP) | G19: =Slappers!E45 -> 31 | I19: =Riketorians!A30 -> Jordan Binnington | J19: (RIK) | K19: =Riketorians!R30 -> 80
A20: =Highlanders!A5 -> Nick Suzuki | B20: (HGL) | C20: =Highlanders!R5 -> 59 | E20: =Slappers!A23 -> Brandon Montour | F20: (SLP) | G20: =Slappers!R23 -> 28 | I20: ='Arcane Sanctuary'!A30 -> Anthony Stolarz | J20: (ARS) | K20: ='Arcane Sanctuary'!R30 -> 78
A21: =Slappers!A12 -> Jack Eichel | B21: (SLP) | C21: =Slappers!R12 -> 59 | E21: ='Just Chillin'!A24 -> Jake Walman | F21: (JCH) | G21: ='Just Chillin'!R24 -> 28 | I21: ='Arcane Sanctuary'!A28 -> David Rittich | J21: (ARS) | K21: ='Arcane Sanctuary'!R28 -> 65
A22: ='Arcane Sanctuary'!A10 -> Brady Tkachuk | B22: (ARS) | C22: ='Arcane Sanctuary'!R10 -> 58 | E22: ='Shawnee Tribe'!A20 -> John Carlson | F22: (SHW) | G22: ='Shawnee Tribe'!R20 -> 28 | I22: =Slappers!A46 -> Frederik Andersen | J22: (SLP) | K22: =Slappers!E46 -> 30
A23: =Slappers!A6 -> Sebastian Aho | B23: (SLP) | C23: =Slappers!R6 -> 58 | E23: =Highlanders!A23 -> Jake Sanderson | F23: (HGL) | G23: =Highlanders!R23 -> 27 | I23: ='Damn Yankees'!A30 -> Thatcher Demko | J23: (DYK) | K23: ='Damn Yankees'!R30 -> 19
A24: ='District 5'!A5 -> Matt Boldy | B24: (DI5) | C24: ='District 5'!R5 -> 58 | E24: ='District 5'!A24 -> Bowen Byram | F24: (DI5) | G24: ='District 5'!R24 -> 26
A25: =Slappers!A10 -> Jesper Bratt | B25: (SLP) | C25: =Slappers!R10 -> 57 | E25: ='Just Chillin'!A20 -> Morgan Rielly | F25: (JCH) | G25: ='Just Chillin'!R20 -> 26
A26: ='Shawnee Tribe'!A7 -> Lucas Raymond | B26: (SHW) | C26: ='Shawnee Tribe'!R7 -> 57 | E26: ='Grumpy Old Men'!A20 -> Charlie McAvoy | F26: (GOM) | G26: ='Grumpy Old Men'!R20 -> 25
A27: =Slappers!A9 -> Gabriel Vilardi | B27: (SLP) | C27: =Slappers!R9 -> 54 | E27: ='Grumpy Old Men'!A19 -> Devon Toews | F27: (GOM) | G27: ='Grumpy Old Men'!R19 -> 25
A28: =Ravens!A7 -> Cole Caufield | B28: (RAV) | C28: =Ravens!R7 -> 53 | E28: ='Damn Yankees'!A22 -> MacKenzie Weegar | F28: (DYK) | G28: ='Damn Yankees'!R22 -> 24
A29: =Riketorians!A5 -> Artemi Panarin | B29: (RIK) | C29: =Riketorians!R5 -> 53 | E29: ='Just Chillin'!A23 -> Brandt Clarke | F29: (JCH) | G29: ='Just Chillin'!R23 -> 24
A30: ='Damn Yankees'!A14 -> Anze Kopitar | B30: (DYK) | C30: ='Damn Yankees'!R14 -> 53 | E30: =Slappers!A24 -> Noah Hanifin | F30: (SLP) | G30: =Slappers!R24 -> 24
A31: ='Damn Yankees'!A13 -> Clayton Keller | B31: (DYK) | C31: ='Damn Yankees'!R13 -> 52 | E31: ='District 5'!A23 -> Brock Faber | F31: (DI5) | G31: ='District 5'!R23 -> 24
A32: ='Damn Yankees'!A9 -> Brandon Hagel | B32: (DYK) | C32: ='Damn Yankees'!R9 -> 52 | E32: ='Damn Yankees'!A19 -> Thomas Harley | F32: (DYK) | G32: ='Damn Yankees'!R19 -> 24
A33: ='Damn Yankees'!A10 -> Kirill Marchenko | B33: (DYK) | C33: ='Damn Yankees'!R10 -> 51 | E33: =Ravens!A21 -> Mattias Ekholm | F33: (RAV) | G33: =Ravens!R21 -> 24
A34: =Highlanders!A10 -> Dylan Strome | B34: (HGL) | C34: =Highlanders!R10 -> 51 | E34: ='Shawnee Tribe'!A23 -> Vince Dunn | F34: (SHW) | G34: ='Shawnee Tribe'!R23 -> 24
A35: ='Just Chillin'!A9 -> Jake Guentzel | B35: (JCH) | C35: ='Just Chillin'!R9 -> 51 | E35: ='District 5'!A22 -> Moritz Seider | F35: (DI5) | G35: ='District 5'!R22 -> 24
A36: =Ravens!A13 -> Matt Duchene | B36: (RAV) | C36: =Ravens!R13 -> 50 | E36: ='Grumpy Old Men'!A22 -> Alex Pietrangelo | F36: (GOM) | G36: ='Grumpy Old Men'!R22 -> 23
A37: ='Grumpy Old Men'!A13 -> Matthew Tkachuk | B37: (GOM) | C37: ='Grumpy Old Men'!R13 -> 49 | E37: =Highlanders!A25 -> Owen Power | F37: (HGL) | G37: =Highlanders!R25 -> 22
A38: ='Just Chillin'!A11 -> Drake Batherson | B38: (JCH) | C38: ='Just Chillin'!R11 -> 49 | E38: ='Damn Yankees'!A24 -> Travis Sanheim | F38: (DYK) | G38: ='Damn Yankees'!R24 -> 22
A39: ='Damn Yankees'!A6 -> Tom Wilson | B39: (DYK) | C39: ='Damn Yankees'!R6 -> 49 | E39: ='Arcane Sanctuary'!A21 -> Gustav Forsling | F39: (ARS) | G39: ='Arcane Sanctuary'!R21 -> 22
A40: =Ravens!A14 -> Sean Monahan | B40: (RAV) | C40: =Ravens!R14 -> 49 | E40: ='Arcane Sanctuary'!A19 -> Dmitry Orlov | F40: (ARS) | G40: ='Arcane Sanctuary'!R19 -> 22
A41: ='Just Chillin'!A5 -> Jordan Kyrou | B41: (JCH) | C41: ='Just Chillin'!R5 -> 49 | E41: ='Arcane Sanctuary'!A24 -> Darnell Nurse | F41: (ARS) | G41: ='Arcane Sanctuary'!R24 -> 22
A42: ='Arcane Sanctuary'!A12 -> Brad Marchand | B42: (ARS) | C42: ='Arcane Sanctuary'!R12 -> 49 | E42: ='Just Chillin'!A22 -> Matt Grzelcyk | F42: (JCH) | G42: ='Just Chillin'!R22 -> 22
A43: =Riketorians!A11 -> Connor Bedard | B43: (RIK) | C43: =Riketorians!R11 -> 48 | E43: =Slappers!A25 -> Aaron Ekblad | F43: (SLP) | G43: =Slappers!R25 -> 22
A44: =Slappers!A15 -> Dylan Guenther | B44: (SLP) | C44: =Slappers!R15 -> 48 | E44: ='District 5'!A25 -> Rasmus Andersson | F44: (DI5) | G44: ='District 5'!R25 -> 22
A45: =Riketorians!A8 -> Adrian Kempe | B45: (RIK) | C45: =Riketorians!R8 -> 48 | E45: ='Arcane Sanctuary'!A23 -> Noah Dobson | F45: (ARS) | G45: ='Arcane Sanctuary'!R23 -> 21
A46: =Highlanders!A9 -> Dylan Larkin | B46: (HGL) | C46: =Highlanders!R9 -> 48 | E46: =Ravens!A25 -> Mike Matheson | F46: (RAV) | G46: =Ravens!R25 -> 21
A47: =Highlanders!A11 -> Aleksander Barkov | B47: (HGL) | C47: =Highlanders!R11 -> 47 | E47: =Riketorians!A25 -> Kris Letang | F47: (RIK) | G47: =Riketorians!R25 -> 21
A48: ='Grumpy Old Men'!A8 -> Nikolaj Ehlers | B48: (GOM) | C48: ='Grumpy Old Men'!R8 -> 47 | E48: ='Arcane Sanctuary'!A25 -> Samuel Girard | F48: (ARS) | G48: ='Arcane Sanctuary'!R25 -> 21
A49: ='Just Chillin'!A13 -> Nico Hischier | B49: (JCH) | C49: ='Just Chillin'!R13 -> 46 | E49: ='Shawnee Tribe'!A22 -> Ryker Evans | F49: (SHW) | G49: ='Shawnee Tribe'!R22 -> 20
A50: =Ravens!A9 -> Alex DeBrincat | B50: (RAV) | C50: =Ravens!R9 -> 46 | E50: ='Shawnee Tribe'!A24 -> Luke Hughes | F50: (SHW) | G50: ='Shawnee Tribe'!R24 -> 20
A51: =Slappers!A11 -> Matvei Michkov | B51: (SLP) | C51: =Slappers!R11 -> 45 | E51: =Ravens!A22 -> Damon Severson | F51: (RAV) | G51: =Ravens!R22 -> 20
A52: =Ravens!A12 -> Alex Ovechkin | B52: (RAV) | C52: =Ravens!R12 -> 45 | E52: =Ravens!A23 -> Michael Kesselring | F52: (RAV) | G52: =Ravens!R23 -> 19
A53: ='Damn Yankees'!A11 -> Bryan Rust | B53: (DYK) | C53: ='Damn Yankees'!R11 -> 44 | E53: =Slappers!A19 -> Jackson LaCombe | F53: (SLP) | G53: =Slappers!R19 -> 19
A54: =Highlanders!A14 -> Connor McMichael | B54: (HGL) | C54: =Highlanders!R14 -> 44 | E54: =Highlanders!A21 -> Thomas Chabot | F54: (HGL) | G54: =Highlanders!R21 -> 19
A55: ='Damn Yankees'!A12 -> Tim Stützle | B55: (DYK) | C55: ='Damn Yankees'!R12 -> 44 | E55: ='District 5'!A21 -> Miro Heiskanen | F55: (DI5) | G55: ='District 5'!R21 -> 19
A56: ='Arcane Sanctuary'!A8 -> Anthony Cirelli | B56: (ARS) | C56: ='Arcane Sanctuary'!R8 -> 44 | E56: ='Just Chillin'!A21 -> Mason Lohrei | F56: (JCH) | G56: ='Just Chillin'!R21 -> 19
A57: =Slappers!A14 -> Jason Zucker | B57: (SLP) | C57: =Slappers!R14 -> 43 | E57: =Highlanders!A24 -> Simon Edvinsson | F57: (HGL) | G57: =Highlanders!R24 -> 19
A58: =Slappers!A8 -> Rickard Rakell | B58: (SLP) | C58: =Slappers!R8 -> 43 | E58: ='Grumpy Old Men'!A24 -> Rasmus Sandin | F58: (GOM) | G58: ='Grumpy Old Men'!R24 -> 18
A59: ='Damn Yankees'!A7 -> Mark Stone | B59: (DYK) | C59: ='Damn Yankees'!R7 -> 43 | E59: ='Damn Yankees'!A25 -> Jared Spurgeon | F59: (DYK) | G59: ='Damn Yankees'!R25 -> 18
A60: =Ravens!A8 -> Filip Forsberg | B60: (RAV) | C60: =Ravens!R8 -> 42 | E60: ='Just Chillin'!A25 -> Seth Jones | F60: (JCH) | G60: ='Just Chillin'!R25 -> 18
A61: ='Grumpy Old Men'!A5 -> Vincent Trocheck | B61: (GOM) | C61: ='Grumpy Old Men'!R5 -> 41 | E61: =Riketorians!A21 -> Marcus Pettersson | F61: (RIK) | G61: =Riketorians!R21 -> 17
A62: =Ravens!A11 -> Jake DeBrusk | B62: (RAV) | C62: =Ravens!R11 -> 41 | E62: =Riketorians!A24 -> Brady Skjei | F62: (RIK) | G62: =Riketorians!R24 -> 16
A63: ='Just Chillin'!A14 -> Mikael Granlund | B63: (JCH) | C63: ='Just Chillin'!R14 -> 41 | E63: =Ravens!A24 -> Philip Broberg | F63: (RAV) | G63: =Ravens!R24 -> 16
A64: ='Grumpy Old Men'!A9 -> Andrei Svechnikov | B64: (GOM) | C64: ='Grumpy Old Men'!R9 -> 41 | E64: =Slappers!A22 -> Brent Burns | F64: (SLP) | G64: =Slappers!R22 -> 15
A65: ='Grumpy Old Men'!A6 -> Bo Horvat | B65: (GOM) | C65: ='Grumpy Old Men'!R6 -> 41 | E65: ='Damn Yankees'!A21 -> Ryan Pulock | F65: (DYK) | G65: ='Damn Yankees'!R21 -> 15
A66: ='Just Chillin'!A10 -> Tage Thompson | B66: (JCH) | C66: ='Just Chillin'!R10 -> 40 | E66: ='Grumpy Old Men'!A21 -> Brett Kulak | F66: (GOM) | G66: ='Grumpy Old Men'!R21 -> 14
A67: ='Just Chillin'!A6 -> Zach Hyman | B67: (JCH) | C67: ='Just Chillin'!R6 -> 40 | E67: =Riketorians!A23 -> Chris Tanev | F67: (RIK) | G67: =Riketorians!R23 -> 13
A68: ='Grumpy Old Men'!A7 -> Jamie Benn | B68: (GOM) | C68: ='Grumpy Old Men'!R7 -> 40 | E68: ='Shawnee Tribe'!A25 -> Olen Zellweger | F68: (SHW) | G68: ='Shawnee Tribe'!R25 -> 13
A69: ='Shawnee Tribe'!A9 -> Robert Thomas | B69: (SHW) | C69: ='Shawnee Tribe'!R9 -> 40 | E69: ='District 5'!A19 -> Jamie Drysdale | F69: (DI5) | G69: ='District 5'!R19 -> 11
A70: ='Shawnee Tribe'!A12 -> Macklin Celebrini | B70: (SHW) | C70: ='Shawnee Tribe'!R12 -> 40 | E70: =Riketorians!A22 -> Dylan DeMelo | F70: (RIK) | G70: =Riketorians!R22 -> 10
A71: ='District 5'!A9 -> Jason Robertson | B71: (DI5) | C71: ='District 5'!R9 -> 39 | E71: =Riketorians!A20 -> Alexander Romanov | F71: (RIK) | G71: =Riketorians!R20 -> 9
A72: =Highlanders!A13 -> Josh Norris | B72: (HGL) | C72: =Highlanders!R13 -> 39 | E72: ='Grumpy Old Men'!A45 -> Filip Hronek | F72: (GOM) | G72: ='Grumpy Old Men'!E45 -> 9
A73: =Highlanders!A6 -> Patrick Kane | B73: (HGL) | C73: =Highlanders!R6 -> 39 | E73: ='Arcane Sanctuary'!A22 -> Adam Larsson | F73: (ARS) | G73: ='Arcane Sanctuary'!R22 -> 8
A74: =Slappers!A13 -> Jonathan Marchessault | B74: (SLP) | C74: =Slappers!R13 -> 39 | E74: ='Damn Yankees'!A45 -> Drew Doughty | F74: (DYK) | G74: ='Damn Yankees'!E45 -> 0
A75: ='Arcane Sanctuary'!A6 -> Alex Tuch | B75: (ARS) | C75: ='Arcane Sanctuary'!R6 -> 39
A76: ='Shawnee Tribe'!A11 -> Carter Verhaeghe | B76: (SHW) | C76: ='Shawnee Tribe'!R11 -> 39
A77: ='Damn Yankees'!A5 -> Auston Matthews | B77: (DYK) | C77: ='Damn Yankees'!R5 -> 38
A78: ='Just Chillin'!A15 -> Evgeni Malkin | B78: (JCH) | C78: ='Just Chillin'!R15 -> 38
A79: ='Grumpy Old Men'!A15 -> Steven Stamkos | B79: (GOM) | C79: ='Grumpy Old Men'!R15 -> 38
A80: ='District 5'!A14 -> Tomas Hertl | B80: (DI5) | C80: ='District 5'!R14 -> 38
A81: =Riketorians!A7 -> Mats Zuccarello | B81: (RIK) | C81: =Riketorians!R7 -> 38
A82: ='Grumpy Old Men'!A10 -> Roope Hintz | B82: (GOM) | C82: ='Grumpy Old Men'!R10 -> 38
A83: =Ravens!A44 -> Ivan Barbashev | B83: (RAV) | C83: =Ravens!E44 -> 38
A84: ='Grumpy Old Men'!A11 -> Jared McCann | B84: (GOM) | C84: ='Grumpy Old Men'!R11 -> 37
A85: ='District 5'!A11 -> JJ Peterka | B85: (DI5) | C85: ='District 5'!R11 -> 37
A86: =Riketorians!A15 -> Ryan OReilly | B86: (RIK) | C86: =Riketorians!R15 -> 37
A87: ='Arcane Sanctuary'!A13 -> Timo Meier | B87: (ARS) | C87: ='Arcane Sanctuary'!R13 -> 36
A88: =Riketorians!A13 -> Ryan Nugent-Hopkins | B88: (RIK) | C88: =Riketorians!R13 -> 36
A89: ='Just Chillin'!A12 -> Wyatt Johnston | B89: (JCH) | C89: ='Just Chillin'!R12 -> 36
A90: =Ravens!A15 -> Alex Laferriere | B90: (RAV) | C90: =Ravens!R15 -> 36
A91: =Highlanders!A44 -> Elias Pettersson | B91: (HGL) | C91: =Highlanders!E44 -> 36
A92: ='Shawnee Tribe'!A6 -> Seth Jarvis | B92: (SHW) | C92: ='Shawnee Tribe'!R6 -> 36
A93: ='Shawnee Tribe'!A5 -> Teuvo Teravainen | B93: (SHW) | C93: ='Shawnee Tribe'!R5 -> 35
A94: ='Arcane Sanctuary'!A9 -> Nazem Kadri | B94: (ARS) | C94: ='Arcane Sanctuary'!R9 -> 35
A95: =Riketorians!A10 -> Brock Nelson | B95: (RIK) | C95: =Riketorians!R10 -> 34
A96: ='Arcane Sanctuary'!A15 -> Mason Marchment | B96: (ARS) | C96: ='Arcane Sanctuary'!R15 -> 34
A97: ='District 5'!A10 -> Brock Boeser | B97: (DI5) | C97: ='District 5'!R10 -> 34
A98: ='Damn Yankees'!A8 -> J.T. Miller | B98: (DYK) | C98: ='Damn Yankees'!R8 -> 33
A99: ='Arcane Sanctuary'!A14 -> Chris Kreider | B99: (ARS) | C99: ='Arcane Sanctuary'!R14 -> 32
A100: ='Damn Yankees'!A15 -> Kevin Fiala | B100: (DYK) | C100: ='Damn Yankees'!R15 -> 31
A101: =Highlanders!A15 -> Kyle Palmieri | B101: (HGL) | C101: =Highlanders!R15 -> 31
A102: =Riketorians!A14 -> Claude Giroux | B102: (RIK) | C102: =Riketorians!R14 -> 31
A103: =Ravens!A10 -> Artturi Lehkonen | B103: (RAV) | C103: =Ravens!R10 -> 30
A104: =Riketorians!A12 -> Alexis Lafrenière | B104: (RIK) | C104: =Riketorians!R12 -> 30
A105: ='District 5'!A12 -> Pavel Buchnevich | B105: (DI5) | C105: ='District 5'!R12 -> 30
A106: ='District 5'!A13 -> Owen Tippett | B106: (DI5) | C106: ='District 5'!R13 -> 29
A107: ='Shawnee Tribe'!A8 -> Mika Zibanejad | B107: (SHW) | C107: ='Shawnee Tribe'!R8 -> 29
A108: ='District 5'!A15 -> Will Cuylle | B108: (DI5) | C108: ='District 5'!R15 -> 28
A109: ='Shawnee Tribe'!A14 -> Cole Perfetti | B109: (SHW) | C109: ='Shawnee Tribe'!R14 -> 28
A110: ='Shawnee Tribe'!A13 -> Leo Carlsson | B110: (SHW) | C110: ='Shawnee Tribe'!R13 -> 26
A111: ='Shawnee Tribe'!A10 -> Patrik Laine | B111: (SHW) | C111: ='Shawnee Tribe'!R10 -> 24
A112: ='Arcane Sanctuary'!A11 -> Paul Cotter | B112: (ARS) | C112: ='Arcane Sanctuary'!R11 -> 20
A113: ='Damn Yankees'!A44 -> Valeri Nichushkin | B113: (DYK) | C113: ='Damn Yankees'!E44 -> 19
A114: =Highlanders!A7 -> Mathew Barzal | B114: (HGL) | C114: =Highlanders!R7 -> 16
